Workbook

Sheet Home
A1: MICROHYDRO DESIGN AIDS © 2010 for Microsoft Excel 2003
A2: Small Hydropower Promotion Project (SHPP)/GTZ
B5: By Mr. Pushpa Chitrakar
A9: Worksheets | F9: Collaboration Partmers
A10: Conductivity | C10: SHPP/GTZ, Nepal
A11: Hydrology | C11: Email
A12: Weir | C12: Web
A13: Side Intake
A14: Bottom Intake | C14: Entec AG, Switzerland
A15: Headrace Canal | C15: Email
A16: Headrace Pipe | C16: Web
A17: Settling Basin
A18: Penstock & Power | F18: Feedback
A19: Loads on Anchor | C19: Pushpa Chitrakar
A20: Anchor Block Stability | C20: pushpa.chitrakar@gmail.com
A21: Turbine
A22: Electrical | F22: Help
A23: Machine Foundation | C23: Online Manual
A24: Transmission Line | C24: Drawings
A25: Loads and Benefits | C25: List of Reference
A26: Costing & Financial Analyses
A27: Utilities
A28: Version: 2010.04 | B28: © Small Hydropower Promotion Project 2006 | C28: Kathmandu, Nepal

Sheet Conductivity
A1: Discharge Measurement by Conductivity Meter | H1: Time | I1: Reading 1 | J1: Reading 2 | K1: Reading 3 | L1: Reading 4
A2: Small Hydropower Promotion Project (SHPP)/GTZ | B2: Spreadsheet by Mr Pushpa Chitrakar | H2: 0 | I2: 25 | J2: 24 | K2: 24 | L2: 0
A3: Referances: 6,12,13,15,16 | B3: Date | C3: =TODAY() -> 2012-07-20 | H3: =H2+$E$12 -> 5 | I3: 26 | J3: 24 | K3: 25
A4: SMALL HYDROPOWER PROMOTION PROJECT/GTZ | B4: Revision | C4: 2006.05 | H4: 10 | I4: 27 | J4: 24 | K4: 25
A5: Project | B5: Golmagad SHP | H5: 15 | I5: 28 | J5: 24 | K5: 26
A6: Developer | B6: Kankaimai Hydropower P Ltd | H6: 20 | I6: 29 | J6: 24 | K6: 27
A7: Consultant | B7: EPC Consult | H7: 25 | I7: 30 | J7: 24 | K7: 29
A8: Designed | B8: Pushpa Chitrakar | H8: 30 | I8: 31 | J8: 24 | K8: 30
A9: Checked | B9: Pushpa Chitrakar | H9: 35 | I9: 32 | J9: 24 | K9: 32
A10: Meter | B10: HANNA Instruments (HI 933000) | H10: 40 | I10: 32 | J10: 25 | K10: 33
A11: Salt | B11: Iyoo Noon | C11: Water temp: | E11: 11 | H11: 45 | I11: 33 | J11: 28 | K11: 37
A12: Given k | B12: 1.8 | C12: Time intervals | E12: 5 | H12: 50 | I12: 34 | J12: 34 | K12: 39
H13: 55 | I13: 34 | J13: 41 | K13: 42
A14: Salt Const. (k) | B14: =B12 -> 1.8 | H14: 60 | I14: 34 | J14: 49 | K14: 45
A15: Wt. of Salt | B15: 400 | C15: 1580 | D15: 1795 | E15: 0 | H15: 65 | I15: 35 | J15: 54 | K15: 48
A16: Nr of data | B16: =COUNT(Reading01) -> 70 | C16: =COUNT(Reading02) -> 91 | D16: =COUNT(Reading03) -> 106 | E16: =COUNT(Reading04) -> 1 | H16: 70 | I16: 35 | J16: 60 | K16: 49
A17: Baseline conductivity | B17: =IF(B16=0,0,MIN(Reading01)) -> 25 | C17: =IF(C16=0,0,MIN(Reading02)) -> 24 | D17: =IF(D16=0,0,MIN(Reading03)) -> 24 | E17: =IF(E16=0,0,MIN(Reading04)) -> 0 | H17: 75 | I17: 35 | J17: 68 | K17: 51
A18: Sum of readings | B18: =IF(B16=0,0,SUM(Reading01)) -> 2062 | C18: =IF(C16=0,0,SUM(Reading02)) -> 3433 | D18: =IF(D16=0,0,SUM(Reading03)) -> 3997 | E18: =IF(E16=0,0,SUM(Reading04)) -> 0 | H18: 80 | I18: 35 | J18: 70 | K18: 52
A19: Effective Area | B19: =(B18-B17*B16)*$E$12 -> 1560 | C19: =(C18-C17*C16)*$E$12 -> 6245 | D19: =(D18-D17*D16)*$E$12 -> 7265 | E19: =(E18-E17*E16)*$E$12 -> 0 | H19: 85 | I19: 34 | J19: 73 | K19: 54
A20: Discharge | B20: =IF(ISERROR($B$14*B15*1000/B19),0,$B$14*B15*1000/B19) -> 461.5384615 | C20: =IF(ISERROR($B$14*C15*1000/C19),0,$B$14*C15*1000/C19) -> 455.4043235 | D20: =IF(ISERROR($B$14*D15*1000/D19),0,$B$14*D15*1000/D19) -> 444.735031 | E20: =IF(ISERROR($B$14*E15*1000/E19),0,$B$14*E15*1000/E19) -> 0 | H20: 90 | I20: 34 | J20: 76 | K20: 55
A21: Average Discharge | E21: =SUM(B20:E20)/COUNTIF(B20:E20,">0") -> 453.8926053 | H21: 95 | I21: 34 | J21: 76 | K21: 56
H22: 100 | I22: 33 | J22: 74 | K22: 58
H23: 105 | I23: 33 | J23: 73 | K23: 58
H24: 110 | I24: 33 | J24: 70 | K24: 58
H25: 115 | I25: 32 | J25: 70 | K25: 58
H26: 120 | I26: 32 | J26: 68 | K26: 59
H27: 125 | I27: 32 | J27: 64 | K27: 58
H28: 130 | I28: 32 | J28: 64 | K28: 58
H29: 135 | I29: 31 | J29: 61 | K29: 57
H30: 140 | I30: 31 | J30: 58 | K30: 57
H31: 145 | I31: 31 | J31: 56 | K31: 56
H32: 150 | I32: 31 | J32: 54 | K32: 56
H33: 155 | I33: 31 | J33: 52 | K33: 55
H34: 160 | I34: 31 | J34: 50 | K34: 54
H35: =H34+$E$12 -> 165 | I35: 30 | J35: 48 | K35: 53
H36: 170 | I36: 30 | J36: 47 | K36: 52
H37: 175 | I37: 30 | J37: 46 | K37: 52
H38: 180 | I38: 30 | J38: 44 | K38: 51
H39: 185 | I39: 29 | J39: 43 | K39: 50
A40: =A1&": "&B5 -> Discharge Measurement by Conductivity Meter: Golmagad SHP | B40: ="Date= "&YEAR(C3)&"/"&MONTH(C3)&"/"&DAY(C3)&", "&E11&"deg C, "&B10&", "&B11&", k="&ROUND(B14,2)&", Ave. Discharge = "&ROUND(E21,2)&" l/s" -> Date= 2012/7/20, 11deg C, HANNA Instruments (HI 933000), Iyoo Noon, k=1,8, Ave. Discharge = 453,89 l/s | H40: 190 | I40: 29 | J40: 41 | K40: 49
B41: ="Salt ="&B15&"gm, A eff ="&ROUND(B19,2) -> Salt =400gm, A eff =1560 | C41: ="Salt ="&C15&"gm, A eff ="&ROUND(C19,2) -> Salt =1580gm, A eff =6245 | D41: ="Salt ="&D15&"gm, A eff ="&ROUND(D19,2) -> Salt =1795gm, A eff =7265 | E41: ="Salt ="&E15&"gm, A eff ="&ROUND(E19,2) -> Salt =0gm, A eff =0 | H41: 195 | I41: 29 | J41: 40 | K41: 48
H42: 200 | I42: 29 | J42: 40 | K42: 48
H43: 205 | I43: 29 | J43: 39 | K43: 47
H44: 210 | I44: 29 | J44: 38 | K44: 46
H45: 215 | I45: 28 | J45: 37 | K45: 45
H46: 220 | I46: 28 | J46: 36 | K46: 44
H47: 225 | I47: 28 | J47: 35 | K47: 44
H48: 230 | I48: 28 | J48: 35 | K48: 43
H49: 235 | I49: 28 | J49: 34 | K49: 42
H50: 240 | I50: 28 | J50: 33 | K50: 42
H51: 245 | I51: 28 | J51: 33 | K51: 41
H52: 250 | I52: 27 | J52: 32 | K52: 40
H53: 255 | I53: 27 | J53: 32 | K53: 39
H54: 260 | I54: 27 | J54: 31 | K54: 39
H55: 265 | I55: 27 | J55: 31 | K55: 38
H56: 270 | I56: 27 | J56: 30 | K56: 37
H57: 275 | I57: 26 | J57: 30 | K57: 37
H58: 280 | I58: 26 | J58: 29 | K58: 36
H59: 285 | I59: 26 | J59: 29 | K59: 36
H60: 290 | I60: 26 | J60: 29 | K60: 35
H61: 295 | I61: 26 | J61: 29 | K61: 35
H62: 300 | I62: 26 | J62: 28 | K62: 34
H63: 305 | I63: 26 | J63: 28 | K63: 34
H64: 310 | I64: 26 | J64: 28 | K64: 34
H65: 315 | I65: 26 | J65: 27 | K65: 33
H66: 320 | I66: 26 | J66: 27 | K66: 33
H67: =H66+$E$12 -> 325 | I67: 26 | J67: 27 | K67: 32
H68: 330 | I68: 26 | J68: 27 | K68: 32
H69: 335 | I69: 25 | J69: 27 | K69: 32
H70: 340 | I70: 25 | J70: 26 | K70: 31
H71: 345 | I71: 25 | J71: 26 | K71: 31
H72: 350 | J72: 26 | K72: 31
H73: 355 | J73: 26 | K73: 30
H74: 360 | J74: 26 | K74: 30
H75: 365 | J75: 26 | K75: 30
H76: 370 | J76: 26 | K76: 30
H77: 375 | J77: 26 | K77: 29
H78: 380 | J78: 25 | K78: 29
H79: 385 | J79: 25 | K79: 29
H80: 390 | J80: 25 | K80: 29
H81: 395 | J81: 25 | K81: 28
H82: 400 | J82: 25 | K82: 28
H83: 405 | J83: 25 | K83: 28
H84: 410 | J84: 25 | K84: 28
H85: 415 | J85: 25 | K85: 27
H86: 420 | J86: 25 | K86: 27
H87: 425 | J87: 25 | K87: 27
H88: 430 | J88: 25 | K88: 27
H89: 435 | J89: 25 | K89: 27
H90: 440 | J90: 25 | K90: 27
H91: 445 | J91: 25 | K91: 27
H92: 450 | J92: 25 | K92: 27
H93: 455 | K93: 26
H94: 460 | K94: 26
H95: 465 | K95: 26
H96: 470 | K96: 26
H97: 475 | K97: 26
H98: 480 | K98: 26
H99: =H98+$E$12 -> 485 | K99: 26
H100: 490 | K100: 26
H101: 495 | K101: 26
H102: 500 | K102: 26
H103: 505 | K103: 26
H104: 510 | K104: 25
H105: 515 | K105: 25
H106: 520 | K106: 25
H107: 525 | K107: 25

Sheet Hydrology
A1: HYDROLOGICAL CALCULATIONS FOR UNGAUGED MHP RIVERS | X1: MIP Region | Y1: Q messured on date | AA1: Q measured in
A2: Small Hydropower Promotion Project (SHPP)/GTZ | F2: Spreadsheet by Mr Pushpa Chitrakar
A3: Referances:2,2,4, 6,12,13,15,16 | F3: Date | G3: =TODAY() -> 2012-07-20
A4: SMALL HYDROPOWER PROMOTION PROJECT/GTZ | F4: Revision | G4: 2006.05
A5: Project: | B5: Upper Jogmai SHP
A6: Developer | B6: Kankai Hydropower P Ltd
A7: Consultant | B7: EPC Consult
A8: Designed | B8: Pushpa Chitrakar
A9: Checked | B9: Pushpa Chitrakar
X10: 1 | Y10: 1 | AA10: January
A11: INPUT | X11: 2 | Y11: 2 | AA11: February
A12: River name : | G12: Chhyota Khola | X12: 3 | Y12: 3 | AA12: March
A13: Location : | G13: Barand, Sertung VDC 2, Dhading | X13: 4 | Y13: 4 | AA13: April
A14: Measured flow for MIP method l/s: | G14: 80 | X14: 5 | Y14: 5 | AA14: May
A15: Month and day of flow measurement: | G15: March | H15: 23 | X15: 6 | Y15: 6 | AA15: June
A16: MIP region (1 -7) : | G16: 3 | X16: 7 | Y16: 7 | AA16: July
A17: Area of basin below 3000m elevation A3000 km2 : | G17: 1.5 | Y17: 8 | AA17: August
A18: Turbine discharge Qd l/s: | G18: 80 | L18: PRE-CALCULATIONS | Y18: 9 | AA18: September
A19: Water losses due to evaporation/flushing/seepage % of Qd : | G19: 0.05 | L19: GRAPH TITLES | Y19: 10 | AA19: October
A20: Downstream water release due to environmental reasons % of Q lowest : | G20: 0.1 | L20: ="Long Term Average Annual Hydrograph of "&" "&NAME&" river, "&Hydrology!B5 -> Long Term Average Annual Hydrograph of Chhyota Khola river, Upper Jogmai SHP | Y20: 11 | AA20: November
L21: Months | M21: Jan | N21: Feb | O21: Mar | P21: Apr | Q21: May | R21: Jun | S21: Jul | T21: Aug | U21: Sep | V21: Oct | W21: Nov | X21: Dec | Y21: 12 | AA21: December
L22: MIP flows | M22: =B28 ->  | N22: =B29 ->  | O22: =B30 ->  | P22: =B31 ->  | Q22: =B32 ->  | R22: =B33 ->  | S22: =B34 ->  | T22: =B35 ->  | U22: =B36 ->  | V22: =B37 ->  | W22: =B38 ->  | X22: =B39 ->  | Y22: 13
A23: OUTPUT | L23: Qturbine MGSP | M23: =Qturbine -> 80 | N23: 80 | O23: 80 | P23: 80 | Q23: 80 | R23: 80 | S23: 80 | T23: 80 | U23: 80 | V23: 80 | W23: 80 | X23: 80 | Y23: 14
L24: ="Q design ="&ROUND(F34,3)&" l/s with "&F39&"-month exceedence" -> Q design =80 l/s with 12-month exceedence | M24: =Hydrology!$F$38 ->  | N24: =Hydrology!$F$38 ->  | O24: =Hydrology!$F$38 ->  | P24: =Hydrology!$F$38 ->  | Q24: =Hydrology!$F$38 ->  | R24: =Hydrology!$F$38 ->  | S24: =Hydrology!$F$38 ->  | T24: =Hydrology!$F$38 ->  | U24: =Hydrology!$F$38 ->  | V24: =Hydrology!$F$38 ->  | W24: =Hydrology!$F$38 ->  | X24: =Hydrology!$F$38 ->  | Y24: 15
A25: MIP monthly average discharge | E25: Hydest Flood Flows | L25: ="Q as per MGSP ="&ROUND(G34,3)&" l/s with "&G39&"-month exceedence" ->  | M25: =Hydrology!$G$38 ->  | N25: =Hydrology!$G$38 ->  | O25: =Hydrology!$G$38 ->  | P25: =Hydrology!$G$38 ->  | Q25: =Hydrology!$G$38 ->  | R25: =Hydrology!$G$38 ->  | S25: =Hydrology!$G$38 ->  | T25: =Hydrology!$G$38 ->  | U25: =Hydrology!$G$38 ->  | V25: =Hydrology!$G$38 ->  | W25: =Hydrology!$G$38 ->  | X25: =Hydrology!$G$38 ->  | Y25: 16
L26: FLOOD FLOW CALCULATION | Y26: 17
A27: Month | B27: @ river | C27: To plant | E27: Return Period (yrs) | F27: Flood Discharge (m3/s) | L27: RATIO OF Q2/Q100 COEF | Y27: 18
A28: January | B28: =Hydrology!T41 ->  | C28: =IF($G$35<B28,$G$35,B28-10%*MIN($B$28:$B$39)) ->  | F28: Daily | G28: Instantaneous | L28: =IF(ISERROR(LN(Hydrology!F31/Hydrology!F29)/2.326),0,(LN(Hydrology!F31/Hydrology!F29)/2.326)) -> 0.6564360377 | Y28: 19
A29: February | B29: =Hydrology!T42 ->  | C29: =IF($G$35<B29,$G$35,B29-10%*MIN($B$28:$B$39)) ->  | E29: 2 | F29: =IF(A3000A>0,0.8154*(G17+1)^0.9527,"-") -> 1.952037486 | G29: =IF(A3000A>0,1.8767*(G17+1)^0.8783,"-") -> 4.196677182 | L29: =IF(ISERROR(LN(Hydrology!G31/Hydrology!G29)/2.326),0,LN(Hydrology!G31/Hydrology!G29)/2.326) -> 0.8261056772 | Y29: 20
A30: March | B30: =Hydrology!T43 ->  | E30: 20 | F30: =IF(A3000A>0,EXP(LN(F$29)+1.645*Hydrology!$L$28),"-") -> 5.74718962 | G30: =IF(A3000A>0,EXP(LN(G$29)+1.645*Hydrology!$L$29),"-") -> 16.33380529 | L30: =IF(F34>0.1,EXP(LN(G$29)+1.645*Hydrology!$L$29),EXP(LN(1.8767*(1)^0.8783)+1.645*LN((14.63*(1)^0.7342)/(1.8767*(1)^0.8783))/2.326)) -> 16.33380529 | Y30: 21
A31: April | B31: =Hydrology!T44 ->  | E31: 100 | F31: =IF(A3000A>0,4.144*(G17+1)^0.8448,"-") -> 8.986683902 | G31: =IF(A3000A>0,14.63*(G17+1)^0.7342,"-") -> 28.66895616 | Y31: 22
A32: May | B32: =Hydrology!T45 ->  | L32: MIP Mid month flow calculaton | Y32: 23
A33: June | B33: =Hydrology!T46 ->  | E33: Discharges (l/s) | F33: Designed | G33: As per MGSP | L33: K prev month | P33: =INDEX(MidHGraph,MATCH((G15),MidMonths,0)-1,REGION) -> 1.88 | Y33: 24
A34: July | B34: =Hydrology!T47 ->  | E34: Qturbine (Qd) | F34: =Qturbine -> 80 | G34: =MIN(Qturbine,0.85*LARGE(B28:B39,11)) ->  | L34: K measured month | P34: =INDEX(MidHGraph,MATCH((G15),MidMonths,0),REGION) -> 1.38 | Y34: 25
A35: August | B35: =Hydrology!T48 ->  | E35: Q diverted Qd+Qlosses | F35: =F34/(1-Qlosses) -> 84.21052632 | G35: =G34/(1-Qlosses) ->  | L35: K next month | P35: =INDEX(MidHGraph,MATCH((G15),MidMonths,0)+1,REGION) -> 1 | Y35: 26
A36: September | B36: =Hydrology!T49 ->  | E36: ="Q losses "&100*Qlosses&"% of Qd" -> Q losses 5% of Qd | F36: =F35-F34 -> 4.210526316 | G36: =G35-G34 ->  | L36: MIP K correction | P36: =kcorr(H15,P33,P34,P35) ->  | Y36: 27
A37: October | B37: =Hydrology!T50 ->  | E37: ="Q release "&100*G20&"% of Qlow" -> Q release 10% of Qlow | F37: =G20*MIN(B28:B39) ->  | G37: =G20*MIN(B28:B39) ->  | Y37: 28
A38: November | B38: =Hydrology!T51 ->  | E38: Q min required @ river | F38: =F35+F37 ->  | G38: =G35+G37 ->  | L38: Non-dimensional regional hydrographs | Y38: 29
A39: December | B39: =Hydrology!T52 ->  | E39: Q exceedence (month) | F39: =COUNTIF(B28:B39,">="&TEXT(F38,"#0.000")) -> 12 | G39: =COUNTIF(B28:B39,">="&TEXT(G38,"#0.000")) -> 12 | L39: Month | M39: Regions | T39: MIP Flow l/s | U39: Regional data for Graph | V39: Error of +10% | W39: Error of -10% | Y39: 30
A40: Annual av | B40: =AVERAGEA(B28:B39) ->  | C40: =AVERAGEA(C28:C39) ->  | E40: =IF(F39<11,"Q turbine for 11m","") ->  | F40: =IF(F39<11,LARGE(B28:B39,11)-LARGE(B28:B39,11)*G20-LARGE(B28:B39,11)*(1-G20)*Qlosses,"") ->  | M40: 1 | N40: 2 | O40: 3 | P40: 4 | Q40: 5 | R40: 6 | S40: 7 | Y40: 31
L41: January | M41: 2.4 | N41: 2.24 | O41: 2.71 | P41: 2.59 | Q41: 2.42 | R41: 2.03 | S41: 3.3 | T41: =$T$44*(INDEX(HGraph,MATCH((L41),Months,0),REGION)) ->  | U41: =(INDEX(HGraph,MATCH((L41),Months,0),REGION)) -> 2.71 | V41: =1.1*U41 -> 2.981 | W41: =0.9*U41 -> 2.439
L42: February | M42: 1.8 | N42: 1.7 | O42: 1.88 | P42: 1.88 | Q42: 1.82 | R42: 1.62 | S42: 2.2 | T42: =$T$44*(INDEX(HGraph,MATCH((L42),Months,0),REGION)) ->  | U42: 1.88 | V42: 2.068 | W42: 1.692
L43: March | M43: 1.3 | N43: 1.33 | O43: 1.38 | P43: 1.38 | Q43: 1.36 | R43: 1.27 | S43: 1.4 | T43: =$T$44*(INDEX(HGraph,MATCH((L43),Months,0),REGION)) ->  | U43: 1.38 | V43: 1.518 | W43: 1.242
L44: April | M44: 1 | N44: 1 | O44: 1 | P44: 1 | Q44: 1 | R44: 1 | S44: 1 | T44: =Hydrology!G14/P36 ->  | U44: 1 | V44: 1.1 | W44: 0.9
L45: May | M45: 2.6 | N45: 1.21 | O45: 1.88 | P45: 2.19 | Q45: 0.91 | R45: 2.57 | S45: 3.5 | T45: =$T$44*(INDEX(HGraph,MATCH((L45),Months,0),REGION)) ->  | U45: 1.88 | V45: 2.068 | W45: 1.692
L46: June | M46: 6 | N46: 7.27 | O46: 3.13 | P46: 3.75 | Q46: 2.73 | R46: 6.08 | S46: 6 | T46: =$T$44*(INDEX(HGraph,MATCH((L46),Months,0),REGION)) ->  | U46: 3.13 | V46: 3.443 | W46: 2.817
L47: July | M47: 14.5 | N47: 18.18 | O47: 13.54 | P47: 6.89 | Q47: 11.21 | R47: 24.32 | S47: 14 | U47: 13.54 | V47: 14.894 | W47: 12.186
L48: August | M48: 25 | N48: 27.27 | O48: 25 | P48: 27.27 | Q48: 13.94 | R48: 33.78 | S48: 35 | U48: 25 | V48: 27.5 | W48: 22.5
L49: September | M49: 16.5 | N49: 20.91 | O49: 20.83 | P49: 20.91 | Q49: 10 | R49: 27.03 | S49: 24 | U49: 20.83 | V49: 22.913 | W49: 18.747
L50: October | M50: 8 | N50: 9.09 | O50: 10.42 | P50: 6.89 | Q50: 6.52 | R50: 6.08 | S50: 12 | U50: 10.42 | V50: 11.462 | W50: 9.378
L51: November | M51: 4.1 | N51: 3.94 | O51: 5 | P51: 5 | Q51: 4.55 | R51: 3.38 | S51: 7.5 | U51: 5 | V51: 5.5 | W51: 4.5
L52: December | M52: 3.1 | N52: 3.03 | O52: 3.75 | P52: 3.44 | Q52: 3.33 | R52: 2.57 | S52: 5 | U52: 3.75 | V52: 4.125 | W52: 3.375
L53: January | M53: 2.4 | N53: 2.24 | O53: 2.71 | P53: 2.59 | Q53: 2.42 | R53: 2.03 | S53: 3.3

Sheet Weir
A1: Design of Stone Masonry Weir | G1: Section | I1: Plan
A2: Small Hydropower Promotion Project (SHPP)/GTZ | B2: Spreadsheet by Mr Pushpa Chitrakar | G2: X | H2: y | I2: x | J2: y
A3: Referances: 6,12,13,15,16 | B3: Date | C3: =TODAY() -> 2012-07-20 | G3: 0 | H3: 0 | I3: 0 | J3: 0
A4: SMALL HYDROPOWER PROMOTION PROJECT/GTZ | B4: Revision | C4: 2006.05 | G4: =B35 -> 0.25 | H4: =H3 -> 0
A5: Project | B5: Upper Jogmai, Ilam | G5: =B36+G4 -> 2.25 | H5: 0
A6: Developer | B6: Kankaimai Hydropower P Ltd | G6: =B37+G5 -> 3.25 | H6: 0
A7: Consultant | B7: EPC Consult | G7: =G6+B38 -> 3.75 | H7: 0
A8: Designed | B8: Pushpa Chitrakar | G8: =G7 -> 3.75 | H8: =D36 -> 1.5
A9: Checked | B9: Pushpa Chitrakar | G9: =G6 -> 3.25 | H9: =H8 -> 1.5
G10: =G5 -> 2.25 | H10: =D35 -> 3
G11: =G4 -> 0.25 | H11: =H10 -> 3
G12: =G11 -> 0.25 | H12: =D37 -> 1
G13: 0 | H13: =H12 -> 1
G14: 0 | H14: 0
G15: =G10 -> 2.25 | H15: =H10 -> 3 | L15: Turbine CL
G16: =G15 -> 2.25 | H16: =H8 -> 1.5 | L16: 1 | M16: 1
G17: =G9 -> 3.25 | H17: =H8 -> 1.5 | L17: 2 | M17: 2
G18: =G17 -> 3.25 | L18: 1 | M18: 3
G19: =G16 -> 2.25 | H19: =H16 -> 1.5
G20: =G19 -> 2.25 | H20: 0
G21: =G12 -> 0.25 | H21: =H12 -> 1
G23: =G21 -> 0.25 | H23: 0
L24: Generator CL
G25: =A45&" ="&ROUND(B45,3)&" kN" -> G1 =5,5 kN | I25: =A50&" ="&ROUND(B50,3)&" kN" -> W1 =5 kN | L25: 2 | M25: =M16 -> 1
G26: =$G$4/2 -> 0.125 | H26: =H13+0.2 -> 1.2 | I26: =G26 -> 0.125 | J26: =1+H26 -> 2.2 | L26: 3 | M26: =M17 -> 2
G27: =G26 -> 0.125 | H27: =AVERAGE(H26,H28) -> 0.65 | I27: =G27 -> 0.125 | J27: =AVERAGE(J26,J28) -> 1.65 | L27: 2 | M27: =M18 -> 3
G28: =G27 -> 0.125 | H28: 0.1 | I28: =G28 -> 0.125 | J28: =H26-0.1 -> 1.1
A29: Foundation and Soil | G29: =A46&" ="&ROUND(B46,3)&" kN" -> G2 =132 kN | I29: =A51&" ="&ROUND(B51,3)&" kN" -> W2 =45 kN
A30: Foundation on | B30: Soil | C30: Coeff of soil at active state (ka) | D30: 0.33 | G30: =G4+(G5-G4)/2 -> 1.25 | H30: =H26 -> 1.2 | I30: =G49 -> -0.6 | J30: =ABS(C51) -> 1
A31: Allowable bearing capacity Pall (kN/m2) | B31: 180 | C31: Soil Density (kN/m3) | D31: 20 | G31: =G30 -> 1.25 | H31: =AVERAGE(H30,H32) -> 0.65 | I31: =AVERAGE(I30,I32) -> -0.35 | J31: =J30 -> 1
A32: Coeff of soil at rest (ko) | B32: 1 | C32: Friction coeff between block and soil m | D32: 0.5 | G32: =G31 -> 1.25 | H32: =H28 -> 0.1 | I32: -0.1 | J32: =J31 -> 1
G33: =A47&" ="&ROUND(B47,3)&" kN" -> G3 =16,5 kN | I33: =A52&" ="&ROUND(B52,3)&" kN" -> W3 =5 kN
A34: Weir Geometry | G34: =G9-B37*2/3 -> 2.583333333 | H34: =H30+H8 -> 2.7 | I34: =G51-0.1 -> 3.65 | J34: =H52/3 -> 0.5
A35: Length L1 (m) | B35: 0.25 | C35: Height H1 (m) | D35: 3 | G35: =G34 -> 2.583333333 | H35: =AVERAGE(H34,H36) -> 2.15 | I35: =AVERAGE(I34,I36) -> 3.85 | J35: =J34 -> 0.5
A36: Length L2 (m) | B36: 2 | C36: Height H2 (m) | D36: 1.5 | G36: =G35 -> 2.583333333 | H36: =H32+H8 -> 1.6 | I36: =G53 -> 4.05 | J36: =J35 -> 0.5
A37: Length L3 (m) | B37: 1 | C37: Height H3 (m) | D37: 1 | G37: =A48&" ="&ROUND(B48,3)&" kN" -> G4 =49,5 kN | I37: =A53&" ="&ROUND(B53,3)&" kN" -> U1 =84,375 kN
A38: Length L4 (m) | B38: 0.5 | C38: Density (kM/m3) | D38: 22 | G38: =$G$8-(G8-G5)/2 -> 3 | H38: =H8+0.1 -> 1.6 | I38: =ABS(C53) -> 2.083333333 | J38: =H56 -> -0.6
A39: Total length L (m) | B39: =SUM(B35:B38) -> 3.75 | C39: Head above crest during flood, hf (m) | D39: 0.5 | G39: =G38 -> 3 | H39: =AVERAGE(H38,H40) -> 0.85 | I39: =I38 -> 2.083333333 | J39: =AVERAGE(J38,J40) -> -0.3
A40: Material | B40: Concrete | G40: =G39 -> 3 | H40: 0.1 | I40: =I39 -> 2.083333333 | J40: 0
A41: OUTPUT | G41: Water
A42: Forces | B42: Weight Wi (kN) | C42: LA along XX (m) | D42: Moment (kN-m) | G42: =G13 -> 0 | H42: =H13 -> 1
G43: =G4 -> 0.25 | H43: =H42 -> 1
A44: Weir | G44: =G43 -> 0.25 | H44: =H15 -> 3
A45: G1 | B45: =B35*D37*$D$38 -> 5.5 | C45: =SUM(B36:B38)+B35/2 -> 3.625 | D45: =C45*B45 -> 19.9375 | G45: 0 | H45: =H44 -> 3
A46: G2 | B46: =B36*D35*$D$38 -> 132 | C46: =SUM(B37:B38)+B36/2 -> 2.5 | D46: =C46*B46 -> 330 | G46: =G42 -> 0 | H46: =H42 -> 1
A47: G3 | B47: =0.5*B37*(D35-D36)*$D$38 -> 16.5 | C47: =B38+1/3*B37 -> 0.8333333333 | D47: 13.75 | G47: 0 | H47: 0
A48: G4 | B48: =(B38+B37)*D36*$D$38 -> 49.5 | C48: =(B38+B37)/2 -> 0.75 | D48: 37.125 | G48: 0 | H48: =H10 -> 3
A49: Water (normal conditions) | G49: =-H48/5 -> -0.6 | H49: 0
A50: W1 | B50: =10*B35*(D35-D37) -> 5 | C50: =C45 -> 3.625 | D50: 18.125 | G50: 0 | H50: 0
A51: W2 | B51: =0.5*10*D35^2 -> 45 | C51: =-D35/3 -> -1 | D51: -45 | G51: =G8 -> 3.75 | H51: 0
A52: W3 | B52: =0.5*10*D37^2 -> 5 | C52: =D36/3 -> 0.5 | D52: 2.5 | G52: =G51 -> 3.75 | H52: =H8 -> 1.5
A53: U1 | B53: =B39*10*(D35+D36)/2 -> 84.375 | C53: =-B39/3*(D36+2*D35)/(D36+D35) -> -2.083333333 | D53: -175.78125 | G53: =G52+H52/5 -> 4.05 | H53: =H51 -> 0
G54: =G51 -> 3.75 | H54: 0
A55: Water (flood conditions) | G55: =G47 -> 0 | H55: =H51 -> 0
A56: W1 | B56: =10*B35*(D35+D39-D37) -> 6.25 | C56: =C45 -> 3.625 | D56: =C56*B56 -> 22.65625 | G56: 0 | H56: =G49 -> -0.6
A57: W2 | B57: =0.5*10*(D35+D39)^2 -> 61.25 | C57: =-(D35+D39)/3 -> -1.166666667 | D57: =C57*B57 -> -71.45833333 | G57: =G7 -> 3.75 | H57: =-H52/5 -> -0.3
A58: W3 | B58: =0.5*10*(D37+D39)^2 -> 11.25 | C58: =(D36+D39)/3 -> 0.6666666667 | D58: =C58*B58 -> 7.5 | G58: =G57 -> 3.75 | H58: 0
A59: U1 | B59: =B39/2*10*(D35+D39+D36+D39) -> 103.125 | C59: =-B39/3*(D36+D39+2*(D35+D39))/(D36+D39+D35+D39) -> -2.045454545 | D59: =C59*B59 -> -210.9375
A60: Soil | G60: Flood Level
A61: S1 | B61: =0.5*D30*(D31-10)*D37^2 -> 1.65 | C61: =-1/3*D37 -> -0.3333333333 | D61: =C61*B61 -> -0.55 | G61: =G70 -> -0.9 | H61: =H44+D39 -> 3.5
A62: S2 | B62: =0.5*B32*(D31-10)*D36^2 -> 11.25 | C62: =1/3*D36 -> 0.5 | D62: =C62*B62 -> 5.625 | G62: =G5 -> 2.25 | H62: =H61 -> 3.5
G63: =G6 -> 3.25 | H63: =H8+D39 -> 2
A64: Summantion forces | B64: Normal | C64: Flood | G64: =G74 -> 4.45 | H64: =H63 -> 2
A65: Sum of moments SM (kN-m) | B65: =SUM(D45:D53,D61:D62) -> 205.73125 | C65: =SUM(D45:D48,D56:D62) -> 153.6479167
A66: Sum of vertical forces SV (kN) | B66: =SUM(B45:B48,B50,-B53) -> 124.125 | C66: =SUM(B45:B48,B56,-B59) -> 106.625
A67: Sum of horizontal forces SH (kN) | B67: =B51+B61-B52-B62 -> 30.4 | C67: =B57+B61-B58-B62 -> 40.4 | G67: Soil
G68: =G49-0.1 -> -0.7 | H68: 0 | I68: =A61&" ="&ROUND(B61,3)&" kN" -> S1 =1,65 kN
A69: Overturning: Equivalent distance at which SM acts from critical point | G69: =G68 -> -0.7 | H69: =H13 -> 1 | I69: =G70 -> -0.9 | J69: =H69/3 -> 0.3333333333
A70: d (m) | B70: =B65/B66 -> 1.657452165 | C70: =C65/C66 -> 1.441012114 | G70: =G69-H69/5 -> -0.9 | H70: 0 | I70: =AVERAGE(I69,I71) -> -0.8 | J70: =J69 -> 0.3333333333
A71: Eccentricity e, (m) | B71: =(B39/2-B70) -> 0.2175478348 | C71: =(B39/2-C70) -> 0.4339878859 | G71: =G68 -> -0.7 | H71: 0 | I71: =G71 -> -0.7 | J71: =J70 -> 0.3333333333
A72: Allowable eccentricity e all (m) | B72: =B39/6 -> 0.625 | C72: =B72 -> 0.625 | G72: =G53+0.1 -> 4.15 | H72: 0 | I72: =A62&" ="&ROUND(B62,3)&" kN" -> S2 =11,25 kN
A73: Comment on overturning moment | B73: =IF(B72>B71, "Ok","Not Ok") -> Ok | C73: =IF(C72>C71, "Ok","Not Ok") -> Ok | G73: =G72 -> 4.15 | H73: =H17 -> 1.5 | I73: =G74 -> 4.45 | J73: =H73/3 -> 0.5
G74: =G73+H73/5 -> 4.45 | H74: 0 | I74: =AVERAGE(I73,I75) -> 4.35 | J74: =J73 -> 0.5
A75: Bearing | G75: =G72 -> 4.15 | H75: 0 | I75: =G75+0.1 -> 4.25 | J75: =J74 -> 0.5
A76: Pressure at base, Pmax | B76: =B66/(B39*1)*(1+6*B71/B39) -> 44.62133333 | C76: =C66/(B39*1)*(1+6*C71/B39) -> 48.17688889
A77: Pressure at base, Pmin | B77: =B66/(B39*1)*(1-6*B71/B39) -> 21.57866667 | C77: =C66/(B39*1)*(1-6*C71/B39) -> 8.689777778
A78: Comments on bearing | B78: =IF(OR(B76>B31,B76<0,B77<0), "Not Ok","Ok") -> Ok | C78: =IF(OR(C76>C31,C76<0,C77<0), "Not Ok","Ok") -> Ok
A80: Sliding
A81: Factor of safety against sliding, FS sl | B81: =D32*B66/B67 -> 2.041529605 | C81: =D32*C66/C67 -> 1.319616337
A82: Comment of sliding | B82: =IF(B81<1.5, "Not Ok","Ok") -> Ok | C82: =IF(C81<1.5, "Not Ok","Ok") -> Not Ok

Sheet SideIntake
A1: Design of Orifice Side Intake
A2: Spreadsheet developed by Mr. Pushpa Chitrakar, Engineering Advisor, SHPP/GTZ
A3: Referances: 6,12,13,15,16 | B3: Date | C3: =TODAY() -> 2012-07-20
A4: SMALL HYDROPOWER PROMOTION PROJECT/GTZ | B4: Revision | C4: 2006.05
A5: Project | B5: Ankhu HEP
A6: Developer | B6: Ankhu Hydropower P Ltd
A7: Consultant | B7: HSEC P Ltd
A8: Designed | B8: Neeraj Shrestha
A9: Checked | B9: Pushpa Chitrakar
F19: Trashrack Coeff
F20: Cross section | G20: k
F21: Flat | G21: 2.4
F22: Round/Rounded front | G22: 1.8
F23: Tipped back | G23: 1.7
F24: Both end rounded | G24: 1
F25: Tipped section | G25: 0.8
F26: No Trashrack | G26: 0
A30: Trashrack calculations
A31: Input | C31: Output
A32: Trashrack coeffieient kt | B32: 2.4
A33: Bar thickness t mm | B33: 15 | C33: Headloss due to friction hf m | D33: =B32*(B33/B34)^(4/3)*(B35^2/2/9.81)*SIN(PI()/180*B36) -> 236.0908841
A34: Clear spacing of bars b mm | B34: 75 | C34: Headloss due to bends hb m | D34: =(B35^2/2/9.81)*SIN(PI()/180*B37) -> 0.05096839959
A35: Approach velocity Vo m/s | B35: 1 | C35: Headloss coeff K | D35: =B32*(B33/B34)^(4/3)*SIN(PI()/180*B36)+SIN(PI()/180*B37) -> 4633.103145 | F35: Spillway Profiles and Discharge coeff
A36: Angle of inclination from horizontal f deg | B36: 75 | C36: Total headloss ht m | D36: =D34+D33 -> 236.1418525 | F36: Profiles | G36: Coeff
A37: Flow deviation b deg | B37: 90 | C37: Trashrack coeff, K1 | D37: 0.8 | F37: Broad; sharp edges | G37: 1.5
A38: Design Discharge Qd cumec | B38: =16.835*2 -> 33.67 | C38: Surface area A surface m2 | D38: =IF(B32="0",0,1/D37*(B33+B34)/B34*B38/B35*1/SIN(PI()/180*B36)) ->  | F38: Broad; round edges | G38: 1.6
A39: Height of trashrack bottom from river bed ht | B39: 1.25 | C39: Vertical height h m | D39: =IF(B32="0",0,B65-B39) -> 2.25 | F39: round overfall | G39: 1.9
A40: Canal invert level (m) | B40: 890.65 | C40: Trashrack width B m | D40: =IF(B32="0",0,D38/(D39/SIN(B36*PI()/180))) ->  | F40: sharp edged | G40: 2.1
F41: rounded | G41: 2.2
A42: Orifice Calculations for (B = 2H or provided) rectangular canal downstream of orifice | F42: roof-shaped | G42: 2.3
A43: Input
A44: Orifice | C44: River
A45: Velocity coeff of orifice c | B45: 0.8 | C45: Crest length L m | D45: 35 | F45: Trashrack Coeff K1
A46: Velocity through orifice Vo m/s | B46: 1.5 | C46: Provided Q flood m3/s | D46: 976.1 | F46: Automatic mechanical cleaning | G46: 0.8
A47: Manning's coeff of roughness | B47: 0.012 | C47: Q flood m3/s (Q20 for MHP with Qd>100) | D47: =Hydrology!G30 -> 16.33380529 | F47: Manual cleaning | G47: 0.3
A48: Downstream submergence depth hsub m | B48: 0.1 | C48: Used Q flood | D48: =IF(D46>0,D46,D47) -> 976.1
A49: Orifice height H m | B49: 1.1 | C49: Canal & Spillway
A50: Height of orifice from canal bed h bot m | B50: 1.25 | C50: Spillway crest height above NWL m | D50: 0.1 | F50: Velocity coeff of orifice c
A51: Provided water depth in the river hr (m) | B51: 3.5 | C51: Spillway discharge coeff | D51: 1.6 | F51: Sharp edged / roughly finished concrete/masonry | G51: 0.6
A52: Provided canal width (m) | B52: 21 | C52: Provided Freeboard h fb1 m | D52: 3 | F52: carefully finished aperture | G52: 0.8
A54: Output | F54: Typical values of Manningís n.
A55: Normal Condition | C55: Flood | F55: Type of Orifice | G55: Manningís n | H55: M
A56: Canal witdth d/s of orifice | B56: =IF(B52>0,B52,2*B58) -> 21 | C56: Critical depth of water at crest yc m | D56: =IF(D48="-","-",(D48^2/D45^2/9.81)^(1/3)) -> 4.295969373 | F56: Steel, smooth | G56: 0.012 | H56: =1/G56 -> 83.33333333
A57: 1/Slope of canal immediately d/s of orifice | B57: =1/(B38*B47*(B56+2*(B48+B49+B50))^(2/3)/(B56*(B48+B49+B50))^(5/3))^2 ->  | C57: 1/Slope of canal immediately d/s of orifice | D57: =1/(D61*B47*(B56+2*(B48+B49+B50))^(2/3)/(B56*(B48+B49+B50))^(5/3))^2 ->  | F57: Cast iron | G57: 0.013 | H57: =1/G57 -> 76.92307692
A58: Depth of water in canal hc m | B58: =B50+B49+B48 -> 2.45 | C58: Flood head at river hf r = hw+yc m | D58: =IF(D48="-","-",B66+D56) -> 7.895969373 | F58: Concrete, well finished | G58: 0.012 | H58: 83.33333333
A59: Free board in canal h fb m | B59: =IF(D52>=IF(B38<=0.2,0.2,IF(B38<=0.5,0.3,0.4)),D52,IF(B15<=0.2,0.2,IF(B15<=0.5,0.3,0.4))) -> 3 | C59: Head difference dhf | D59: =IF(D48="-","-",D58-D62) ->  | F59: Concrete, unfinished | G59: 0.014 | H59: 71.42857143
A60: Area of orifice A m2 | B60: =B38/B62 -> 22.44666667 | C60: Velocity through orifice Vof m/s | D60: =IF(D48="-","-",B45*SQRT(2*9.81*D59)) ->  | F60: Planed wood | G60: 0.012 | H60: 83.33333333
A61: Width of orifice B m | B61: =IF(B38/(B46*B49)<B56-0.1,B60/B49,B56-0.1) -> 20.40606061 | C61: Q intake Qf cumec | D61: =IF(D48="-","-",B45*B60*SQRT(2*9.81*D59)) ->  | F61: Brickwork | G61: 0.015 | H61: 66.66666667
A62: Actual velocity through orifice Vo act m/s | B62: =B45*SQRT(2*9.81*B64) -> 1.5 | C62: Depth of water at canal (hc f) m | D62: =IF(D48="-","-",Hflood(D58, B60, B45, B47,B57)) ->  | F62: Rubble masonry | G62: 0.025 | H62: 40
A63: Canal width Wc m | B63: =IF(B52>0,B52,B61+0.1) -> 21 | C63: Spillway | F63: Stonemasonry | G63: 0.02 | H63: 50
A64: Water level difference dh m | B64: =(B46/B45)^2/2/9.81 -> 0.1791857798 | C64: Ls1 for Qf w/o d/s Obs m | D64: =IF(D48="-","-",D61/D51/(B67/2)^1.5) ->  | F64: Plastered Stone masnry | G64: 0.017 | H64: 58.82352941
A65: Water depth in the river hr = hc + dh m | B65: =IF(B51>0,B51,B64+B58) -> 3.5 | C65: Ls2 for Qf-Qd w/o d/s obstruction m | D65: =IF(D48="-","-",(D61-B38)/D51/(B67/2)^1.5) -> 
A66: Height of weir (hw = hr+0.1) m | B66: =B65+0.1 -> 3.6 | C66: Ls3 for Qf with d/s Obs m | D66: =IF(D48="-","-",D61/D51/B67^1.5) -> 
A67: Spillway overtopping height h overtop m | B67: =(B59-D50)-0.3 -> 2.6 | C67: Ls4 for Qf-Qd with d/s obstruction m | D67: =IF(D48="-","-",(D61-B38)/D51/B67^1.5) -> 

Sheet BottomIntake
A1: Design of Bottom/Drop Intake
A2: Spreadsheet developed by Mr. Pushpa Chitrakar, Engineering Advisor, SHPP/GTZ
A3: Referances: 6,7,8,12,13 | B3: Date | C3: =TODAY() -> 2012-07-20
A4: SMALL HYDROPOWER PROMOTION PROJECT/GTZ | B4: Revision | C4: 2006.05
A5: Project | B5: Sarbari SHP
A6: Developer | B6: Kullu, Himanchal Pradesh, India
A7: Consultant
A8: Designed | B8: Pushpa Chitrakar
A9: Checked | B9: Pushpa Chitrakar
G10: Critical Depth Considered | H10: 1
G11: Critical Depth Not Considered | H11: 0
G12: Table 3.4 c values for b
G13: b | H13: c
G14: 0 | H14: 1
G15: 2 | H15: 0.98
G16: 4 | H16: 0.961
G17: 6 | H17: 0.944
G18: 8 | H18: 0.927
G19: 10 | H19: 0.91
G20: 12 | H20: 0.894
G21: 14 | H21: 0.879
G22: 16 | H22: 0.865
G23: 18 | H23: 0.851
G24: 20 | H24: 0.837
G25: 22 | H25: 0.825
G26: 24 | H26: 0.812
G27: 26 | H27: 0.8
G28: 28 | H28: 0.789
G29: 32 | H29: 0.767
G30: 36 | H30: 0.747
G31: 40 | H31: 0.729
G32: 45 | H32: 0.707
A33: Input | C33: 1
C34: River Width flood (Brf) m = | D34: 20
A35: River Width (Br) m = | B35: 8 | C35: ho flood m = | D35: 3
A36: Head/Critical Depth of u/s water (ho)m = | B36: 0.2264424341 | C36: vo flood m/s = | D36: 4
A37: Upstream water velocity (vo) m/s = | B37: 1.494 | C37: Design Discharge (Qd), m3/s = | D37: 2.7
A38: River gradient (i) degrees = | B38: 9.462 | C38: Trashrack witdth/diameter (t) mm = | D38: 60
A39: Trashrack gradient (b) deg = | B39: 36 | C39: Trashrack clearance (a) mm = | D39: 30
A40: Contraction coeff (m) = | B40: 0.85 | C40: Invert level of crest (masl) | D40: 500
A41: Aspect ratio (Length across the river/Breadth along the river) = | D41: 3.546468188
A43: Output
A44: c/c distance of trash rack bars d mm = | B44: =D38+D39 -> 90 | C44: Qo u/s of intake (m3/s) normal = | D44: =IF(C33=1,SQRT(9.81*B36^3*B35^2),B37*B35*B36) -> 2.699984137
A45: Total head (he) m = | B45: =B36+B37^2/2/9.81 -> 0.3402057369 | C45: Qu d/s of intake (m3/s) normal = | D45: =D44-D37 -> -1.586270549e-05
A46: kappa (c) = | B46: =-0.0000005*B39^3 + 0.0001*B39^2 - 0.0099*B39 + 0.9996 -> 0.749472 | C46: h d/s normal (m) | D46: =IF(D45<0,0,D45/D44*B36) -> 0
A47: velocity head (h) m = | B47: =IF(C33=1,3/4*B36,2/3*B46*B45) -> 0.1698318256 | C47: h flood u/s= | D47: =2/3*B46*(D35+D36^2/2/9.81) -> 1.906404143
A48: Correction factor ( c) = | B48: =0.6*D39/B44*(COS(B39*PI()/180))^1.5 -> 0.145534669 | C48: h d/s flood (m) | D48: =IF(D51<0,0,D51/D49*D47) -> 1.863540611
A49: Length of intake (L) m = | B49: =SQRT(3*D37/(2*B48*B40*D41*SQRT(2*9.81*B47))) -> 2.248833297 | C49: Qof u/s of intake = Br * hof * vof (m3/s) = | D49: =IF(C33=1,SQRT(9.81*D35^3*D34^2),D36*D35*D34) -> 325.4965438
A50: Length (L' ) m = | B50: =B49*COS(B39*PI()/180) -> 1.819344355 | C50: Q in flood m3/s = | D50: =2/3*B48*B40*B51*B50*SQRT(2*9.81*D47) -> 7.318454149
A51: Intake length across the river (b) m = | B51: =B49*D41 -> 7.975415747 | C51: Quf d/s of intake (m3/s) = | D51: =D49-D50 -> 318.1780896
A52: Area of intake (A=L' *b) m2 = | B52: =B49*B51 -> 17.93538049 | C52: =IF(C33=1,"","Critical depth Yc =") ->  | D52: =IF(C33=1,"",ROUND((D37^2/B35^2/9.81)^(1/3),3)) -> 
A54: Collection Chamber
A55: 1/Longitudinal slope | B55: 30 | C55: 1/Mannings coeff | D55: 50
A56: Horizontal projection of L' | B56: =B50*COS(PI()/180*B39) -> 1.471880502 | C56: Min velocity for flushing v min m/s | D56: =SQRT(32*D39/1000*(B57*1000/D39)^(1/3)) -> 
A57: Depth of water at the end for Qd h (m) | B57: =YDEPTH(D37,D55,B55,B56) ->  | C57: ="v act of "&ROUND(D37/B57/B56,2)&IF(D37/B57/B56>D56," > "," < ")&"v min of "&ROUND(D56,2)&IF(D37/B57/B56>D56," Ok"," Not Ok") -> 
A58: Min. freeboard (m) | B58: =0.25*B57 -> 

Sheet Diagrams
A1: Side Intake | C1: ="Orific ="&ROUND(SideIntake!B49,2)&"x"&ROUND(SideIntake!B61,2) -> Orific =1,1x20,41
A2: Spreadsheet developed by Mr. Pushpa Chitrakar, Engineering Advisor, SHPP/GTZ | B2: 0 | C2: 0
B3: 0 | C3: 300
B4: 500 | C4: =C3 -> 300
B5: 500 | C5: =SideIntake!B39*1000+C4 -> 1550
B6: =B5+300 -> 800 | C6: =C5 -> 1550
B7: =B6 -> 800 | C7: 300 | D7: ="Top ="&ROUND(SideIntake!$D$58+0.5+SideIntake!$B$40,2) -> Top =899,05
B8: =B7+1000 -> 1800 | C8: =C7 -> 300 | D8: =B8 -> 1800 | E8: =C10+SideIntake!B49*1000 -> 2650 | G8: ="Crest ="&ROUND(SideIntake!$B$66+SideIntake!$B$40,2) -> Crest =894,25 | H8: ="NWL ="&ROUND(SideIntake!$B$65+SideIntake!$B$40,2) -> NWL =894,15 | I8: ="HFL ="&ROUND(SideIntake!$D$58+SideIntake!$B$40,2) -> HFL =898,55 | K8: ="NWL ="&ROUND(SideIntake!$B$58+SideIntake!$B$40,2) -> NWL =893,1 | L8: ="HFL ="&ROUND(SideIntake!$D$62+SideIntake!$B$40,2) -> 
B9: =B8 -> 1800 | C9: =300+SideIntake!B50*1000 -> 1550 | D9: =D8 -> 1800 | E9: =800+SideIntake!D58*1000 -> 8695.969373 | F9: 0 | G9: =C3+SideIntake!B66*1000 -> 3900 | H9: =SideIntake!B65*1000+C3 -> 3800 | I9: =C3+SideIntake!D58*1000 -> 8195.969373 | J9: =$F$10+300 -> 2100 | K9: =C3+SideIntake!B58*1000 -> 2750 | L9: =C3+SideIntake!D62*1000 -> 
B10: =B9+300 -> 2100 | C10: =C9 -> 1550 | D10: =D9+300 -> 2100 | E10: =E9 -> 8695.969373 | F10: 1800 | G10: =G9 -> 3900 | H10: =H9 -> 3800 | I10: =I9 -> 8195.969373 | J10: =J9+1000 -> 3100 | K10: =K9 -> 2750 | L10: =L9 -> 
B11: =B10 -> 2100 | C11: =C3 -> 300 | D11: =D10 -> 2100 | E11: =E8 -> 2650
B12: =B11+1000 -> 3100 | C12: =C3 -> 300 | D12: =D9 -> 1800 | E12: =E8 -> 2650
B13: =B12 -> 3100 | C13: 0 | E13: ="Canal ="&ROUND(SideIntake!B40,2) -> Canal =890,65
B14: 0 | C14: 0 | D14: =B13 -> 3100 | E14: =C12 -> 300
D15: =D14+400 -> 3500 | E15: =E14 -> 300
B16: =MAX(C2:C14)-MIN(C2:C14) -> 1550 | C16: =MAX(B2:B14) -> 3100
A19: Bottom Intake
C20: ="Top ="&ROUND(BottomIntake!D40,2) -> Top =500 | E20: ="Top ="&ROUND(BottomIntake!D40-BottomIntake!B50*TAN(PI()/180*BottomIntake!B39),2) -> Top =498,68 | G20: ="NWL ="&ROUND(BottomIntake!D40+BottomIntake!B36,2) -> NWL =500,23 | H20: ="HFL ="&ROUND(BottomIntake!D40+BottomIntake!D47,2) -> HFL =501,91 | I20: Trashrack | K20: ="Width ="&ROUND(BottomIntake!B50,2) -> Width =1,82
B21: 0 | C21: 0 | D21: =1300+BottomIntake!$B$50*1000 -> 3119.344355 | E21: =C21 -> 0 | F21: 0 | G21: =BottomIntake!$B$36*1000+C23 -> 2048.273481 | H21: =BottomIntake!D35*1000+C23 -> 4821.831047 | I21: =B25 -> 1300 | J21: =C23 -> 1821.831047 | K21: =B24 -> 1300 | L21: 0
B22: 500 | C22: 0 | D22: =D21 -> 3119.344355 | E22: 500 | F22: 1300 | G22: =G21 -> 2048.273481 | H22: =BottomIntake!D47*1000+C23 -> 3728.23519 | I22: =D21 -> 3119.344355 | J22: =E22 -> 500 | K22: =D21 -> 3119.344355 | L22: 0
B23: 1000 | C23: =500+BottomIntake!$B$50*1000*TAN(PI()/180*BottomIntake!$B$39) -> 1821.831047 | D23: =D22+300 -> 3419.344355 | E23: =E22 -> 500 | F23: =D21 -> 3119.344355 | G23: =BottomIntake!D46*1000+E23 -> 500 | H23: =BottomIntake!D48*1000+E23 -> 2363.540611
B24: 1300 | C24: =C23 -> 1821.831047 | D24: =D23+300 -> 3719.344355 | E24: 0 | F24: =D23 -> 3419.344355 | G24: =G23 -> 500 | H24: =H23 -> 2363.540611
B25: =B24 -> 1300 | C25: 0 | D25: =D24+200 -> 3919.344355 | E25: 0 | F25: =D24 -> 3719.344355 | G25: =G24 -> 500 | H25: =H24 -> 2363.540611

Sheet HeadraceCanals
A1: Canal Design: Proposed design and optimum canal sections
A2: Small Hydropower Promotion Project (SHPP)/GTZ | C2: Spreadsheet by Mr Pushpa Chitrakar
A3: Referances: 6,12,13,15,16 | C3: Date | D3: =TODAY() -> 2012-07-20
A4: SMALL HYDROPOWER PROMOTION PROJECT/GTZ | C4: Revision | D4: 2006.05
A5: Project | B5: Sisne Small Hydropower Project
A6: Developer | B6: Gautam Buddha Hydropower P Ltd
A7: Consultant | B7: EPC Consult
A8: Designed | B8: Pushpa Chitrakar
A9: Checked | B9: Pushpa Chitrakar
A10: Input | I10: Sectional Profiles
A11: Type and Name | B11: Intake Canal | C11: Tailrace | D11: Main2 | E11: Main3 | I11: Semicircular
A12: Flow (m3/s) | B12: 0.185 | C12: 0.145 | D12: 0.145 | E12: 0.145 | I12: Rectangular
A13: Roughness coefficient (n) | B13: 0.02 | C13: 0.017 | D13: 0.02 | E13: 0.02 | I13: Triangular
A14: Sectional Profile | B14: Rectangular | C14: Trapezoidal | D14: Semicircular | E14: Triangular | I14: Trapezoidal
A15: Side slope N (1V:NHorizontal) | B15: 0 | C15: 0.5 | D15: 0 | E15: 0.5 | I15: Side Slope
A16: Length of the canal (m) | B16: 20 | C16: 40 | D16: 150 | E16: 120 | I16: Lined/vertical | J16: 0
A17: 1/Canal slope (s) | B17: 77 | C17: 200 | D17: 30 | E17: 72 | I17: Unlined fissured/disintegrated rock/tough hardpen cut | J17: 0.5
A18: Channel Depth/diameter D (m) | B18: 0.3 | C18: 0.525 | D18: 0.3 | E18: 0.3 | I18: Unlined cemented gravel/stiff clay/ordinary hardpan cut | J18: 0.75
A19: Freeboard FB (m) | B19: 0.3 | C19: 0.25 | D19: 0.15 | E19: 0.15 | I19: Unlined firm/gravelyl/clay/side hill c/s in average loam cut | J19: 1
A20: Channel Width (B) m | B20: 0.5 | C20: 1 | D20: 0.4 | E20: 0.4 | I20: Unlined cuts/fills in average loam or gravelly loam | J20: 1.5
A21: Channel Drops di m | B21: 0 | C21: 0 | D21: 0 | E21: 0 | I21: Unlined cuts/fills in loose sandy loam | J21: 2
A22: Channel Drops Horizontal length hi m | B22: 0 | C22: 0 | D22: 0 | E22: 0 | I22: Unlined cuts/fills in very sandy soil | J22: 3
A23: Desired velocity Vo (m/s) | B23: 1 | C23: 1.5 | D23: 1.5 | E23: 1.5
I25: Manningís n for headrace channel.
A26: Output | I26: Unlined Clean | J26: 0.022
A27: Side slope d (degrees) | B27: =IF(OR(UPPER(B14)="TRAPEZOIDAL",UPPER(B14)="TRIANGULAR"),DEGREES(ATAN(1/B15)),0) -> 0 | C27: =IF(OR(UPPER(C14)="TRAPEZOIDAL",UPPER(C14)="TRIANGULAR"),DEGREES(ATAN(1/C15)),0) ->  | D27: =IF(OR(UPPER(D14)="TRAPEZOIDAL",UPPER(D14)="TRIANGULAR"),DEGREES(ATAN(1/D15)),0) -> 0 | E27: =IF(OR(UPPER(E14)="TRAPEZOIDAL",UPPER(E14)="TRIANGULAR"),DEGREES(ATAN(1/E15)),0) ->  | I27: Unlined Gravelly | J27: 0.025
A28: Canal slope S | B28: =1/B17 -> 0.01298701299 | C28: =1/C17 -> 0.005 | D28: =1/D17 -> 0.03333333333 | E28: =1/E17 -> 0.01388888889 | I28: Unlined Weedy | J28: 0.03
A29: Total depth H (m) | B29: =B18+B19 -> 0.6 | C29: =C18+C19 -> 0.775 | D29: =D18+D19 -> 0.45 | E29: =E18+E19 -> 0.45 | I29: Unlined Stony, cobbles (or natural streams) | J29: 0.035
A30: Chainage L (m) | B30: =IF(OR(UPPER($B$5)="DIFFERENT PROJECTS",$B$5=""),B16+B22,IF(ISERROR(A30+B16+B22),B16+B22,A30+B16+B22)) -> 20 | C30: =IF(UPPER($B$5)="DIFFERENT PROJECTS",C16+C22,IF(ISERROR(B30+C16+C22),C16+C22,B30+C16+C22)) -> 60 | D30: =IF(UPPER($B$5)="DIFFERENT PROJECTS",D16+D22,IF(ISERROR(C30+D16+D22),D16+D22,C30+D16+D22)) -> 210 | E30: =IF(UPPER($B$5)="DIFFERENT PROJECTS",E16+E22,IF(ISERROR(D30+E16+E22),E16+E22,D30+E16+E22)) -> 330 | I30: Lined Brass | J30: 0.011
I31: Lined Steel, smooth | J31: 0.012
A32: Present canal | I32: Lined Steel, painted | J32: 0.014
A33: Area A m2 | B33: =IF(UPPER(B14)="SEMICIRCULAR",PI()*B18^2/4/2,IF(UPPER(B14)="TRAPEZOIDAL",(B20+B15*B18)*B18,IF(UPPER(B14)="RECTANGULAR",B18*B20,B18*B20/2))) -> 0.15 | C33: =IF(UPPER(C14)="SEMICIRCULAR",PI()*C18^2/4/2,IF(UPPER(C14)="TRAPEZOIDAL",(C20+C15*C18)*C18,IF(UPPER(C14)="RECTANGULAR",C18*C20,C18*C20/2))) ->  | D33: =IF(UPPER(D14)="SEMICIRCULAR",PI()*D18^2/4/2,IF(UPPER(D14)="TRAPEZOIDAL",(D20+D15*D18)*D18,IF(UPPER(D14)="RECTANGULAR",D18*D20,D18*D20/2))) -> 0.03534291735 | E33: =IF(UPPER(E14)="SEMICIRCULAR",PI()*E18^2/4/2,IF(UPPER(E14)="TRAPEZOIDAL",(E20+E15*E18)*E18,IF(UPPER(E14)="RECTANGULAR",E18*E20,E18*E20/2))) -> 0.06 | I33: Lined Cast iron | J33: 0.013
A34: Top Width T (m) | B34: =IF(UPPER(B14)="TRAPEZOIDAL",(B20+2*B18*B15),B20) -> 0.5 | C34: =IF(UPPER(C14)="TRAPEZOIDAL",(C20+2*C18*C15),C20) ->  | D34: =IF(UPPER(D14)="TRAPEZOIDAL",(D20+2*D18*D15),D20) -> 0.4 | E34: =IF(UPPER(E14)="TRAPEZOIDAL",(E20+2*E18*E15),E20) -> 0.4 | I34: Lined Concrete, well finished | J34: 0.012
A35: Wetted Perimeter P (m) | B35: =IF(UPPER(B14)="SEMICIRCULAR",PI()*B18/2,IF(UPPER(B14)="TRAPEZOIDAL",B20+2*B18*SQRT(1+B15^2),IF(UPPER(B14)="RECTANGULAR",2*B18+B20,2*B18*SQRT(1+B15^2)))) -> 1.1 | C35: =IF(UPPER(C14)="SEMICIRCULAR",PI()*C18/2,IF(UPPER(C14)="TRAPEZOIDAL",C20+2*C18*SQRT(1+C15^2),IF(UPPER(C14)="RECTANGULAR",2*C18+C20,2*C18*SQRT(1+C15^2)))) ->  | D35: =IF(UPPER(D14)="SEMICIRCULAR",PI()*D18/2,IF(UPPER(D14)="TRAPEZOIDAL",D20+2*D18*SQRT(1+D15^2),IF(UPPER(D14)="RECTANGULAR",2*D18+D20,2*D18*SQRT(1+D15^2)))) -> 0.471238898 | E35: =IF(UPPER(E14)="SEMICIRCULAR",PI()*E18/2,IF(UPPER(E14)="TRAPEZOIDAL",E20+2*E18*SQRT(1+E15^2),IF(UPPER(E14)="RECTANGULAR",2*E18+E20,2*E18*SQRT(1+E15^2)))) ->  | I35: Lined Concrete, unfinished | J35: 0.014
A36: Hydraulic Radius r (m) | B36: =B33/B35 -> 0.1363636364 | C36: =C33/C35 ->  | D36: =D33/D35 -> 0.075 | E36: =E33/E35 ->  | I36: Lined Planed wood | J36: 0.012
A37: Calculated flow (m3/s) & remarks | B37: =IF(B33*B36^(2/3)*B28^0.5/B13<B12,ROUND(B33*B36^(2/3)*B28^0.5/B13,3)&" low",IF(B33*B36^(2/3)*B28^0.5/B13>B12,ROUND(B33*B36^(2/3)*B28^0.5/B13,3)&" high",B33*B36^(2/3)*B28^0.5/B13)) ->  | C37: =IF(C33*C36^(2/3)*C28^0.5/C13<C12,ROUND(C33*C36^(2/3)*C28^0.5/C13,3)&" low",IF(C33*C36^(2/3)*C28^0.5/C13>C12,ROUND(C33*C36^(2/3)*C28^0.5/C13,3)&" high",C33*C36^(2/3)*C28^0.5/C13)) ->  | D37: =IF(D33*D36^(2/3)*D28^0.5/D13<D12,ROUND(D33*D36^(2/3)*D28^0.5/D13,3)&" low",IF(D33*D36^(2/3)*D28^0.5/D13>D12,ROUND(D33*D36^(2/3)*D28^0.5/D13,3)&" high",D33*D36^(2/3)*D28^0.5/D13)) ->  | E37: =IF(E33*E36^(2/3)*E28^0.5/E13<E12,ROUND(E33*E36^(2/3)*E28^0.5/E13,3)&" low",IF(E33*E36^(2/3)*E28^0.5/E13>E12,ROUND(E33*E36^(2/3)*E28^0.5/E13,3)&" high",E33*E36^(2/3)*E28^0.5/E13)) ->  | I37: Lined Clay tile | J37: 0.014
A38: Comment on freeboard | B38: =IF(B19<B52,"low ","ok") -> ok | C38: =IF(C19<C52,"low ","ok") -> low | D38: =IF(D19<D52,"low ","ok") -> ok | E38: =IF(E19<E52,"low ","ok") -> ok | I38: Lined Brickwork | J38: 0.015
A39: Velocity V m/s | B39: =B12/B33 -> 1.233333333 | C39: =C12/C33 ->  | D39: =D12/D33 -> 4.102660755 | E39: =E12/E33 -> 2.416666667 | I39: Lined Asphalt | J39: 0.016
A40: Critical Velocity Vc m/s & Remarks | B40: =IF(B39<0.8*SQRT(B33*9.81/B34),ROUND(SQRT(B33*9.81/B34),2)&" Ok",ROUND(SQRT(B33*9.81/B34),2)&" Not Ok") -> 1,72 Ok | C40: =IF(C39<0.8*SQRT(C33*9.81/C34),ROUND(SQRT(C33*9.81/C34),2)&" Ok",ROUND(SQRT(C33*9.81/C34),2)&" Not Ok") ->  | D40: =IF(D39<0.8*SQRT(D33*9.81/D34),ROUND(SQRT(D33*9.81/D34),2)&" Ok",ROUND(SQRT(D33*9.81/D34),2)&" Not Ok") -> 0,93 Not Ok | E40: =IF(E39<0.8*SQRT(E33*9.81/E34),ROUND(SQRT(E33*9.81/E34),2)&" Ok",ROUND(SQRT(E33*9.81/E34),2)&" Not Ok") -> 1,21 Not Ok | I40: Lined Corrugated metal | J40: 0.022
A41: Headloss hl (m) | B41: =B28*B16+B21 -> 0.2597402597 | C41: =C28*C16+C21 -> 0.2 | D41: =D28*D16+D21 -> 5 | E41: =E28*E16+E21 -> 1.666666667 | I41: Lined Rubble masonry | J41: 0.025
A42: Total headloss Hl(m) | B42: =IF(ISERROR(A42+B41),B41,A42+B41) -> 0.2597402597 | C42: =IF(ISERROR(B42+C41),C41,B42+C41) -> 0.4597402597 | D42: =IF(ISERROR(C42+D41),D41,C42+D41) -> 5.45974026 | E42: =IF(ISERROR(D42+E41),E41,D42+E41) -> 7.126406926 | I42: Lined Stonemasonry | J42: 0.02
A43: Critical dia of sediment d crit (mm) | B43: =11000*B36*B28 -> 19.48051948 | C43: =11000*C36*C28 ->  | D43: =11000*D36*D28 -> 27.5 | E43: =11000*E36*E28 ->  | I43: Plastered Stone masonry | J43: 0.017
A46: Optimum canal
A47: Area Ao m2 | B47: =B12/B23 -> 0.185 | C47: =C12/C23 -> 0.09666666667 | D47: =D12/D23 -> 0.09666666667 | E47: =E12/E23 -> 0.09666666667
A48: Top Width T (m) | B48: =IF(UPPER(B14)="TRAPEZOIDAL",(B54+2*B51*B15),B54) -> 0.6021627687 | C48: =IF(UPPER(C14)="TRAPEZOIDAL",(C54+2*C51*C15),C54) ->  | D48: =IF(UPPER(D14)="TRAPEZOIDAL",(D54+2*D51*D15),D54) -> 0.9949204323 | E48: =IF(UPPER(E14)="TRAPEZOIDAL",(E54+2*E51*E15),E54) -> 
A49: Critical Velocity Vc m/s & Remarks | B49: =ROUND(SQRT(B47*9.81/B48),2)&IF(B23<0.8*SQRT(B47*9.81/B48)," Ok"," Not Ok") -> 1,74 Ok | C49: =ROUND(SQRT(C47*9.81/C48),2)&IF(C23<0.8*SQRT(C47*9.81/C48)," Ok"," Not Ok") ->  | D49: =ROUND(SQRT(D47*9.81/D48),2)&IF(D23<0.8*SQRT(D47*9.81/D48)," Ok"," Not Ok") -> 0,98 Not Ok | E49: =ROUND(SQRT(E47*9.81/E48),2)&IF(E23<0.8*SQRT(E47*9.81/E48)," Ok"," Not Ok") -> 
A50: Hydraulic Radius ro (m) | B50: =IF(UPPER(B14)="SEMICIRCULAR",0.4*SQRT(B47),IF(UPPER(B14)="TRAPEZOIDAL",0.5*SQRT(SIN(PI()*B27/180)*B47/(2-COS(PI()*B27/180))),0.35*SQRT(B47))) -> 0.1505406922 | C50: =IF(UPPER(C14)="SEMICIRCULAR",0.4*SQRT(C47),IF(UPPER(C14)="TRAPEZOIDAL",0.5*SQRT(SIN(PI()*C27/180)*C47/(2-COS(PI()*C27/180))),0.35*SQRT(C47))) ->  | D50: =IF(UPPER(D14)="SEMICIRCULAR",0.4*SQRT(D47),IF(UPPER(D14)="TRAPEZOIDAL",0.5*SQRT(SIN(PI()*D27/180)*D47/(2-COS(PI()*D27/180))),0.35*SQRT(D47))) -> 0.124365054 | E50: =IF(UPPER(E14)="SEMICIRCULAR",0.4*SQRT(E47),IF(UPPER(E14)="TRAPEZOIDAL",0.5*SQRT(SIN(PI()*E27/180)*E47/(2-COS(PI()*E27/180))),0.35*SQRT(E47))) -> 0.1088194223
A51: Channel Depth/diameter Do (m) | B51: =IF(UPPER(B14)="SEMICIRCULAR",4*B50,IF(UPPER(B14)="TRAINGULAR",2.8*B50,2*B50)) -> 0.3010813843 | C51: =IF(UPPER(C14)="SEMICIRCULAR",4*C50,IF(UPPER(C14)="TRAINGULAR",2.8*C50,2*C50)) ->  | D51: =IF(UPPER(D14)="SEMICIRCULAR",4*D50,IF(UPPER(D14)="TRAINGULAR",2.8*D50,2*D50)) -> 0.4974602162 | E51: =IF(UPPER(E14)="SEMICIRCULAR",4*E50,IF(UPPER(E14)="TRAINGULAR",2.8*E50,2*E50)) -> 0.2176388446
A52: Freeboard Fbo (m) | B52: =MIN(0.5*B18, 0.3) -> 0.15 | C52: =MIN(0.5*C18, 0.3) -> 0.2625 | D52: =MIN(0.5*D18, 0.3) -> 0.15 | E52: =MIN(0.5*E18, 0.3) -> 0.15
A53: Total depth Ho (m) | B53: =B51+B52 -> 0.4510813843 | C53: =C51+C52 ->  | D53: =D51+D52 -> 0.6474602162 | E53: =E51+E52 -> 0.3676388446
A54: Channel Width Bo (m) | B54: =IF(UPPER(B14)="SEMICIRCULAR",2*B51,IF(UPPER(B14)="RECTANGULAR",4*B50,IF(UPPER(B14)="TRAINGULAR",5.7*B50,4*B50/SIN(PI()*B27/180)))) -> 0.6021627687 | C54: =IF(UPPER(C14)="SEMICIRCULAR",2*C51,IF(UPPER(C14)="RECTANGULAR",4*C50,IF(UPPER(C14)="TRAINGULAR",5.7*C50,4*C50/SIN(PI()*C27/180)))) ->  | D54: =IF(UPPER(D14)="SEMICIRCULAR",2*D51,IF(UPPER(D14)="RECTANGULAR",4*D50,IF(UPPER(D14)="TRAINGULAR",5.7*D50,4*D50/SIN(PI()*D27/180)))) -> 0.9949204323 | E54: =IF(UPPER(E14)="SEMICIRCULAR",2*E51,IF(UPPER(E14)="RECTANGULAR",4*E50,IF(UPPER(E14)="TRAINGULAR",5.7*E50,4*E50/SIN(PI()*E27/180)))) -> 
A55: Canal Slope | B55: =B23^2*B13^2/B50^(4/3) ->  | C55: =C23^2*C13^2/C50^(4/3) ->  | D55: =D23^2*D13^2/D50^(4/3) ->  | E55: =E23^2*E13^2/E50^(4/3) -> 
A56: Headloss hlo (m) | B56: =B55*B16+B21 ->  | C56: =C55*C16+C21 ->  | D56: =D55*D16+D21 ->  | E56: =E55*E16+E21 -> 
A57: Total headloss Hlo(m) | B57: =IF(ISERROR(A57+B56),B56,A57+B56) ->  | C57: =IF(ISERROR(B57+C56),C56,B57+C56) ->  | D57: =IF(ISERROR(C57+D56),D56,C57+D56) ->  | E57: =IF(ISERROR(D57+E56),E56,D57+E56) -> 
A58: Critical dia of sediment d crito (mm) | B58: =11000*B50*B55 ->  | C58: =11000*C50*C55 ->  | D58: =11000*D50*D55 ->  | E58: =11000*E50*E55 -> 
B60: =IF(UPPER(B14)="RECTANGULAR","B = "&ROUND(B20,3)&" & "&ROUND(B48,3),"") -> B = 0,5 & 0,602 | C60: =IF(UPPER(C14)="RECTANGULAR","B = "&ROUND(C20,3)&" & "&ROUND(C48,3),"") ->  | D60: =IF(UPPER(D14)="RECTANGULAR","B = "&ROUND(D20,3)&" & "&ROUND(D48,3),"") ->  | E60: =IF(UPPER(E14)="RECTANGULAR","B = "&ROUND(E20,3)&" & "&ROUND(E48,3),"") -> 
B61: =IF(UPPER(B14)="RECTANGULAR","D = "&ROUND(B18+B19,3)&" & "&ROUND(B51+B52,3),"") -> D = 0,6 & 0,451 | C61: =IF(UPPER(C14)="RECTANGULAR","D = "&ROUND(C18+C19,3)&" & "&ROUND(C51+C52,3),"") ->  | D61: =IF(UPPER(D14)="RECTANGULAR","D = "&ROUND(D18+D19,3)&" & "&ROUND(D51+D52,3),"") ->  | E61: =IF(UPPER(E14)="RECTANGULAR","D = "&ROUND(E18+E19,3)&" & "&ROUND(E51+E52,3),"") -> 
B62: =IF(UPPER(B14)="RECTANGULAR","d & FB ("&ROUND(B18,3)&" & "&ROUND(B19,3)&") & ("&ROUND(B51,3)&" & "&ROUND(B52,3)&")","") -> d & FB (0,3 & 0,3) & (0,301 & 0,15) | C62: =IF(UPPER(C14)="RECTANGULAR","d & FB ("&ROUND(C18,3)&" & "&ROUND(C19,3)&") & ("&ROUND(C51,3)&" & "&ROUND(C52,3)&")","") ->  | D62: =IF(UPPER(D14)="RECTANGULAR","d & FB ("&ROUND(D18,3)&" & "&ROUND(D19,3)&") & ("&ROUND(D51,3)&" & "&ROUND(D52,3)&")","") ->  | E62: =IF(UPPER(E14)="RECTANGULAR","d & FB ("&ROUND(E18,3)&" & "&ROUND(E19,3)&") & ("&ROUND(E51,3)&" & "&ROUND(E52,3)&")","") -> 
B63: =IF(UPPER(B14)="TRAPEZOIDAL","B = "&ROUND(B20,3)&" & "&ROUND(B48,3),"") ->  | C63: =IF(UPPER(C14)="TRAPEZOIDAL","B = "&ROUND(C20,3)&" & "&ROUND(C48,3),"") ->  | D63: =IF(UPPER(D14)="TRAPEZOIDAL","B = "&ROUND(D20,3)&" & "&ROUND(D48,3),"") ->  | E63: =IF(UPPER(E14)="TRAPEZOIDAL","B = "&ROUND(E20,3)&" & "&ROUND(E48,3),"") -> 
B64: =IF(UPPER(B14)="TRAPEZOIDAL","D = "&ROUND(B18+B19,3)&" & "&ROUND(B51+B52,3),"") ->  | C64: =IF(UPPER(C14)="TRAPEZOIDAL","D = "&ROUND(C18+C19,3)&" & "&ROUND(C51+C52,3),"") ->  | D64: =IF(UPPER(D14)="TRAPEZOIDAL","D = "&ROUND(D18+D19,3)&" & "&ROUND(D51+D52,3),"") ->  | E64: =IF(UPPER(E14)="TRAPEZOIDAL","D = "&ROUND(E18+E19,3)&" & "&ROUND(E51+E52,3),"") -> 
B65: =IF(UPPER(B14)="TRAPEZOIDAL","d & FB ("&ROUND(B18,3)&" & "&ROUND(B19,3)&") & ("&ROUND(B51,3)&" & "&ROUND(B52,3)&")","") ->  | C65: =IF(UPPER(C14)="TRAPEZOIDAL","d & FB ("&ROUND(C18,3)&" & "&ROUND(C19,3)&") & ("&ROUND(C51,3)&" & "&ROUND(C52,3)&")","") ->  | D65: =IF(UPPER(D14)="TRAPEZOIDAL","d & FB ("&ROUND(D18,3)&" & "&ROUND(D19,3)&") & ("&ROUND(D51,3)&" & "&ROUND(D52,3)&")","") ->  | E65: =IF(UPPER(E14)="TRAPEZOIDAL","d & FB ("&ROUND(E18,3)&" & "&ROUND(E19,3)&") & ("&ROUND(E51,3)&" & "&ROUND(E52,3)&")","") -> 
B67: =IF(UPPER(B14)="SEMICIRCULAR","B = "&ROUND(B20,3)&" & "&ROUND(B48,3),"") ->  | C67: =IF(UPPER(C14)="SEMICIRCULAR","B = "&ROUND(C20,3)&" & "&ROUND(C48,3),"") ->  | D67: =IF(UPPER(D14)="SEMICIRCULAR","B = "&ROUND(D20,3)&" & "&ROUND(D48,3),"") -> B = 0,4 & 0,995 | E67: =IF(UPPER(E14)="SEMICIRCULAR","B = "&ROUND(E20,3)&" & "&ROUND(E48,3),"") -> 
B68: =IF(UPPER(B14)="SEMICIRCULAR","D = "&ROUND(B18+B19,3)&" & "&ROUND(B51+B52,3),"") ->  | C68: =IF(UPPER(C14)="SEMICIRCULAR","D = "&ROUND(C18+C19,3)&" & "&ROUND(C51+C52,3),"") ->  | D68: =IF(UPPER(D14)="SEMICIRCULAR","D = "&ROUND(D18+D19,3)&" & "&ROUND(D51+D52,3),"") -> D = 0,45 & 0,647 | E68: =IF(UPPER(E14)="SEMICIRCULAR","D = "&ROUND(E18+E19,3)&" & "&ROUND(E51+E52,3),"") -> 
B70: =IF(UPPER(B14)="SEMICIRCULAR","d & FB ("&ROUND(B18,3)&" & "&ROUND(B19,3)&") & ("&ROUND(B51,3)&" & "&ROUND(B52,3)&")","") ->  | C70: =IF(UPPER(C14)="SEMICIRCULAR","d & FB ("&ROUND(C18,3)&" & "&ROUND(C19,3)&") & ("&ROUND(C51,3)&" & "&ROUND(C52,3)&")","") ->  | D70: =IF(UPPER(D14)="SEMICIRCULAR","d & FB ("&ROUND(D18,3)&" & "&ROUND(D19,3)&") & ("&ROUND(D51,3)&" & "&ROUND(D52,3)&")","") -> d & FB (0,3 & 0,15) & (0,497 & 0,15) | E70: =IF(UPPER(E14)="SEMICIRCULAR","d & FB ("&ROUND(E18,3)&" & "&ROUND(E19,3)&") & ("&ROUND(E51,3)&" & "&ROUND(E52,3)&")","") -> 
B72: =IF(UPPER(B14)="TRIANGULAR","B = "&ROUND(B20,3)&" & "&ROUND(B48,3),"") ->  | C72: =IF(UPPER(C14)="TRIANGULAR","B = "&ROUND(C20,3)&" & "&ROUND(C48,3),"") ->  | D72: =IF(UPPER(D14)="TRIANGULAR","B = "&ROUND(D20,3)&" & "&ROUND(D48,3),"") ->  | E72: =IF(UPPER(E14)="TRIANGULAR","B = "&ROUND(E20,3)&" & "&ROUND(E48,3),"") -> 
B73: =IF(UPPER(B14)="TRIANGULAR","D = "&ROUND(B18+B19,3)&" & "&ROUND(B51+B52,3),"") ->  | C73: =IF(UPPER(C14)="TRIANGULAR","D = "&ROUND(C18+C19,3)&" & "&ROUND(C51+C52,3),"") ->  | D73: =IF(UPPER(D14)="TRIANGULAR","D = "&ROUND(D18+D19,3)&" & "&ROUND(D51+D52,3),"") ->  | E73: =IF(UPPER(E14)="TRIANGULAR","D = "&ROUND(E18+E19,3)&" & "&ROUND(E51+E52,3),"") -> D = 0,45 & 0,368
C77: =IF(UPPER(C14)="TRIANGULAR","d & FB ("&ROUND(C18,3)&" & "&ROUND(C19,3)&") & ("&ROUND(C51,3)&" & "&ROUND(C52,3)&")","") -> 

Sheet HeadracePipe
C1: HEADRACE PIPE CALCULATIONS
A2: Small Hydropower Promotion Project (SHPP)/GTZ | F2: Spreadsheet by Mr Pushpa Chitrakar
A3: Referances: 2,4, 6,12,13,15,16 | F3: Date | G3: =TODAY() -> 2012-07-20
A4: SMALL HYDROPOWER PROMOTION PROJECT/GTZ | F4: Revision | G4: 2006.05
A5: Project: | B5: =Hydrology!B5 -> Upper Jogmai SHP | D5: Location: | E5: Jogmai
A6: Developer | B6: Kankaimai Hydropower P Ltd
A7: Consultant | B7: EPC Consult
A8: Designed | B8: Pushpa Chitrakar
A9: Checked | B9: Pushpa Chitrakar
A11: INPUT
G13: Economic life (years) | H13: 15
K14: Valves & Coeff
A15: Hydraulics: | K15: Spherical/No valves | L15: 0
A16: Diversion flow Qd (m3/s) | D16: 0.16 | G16: U/S Invert Level (m) | H16: 1950 | K16: Gate | L16: 0.1
A17: Flow in each pipe Qi (m3/s) | D17: =D16/H23 -> 0.16 | G17: % head available or headloss hlt (m) | H17: 0.95 | K17: Butterfly | L17: 0.3
A18: Gross headHg (m) | D18: 7 | G18: Entrance Type | H18: 0.8
G19: Bending radius (r/d) | H19: 0.3
K20: Yes
A21: Headrace pipe | K21: No
A22: Pipe Material | D22: HDPE | G22: Exit (Yes/No) | H22: Yes
A23: Welded / Flat rolled if steel | D23: NA | G23: No of pipes | H23: 1 | K23: Pipe type
A24: Rolled if steel | D24: NA | G24: Bending angle 01 | H24: 20 | K24: Steel
A25: Type if steel | D25: NA | G25: Bending angle 02 | H25: 4 | K25: HDPE
A26: Burried or exposed | D26: Burried | G26: Bending angle 03 | H26: 6 | K26: PVC
A27: Type of valve | D27: 0 | G27: Bending angle 04 | H27: 20
A28: Non standard ultimate tensile strength (UTS) N/mm2 | D28: 0 | G28: Bending angle 05 | K28: Steel
A29: Estimated pipe diameter d(mm) | D29: =41*(D17*1000)^0.38 -> 282.0651624 | G29: Bending angle 06 | K29: Welded
A30: Provided pipe diameter d(mm) | D30: 260 | G30: Bending angle 07 | K30: Flat rolled
A31: Min pipe thickness t (mm) | D31: =IF(UPPER(D22)="STEEL",MAX(3,2.5*MAX(D33)/1000+1.2),"NA") -> NA | G31: Bending angle 08 | K31: NA
A32: Provided pipe thickness t (mm) | D32: 3 | G32: Bending angle 09 | K32: Steel
A33: Pipe Length L (m) | D33: 140 | G33: Bending angle 10 | K33: Rolled
K34: NA
A35: Trashrack | K35: Steel type
A36: k | B36: t | C36: b | D36: Vo | E36: f | F36: b | G36: Q | H36: H | K36: Ungraded
A37: 2.4 | B37: 6 | C37: 20 | D37: 1 | E37: 60 | F37: 0 | G37: =D16 -> 0.16 | H37: 3 | K37: IS
K38: NA
A39: Expansion Joints | K39: Installation
A40: Tmax (deg) | B40: T installation | C40: Tmin | D40: 1st Pipe length(m) | E40: 2nd Pipe L (m) | F40: 3rd Pipe L (m) | G40: 4th Pipe L (m) | H40: 5th Pipe L (m) | K40: Burried
A41: 40 | B41: 20 | C41: 4 | D41: 50 | E41: 100 | F41: 150 | G41: 200 | H41: 250 | K41: Exposed
A43: OUTPUT | K43: Entrance #
A44: Trashrack | K44: Hooded | L44: 1
A45: hf | B45: hb | C45: H coeff | D45: H | E45: S | F45: B | G45: Min Submergence | H45: CGL=1.5v^2/2g | K45: Inward projecting | L45: 0.8
A46: =A37*(B37/C37)^(4/3)*(D37^2/2/9.81)*SIN(PI()/180*E37) -> 0.0212750804 | B46: =(D37^2/2/9.81)*SIN(PI()/180*F37) -> 0 | C46: =A37*(B37/C37)^(4/3)*SIN(PI()/180*E37)+SIN(PI()/180*F37) -> 0.4174170774 | D46: =B46+A46 -> 0.0212750804 | E46: =1/0.3*(B37+C37)/C37*G37/D37*1/SIN(PI()/180*E37) -> 0.8005923733 | F46: =E46/(H37/SIN(PI()*E37/180)) -> 0.2311111111 | G46: =D30/1000*(1+2.3*D59/SQRT(9.81*D30/1000)) -> 1.38794687 | H46: =1.5*D59^2/9.81/2 -> 0.6937604382 | K46: Sharp cornered | L46: 0.5
K47: Slightly rounded | L47: 0.2
K48: Bell mouth | L48: 0.04
A49: Turbulent loss coefficients
A50: K inlet | B50: =H18 -> 0.8 | D50: K bend 05 | E50: =IF(H28=0,0,FORECAST(H28,{0.5,0.75,1},{20,45,90})*H$19) -> 0 | G50: K bend 10 | H50: =IF(H33=0,0,FORECAST(H33,{0.5,0.75,1},{20,45,90})*H$19) -> 0 | K50: Bending Radius & Coeff
A51: K bend 01 | B51: =IF(H24=0,0,FORECAST(H24,{0.5,0.75,1},{20,45,90})*H$19) -> 0.1589403974 | D51: K bend 06 | E51: =IF(H29=0,0,FORECAST(H29,{0.5,0.75,1},{20,45,90})*H$19) -> 0 | G51: K valve | H51: =D27 -> 0 | K51: 1 | L51: 0.6
A52: K bend 02 | B52: =IF(H25=0,0,FORECAST(H25,{0.5,0.75,1},{20,45,90})*H$19) -> 0.1255629139 | D52: K bend 07 | E52: =IF(H30=0,0,FORECAST(H30,{0.5,0.75,1},{20,45,90})*H$19) -> 0 | G52: K exit | H52: =IF(UPPER(H22)="YES",1,0) -> 1 | K52: 2 | L52: 0.5
A53: K bend 03 | B53: =IF(H26=0,0,FORECAST(H26,{0.5,0.75,1},{20,45,90})*H$19) -> 0.1297350993 | D53: K bend 08 | E53: =IF(H31=0,0,FORECAST(H31,{0.5,0.75,1},{20,45,90})*H$19) -> 0 | G53: K others | K53: 3 | L53: 0.4
A54: K bend 04 | B54: =IF(H27=0,0,FORECAST(H27,{0.5,0.75,1},{20,45,90})*H$19) -> 0.1589403974 | D54: K bend 09 | E54: =IF(H32=0,0,FORECAST(H32,{0.5,0.75,1},{20,45,90})*H$19) -> 0 | G54: K Total | H54: =SUM(B50:B54,E50:E54,H50:H53) -> 2.373178808 | K54: 5 | L54: 0.3
K55: 1.5 | L55: 0.45
A56: Hydraulics
A57: Pipe Area A (m2) | D57: =((D30/1000)^2*22)/28 -> 0.05311428571 | G57: U/S Invert Level (mAOD) | H57: =H16 -> 1950 | K57: Trashrack Coeff
A58: Hydraulic Radius R (m) | D58: =(D30/1000)/4 -> 0.065 | G58: D/S Invert Level (mAOD) | H58: =H57-$D$18 -> 1943 | K58: Cross section | L58: k
A59: Velocity V (m/s) | D59: =$D$17/D57 -> 3.012372243 | G59: Is HL tot < HL available | H59: =IF(H63<$H$17*$D$18,"OKAY","Use bigger pipe") -> OKAY | K59: Flat | L59: 2.4
A60: Pipe Roughness ks (mm) | D60: 0.06 | G60: Friction Losses hf (m) | H60: =(D64*D33*D59^2)/(8*9.81*D58) -> 3.820579223 | K60: Round/Rounded front | L60: 1.8
A61: Relative Roughness ks/d | D61: =D60/D30 -> 0.0002307692308 | G61: Fitting Losses hfit (m) | H61: =($H$54*D59^2)/(2*9.81) -> 1.097611713 | K61: Tipped back | L61: 1.7
A62: Reynolds Number Re = d V /Vk | D62: =(D59*(D30/1000))/0.00000114 -> 687032.266 | G62: Trashracks and intake loss (m) | H62: =D46 -> 0.0212750804 | K62: Both end rounded | L62: 1
A63: Type of Flow | D63: =IF(D62<2000,"Laminar",IF(D62>4000,"Turbulent","Transitional")) -> Turbulent | G63: Total Head Loss htot individual (m) | H63: =H61+H60+H62 -> 4.939466017 | K63: Tipped section | L63: 0.8
A64: Friction Factor f | D64: =IF(D63="Laminar",L76,L79) -> 0.01534109116 | G64: % of H.Loss of individual pipe | H64: =IF(H63>$H$17*$D$18,ROUND(H63/($D$18)*100,2)&"% Not Ok",ROUND(H63/($D$18)*100,2)&"% Ok") -> 70,56% Ok | K64: No Trashrack | L64: 0
A65: Expansion Joints (mm) | D65: =IF(UPPER(D22)="HDPE","","Coeff of linear expansion /deg C") ->  | E65: =IF(UPPER(D22)="STEEL",12,IF(UPPER(D22)="PVC",54,0))*0.000001 -> 0
A66: EJ number | B66: 1 | C66: 2 | D66: 2 | E66: 4 | F66: 5 | K66: K contraction
A67: dL theoretical | B67: =$E$65*($A$41-$C$41)*D41*1000 -> 0 | C67: =$E$65*($A$41-$C$41)*E41*1000 -> 0 | D67: =$E$65*($A$41-$C$41)*F41*1000 -> 0 | E67: =$E$65*($A$41-$C$41)*G41*1000 -> 0 | F67: =$E$65*($A$41-$C$41)*H41*1000 -> 0 | K67: d l/ d s | L67: Kc
A68: dL recommended | B68: =2*B67 -> 0 | C68: =2*C67 -> 0 | D68: =2*D67 -> 0 | E68: =2*E67 -> 0 | F68: =2*F67 -> 0 | K68: 0
A69: dL for expansion | B69: =2*$E$65*($A$41-$B$41)*D41*1000 -> 0 | C69: =2*$E$65*($A$41-$B$41)*E41*1000 -> 0 | D69: =2*$E$65*($A$41-$B$41)*F41*1000 -> 0 | E69: =2*$E$65*($A$41-$B$41)*G41*1000 -> 0 | F69: =2*$E$65*($A$41-$B$41)*H41*1000 -> 0 | K69: 1 | L69: 0
A70: dL for contraction | B70: =B68-B69 -> 0 | C70: =C68-C69 -> 0 | D70: =D68-D69 -> 0 | E70: =E68-E69 -> 0 | F70: =F68-F69 -> 0 | K70: 1.5 | L70: 0.25
K71: 2 | L71: 0.35
K72: 2.5 | L72: 0.4
K73: 5 | L73: 0.5
K75: Calculation for Friction Factors
K76: Laminar Flow | L76: =(64/D62) -> 9.315428571e-05
L77: =-2*LOG(D61/3.7+2.51/D62*L78) -> 8.073686369
L78: =L77 -> 8.073686369
K79: Transitional Flow & Turbulent Flow | L79: =1/L78^2 -> 0.01534109116

Sheet SettlingBasinDesign
A1: Settling Basin Design
A2: Small Hydropower Promotion Project (SHPP)/GTZ | F2: Spreadsheet by Mr Pushpa Chitrakar
A3: Referances: 2,4, 6,9,12,13,15,16 | F3: Date | G3: =TODAY() -> 2012-07-20
A4: SMALL HYDROPOWER PROMOTION PROJECT/GTZ | F4: Revision | G4: 2006.05
A5: Project: | B5: =Welcome -> Upper Jogmai SHP | F5: Location: | G5: Jogmai
A6: Developer | B6: Kankaimai Hydropower P Ltd
A7: Consultant | B7: EPC Consult
A8: Designed | B8: Pushpa Chitrakar
A9: Checked | B9: Pushpa Chitrakar
D11: Q flood | E11: 0 | I11: Sediment swelling factor S = | J11: 1.5
D12: Manning's number M (m1/3/s) 1/n= | E12: 50 | I12: Volume of sediment storage V (m3) = | J12: =(E13+E14)*(E21*3600)*E20/E24*J11 -> 15.12
D13: Design discharge Qdesign (m3/s) = | E13: 0.421 | I13: Sediment depth Hs (m) = V/Asi | J13: =J12/E22 -> 0.63
D14: Flushing discharge Qflush (m3/s) = | E14: 0.034 | I14: Inlet approach conveyance Canal/Pipe = | J14: Canal
D15: Total discharge Qbasins (m3/s) = | E15: =E13+E14 -> 0.455 | I15: 1/Bottom slope of SB Sf (1:50 to 1:20) = | J15: 50
D16: Particles to settle d (mm) = | E16: 0.3 | I16: Outlet approach conveyance Canal/Pipe = | J16: Pipe
D17: Trapping efficiency n (%) = | E17: 0.85 | I17: Water level at inlet NWL (m) = | J17: 1950
D18: water temperature t (oC) = | E18: 15 | I18: h flush below the base slab (L<6m) | J18: 1.7
D19: ="Fall velocity w at "&E18&" deg C (m/s) =" -> Fall velocity w at 15 deg C (m/s) = | E19: =HLOOKUP(E16,{0.1,0.15,0.2,0.25,0.3,0.4,0.5;6,0.015,0.02,0.03,0.035,0.05,0.067;0.007,0.015,0.022,0.031,0.037,0.055,0.071;0.008,0.016,0.025,0.033,0.04,0.06,0.075},IF(E18=10,2,IF(E18=15,3,4))) -> 0.037 | I19: Number of basins N | J19: 1
D20: Sediment concentration Cmax (kg/m3) = | E20: 2 | I20: Spillway crest height above NWL m | J20: 0.05
D21: Flushing Frequency FI (hours) = | E21: 8 | I21: Spillway discharge coeff | J21: 1.6
D22: ="Surface area / basin Asi (m2) "&ROUND(E17*100,2)&" % =" -> Surface area / basin Asi (m2) 85 % = | E22: =IF(J29=0,CEILING(-(E13+E14)/E19*LN(1-E17),1),J29*E28) -> 24 | I22: Provided Freeboard h fb1 m | J22: 0.3
D23: Basin transit velocity Vt (m/s) = | E23: =IF(E16>1,0.33,0.44)*SQRT(E16) -> 0.2409979253 | I23: Discharge coeff for pipe as orifice (2.76 if L <6 m) | J23: 2.76
D24: Bulk Sed density G (kg/m3) = | E24: 2600 | I24: Drawdown discharge % of design discharge | J24: 1
D26: Discharge per basin Qbasin (m3/s) = | E26: =($E$13+$E$14)/J19 -> 0.455 | I26: Water depth of inlet canal hc1 (m) = | J26: 0.5
D27: Max section width for hydraulic flushing B (m) = | E27: =IF(4.83*E26^0.5<E28,"Use <="&ROUND(4.83*E26^0.5,2),4.83*E26^0.5) -> 3.258013122 | I27: Outlet canal width /canal diameter Bc2 (m) = | J27: 0.5
D28: Width used B (m) = | E28: 2.5 | I28: Water depth of outlet canal hc2 (m) = | J28: 0.3
D29: Inlet canal width /canal diameter Bc1 (m) = | E29: 1 | I29: Provided Length of the basin Lact (m)= | J29: 0
D31: ="Length of basin L (m) "&IF(4*E28>IF($E$22/E28/J19<J29,J29,$E$22/E28/J19),"(Idel L = "&ROUND(IF($E$22/E28/J19<J29,J29,$E$22/E28/J19),2)&")","")&" =" -> Length of basin L (m) (Idel L = 9,6) = | E31: =MAX(4*E28,IF($E$22/E28/J19<J29,J29,$E$22/E28/J19)) -> 10 | I31: =IF(UPPER(J16)="PIPE","Pipe does not need a straight approach!","Straight outlet transition length at 1:2.5 (m) =") -> Pipe does not need a straight approach! | J31: =IF(UPPER($J$16)<>"PIPE",5*(E28-J27)/2/2,"***") -> ***
D32: ="Aspect ratio ("&IF(LEFT(A1,1)="G","1.5<=AR<=2)", "4<=AR<=10)") -> Aspect ratio (4<=AR<=10) | E32: =E31/E28 -> 4 | I32: Head over outlet weir h overtop (m) = | J32: =(E26/1.65/E28)^(2/3) -> 0.2299984782
D33: Min. water depth Hi (m) = | E33: =E26/E28/$E$23 -> 0.7551932232 | I33: Approach inlet velocity vi1 (m/s) = | J33: =E26/(J26*E29) -> 0.91
D34: X-sectional area / basin Ai (m2) = | E34: =E33*E28 -> 1.887983058 | I34: Approach outlet velocity vi2 (m/s) = | J34: =E26/(J27*J28) -> 3.033333333
D35: Wetted perimeter / basin Pi (m) = | E35: =2*E33+E28 -> 4.010386446 | I35: 1/Energy gradient during operation So = | J35: =1/($E$23/$E$12/E36^(2/3))^2 -> 15763.85965
D36: Hydraulic radius Ri (m) = | E36: =E34/E35 -> 0.470773349 | I36: d 50 during operation (mm) = | J36: =11*E36/J35*1000 -> 0.3285050079
D37: Normal WL @ basin h b m = | E37: =$J$13+E33 -> 1.385193223 | I37: Depth of water during flushing yfi (m) = | J37: =YDEPTH(E26,$E$12,$J$15,E28) -> 
D38: =IF(UPPER(J14)="PIPE","Pipe does not need a straight approach!","Straight inlet transition length at 1:5 (m) =") -> Straight inlet transition length at 1:5 (m) = | E38: =5*(E28-E29)/2 -> 3.75 | I38: d 50f during flushing (mm) = | J38: =11*(J37*E28/(2*J37+E28))^(2/3)*1/$J$15*1000 -> 
D39: =IF(UPPER(J14)="PIPE","Pipe does not need a straight approach!","Straight approach canal length (m) =") -> Straight approach canal length (m) = | E39: =IF(UPPER($J$14)<>"PIPE",10*E29,"***") -> 10 | I39: Length of an Ideal Basin (m) = | J39: =MAX(4*E28,E26/E28/E19) -> 10
A41: Spilling of excess water
A42: Vertical Flushing pipe
D43: Diameter for flood d1 m = | E43: =IF($E$11/J19/(1.9*PI()*(E47-$J$20-0.05)^1.5)>0.5,IF($E$11/2/J19/(1.9*PI()*(E47-$J$20-0.05)^1.5)>0.5,"Big 2x "&ROUND($E$11/2/J19/(1.9*PI()*(E47-$J$20-0.05)^1.5),2),"2 x "&ROUND($E$11/2/J19/(1.9*PI()*(E47-$J$20-0.05)^1.5),2)),$E$11/J19/(1.9*PI()*(E47-$J$20-0.05)^1.5)) -> 0 | I43: Diameter for load rejection (u/s flood bypass) d1 m = | J43: =IF(E26/(1.9*PI()*(E47-$J$20-0.05)^1.5)>0.5,IF(E26/2/(1.9*PI()*(E47-$J$20-0.05)^1.5)>0.5,"Big 2x "&ROUND(E26/2/(1.9*PI()*(E47-$J$20-0.05)^1.5),2),"2 x "&ROUND(E26/2/(1.9*PI()*(E47-$J$20-0.05)^1.5),2)),E26/(1.9*PI()*(E47-$J$20-0.05)^1.5)) -> 2 x 0,43
A46: Spillway
D47: Freeboard m | E47: =IF(IF(E26<0.2,0,IF(E26<0.5,0.3,IF(E26<1,0.4,0.5)))>=$J$22,IF(E26<0.2,0,IF(E26<0.5,0.3,IF(E26<1,0.4,0.5))),$J$22) -> 0.3 | I47: ="Spillway length for "&IF($E$11=0,"Qd","Qf-Qd")&" (under operation)" -> Spillway length for Qd (under operation) | J47: =IF(E11=0,0,ABS($E$11/J19-E26)/$J$21/E48^1.5) -> 0
D48: Spillway overtopping height h overtop m | E48: =50%*(E47-$J$20) -> 0.125 | I48: Spillway length for Qd (load rejection & u/s flood bypass) | J48: =E26/$J$21/E48^1.5 -> 6.434671709
D49: Spillway length for Qf (flood and non operational) | E49: =$E$11/J19/$J$21/E48^1.5 -> 0 | I49: ="Spillway length for "&IF($E$11=0,"Qd","Qf-Qd")&" (d/s obstruction & full hovertop-50)" -> Spillway length for Qd (d/s obstruction & full hovertop-50) | J49: =ABS($E$11/J19-E26)/$J$21/(2*E48-0.05)^1.5 -> 3.179409156
A51: Combination of vertical flushing pipe and spillway | I51: Flood and non operational (Qf)
D52: Vertical flushing pipe diameter d1 m | E52: 0.3 | I52: Flood discharge passing through vertical pipe | J52: =IF(E11=0,0,E53*E52*1.9*PI()*(E47-$J$20-0.05)^1.5) -> 0
D53: No of vertical flushing pipe | E53: 1 | I53: Spillway length for the remaining discharge m | J53: =IF(E54>($E$11/J19-J52)/$J$21/E48^1.5,E54,($E$11/J19-J52)/$J$21/E48^1.5) -> 1
D54: Spillway length used (m) | E54: 1
D56: Flood and Under Operation (Qf- Qd) | I56: Load Rejection (Qd)
D57: H overtopping | E57: =($E$11/J19/(1.9*PI()*E53*E52+$J$21*J53))^(2/3) -> 0 | I57: H overtopping | J57: =(E26/(1.9*PI()*E53*E52+$J$21*J53))^(2/3) -> 0.2621082474
D58: Discharge passing through vertical pipe | E58: =1.9*PI()*E52*E57^1.5 -> 0 | I58: Discharge passing through vertical pipe | J58: =1.9*PI()*E53*E52*J57^1.5 -> 0.2402955665
D59: Discharge passing over spillway | E59: =$J$21*J53*E57^1.5 -> 0 | I59: Discharge passing over spillway | J59: =$J$21*J53*J57^1.5 -> 0.2147044335
A61: Flushing of water and sediment
A62: Flushing pipe and orifice diameter | H62: Gate | I62: Relative | J62: Discharge
D63: d for incoming flow and draw down m | E63: =($J$24*4*E26/(PI()*$J$23*SQRT(E37+$J$18)))^0.5 -> 0.3456890511 | H63: Opening | I63: Gate Openinig | J63: One basin
D64: d for incoming flow only (empty state) m | E64: =(4*E26/(PI()*$J$23*SQRT($J$18)))^0.5 -> 0.4012305437 | H64: Hg | I64: Hg/H1 | J64: Q
D65: d for incoming flow only (empty state & with y flushing) m | E65: =(4*E26/(PI()*$J$23*SQRT($J$18+J37)))^0.5 ->  | H65: 5.551115123e-17 | I65: =H65/$E$75 -> 4.007466273e-17 | J65: =IF($E$75>1.5*H65,(-17.726*I65^5 + 37.373*I65^4 - 29.789*I65^3 + 11.122*I65^2 - 2.23*I65 + 2.2443)* $E$69*($E$75^1.5-($E$75-H65)^1.5),1.7*$E$69*$E$75^1.5) -> 0
H66: 0.03333333333 | I66: 0.02406403148 | J66: 0.1284871633
A67: Gate | H67: 0.06666666667 | I67: 0.04812806297 | J67: 0.2510906087
D68: Buoyance weight of the gate W kgf | E68: 300 | H68: 0.1 | I68: 0.07219209445 | J68: 0.3693442024
D69: Gate Opening B, (m) | E69: 1 | H69: 0.1333333333 | I69: 0.09625612593 | J69: 0.484333172
D70: Gate Opening H (m) | E70: 0.5 | H70: 0.1666666667 | I70: 0.1203201574 | J70: 0.596777603
D71: Submerged area of th gate A m2 | E71: =E69*E70 -> 0.5 | H71: 0.2 | I71: 0.1443841889 | J71: 0.7071076285
D72: Water surface to cg of submerged area h m | E72: =E37-E70/2 -> 1.135193223 | H72: 0.2333333333 | I72: 0.1684482204 | J72: 0.8155305161
D73: Coeff of static friction mu | E73: 0.9 | H73: 0.2666666667 | I73: 0.1925122519 | J73: 0.9220898575
D74: Lifting force F kgf | E74: =E68+1000*E73*E71*E72 -> 810.8369505 | H74: 0.3 | I74: 0.2165762833 | J74: 1.026717075
D75: H. of water (H1) | E75: =E37 -> 1.385193223 | H75: 0.3333333333 | I75: 0.2406403148 | J75: 1.129275458
H76: 0.3666666667 | I76: 0.2647043463 | J76: 1.229596964
H77: 0.4 | I77: 0.2887683778 | J77: 1.327511994
H78: 0.4333333333 | I78: 0.3128324093 | J78: 1.42287241
H79: 0.4666666667 | I79: 0.3368964408 | J79: 1.515568
H80: 0.5 | I80: 0.3609604722 | J80: =IF($E$75>1.5*H80,(-17.726*I80^5 + 37.373*I80^4 - 29.789*I80^3 + 11.122*I80^2 - 2.23*I80 + 2.2443)*$E$69*($E$75^1.5-($E$75-H80)^1.5),1.7*$E$69*$E$75^1.5) -> 1.605536683
G82: Forebay cum settling basin (one basin)
G83: Penstock diameter m | J83: 0.41
G84: Penstock velocity m/s | J84: =E15*4/PI()/J83^2 -> 3.446305728
G85: Submergence depth of penstock pipe m | J85: =1.5*J84^2/2/9.81 -> 0.9080292943
G86: Height of pipe above the base slab m | J86: =IF(J83>0.5,J83,0.3) -> 0.3
G87: Min. pond depth m | J87: =J85+J83+J86 -> 1.618029294
G88: Effective thickness of penstock mm | J88: 3
G89: FS for air vent (5 burried, 10 exposed) | J89: 10
G90: Young's modulus of elasticity E N/mm2 | J90: 200000
G91: Penstock inlet gate (Yes/No) | J91: No
G92: Air vent diameter mm | J92: =IF(J91="Yes",SQRT(E15*1000*SQRT(J89/J90*(J83*1000/J88)^3)),"Nominal") -> Nominal
A93: Gradual Expansion of 1:5 | G93: half of Gr expansion | M93: x | N93: y
H94: =J27 -> 0.5 | M94: 0 | N94: =N95+E47 -> 1.685193223
A95: =E29 -> 1 | D95: ="Width "&ROUND(E28,1)&"m" -> Width 2,5m | F95: Flushing cone/spillway O | M95: 0 | N95: =N96+E33 -> 1.385193223
M96: 0 | N96: =J13 -> 0.63
A97: Gradual Expansion 1 in 10 (1:2 for MHP) | E97: ="L ="&ROUND(E31,2) -> L =10 | M97: 0 | N97: 0 | O97: 0
F98: Spillway | H98: =J28 -> 0.3 | M98: =E28 -> 2.5 | N98: =N97 -> 0
A99: =J26 -> 0.5 | D99: ="Water depths "&ROUND(E33,2)&"m & "&ROUND(E33+E31/J15,2)&"m" -> Water depths 0,76m & 0,96m | M99: =M98 -> 2.5 | N99: =N96 -> 0.63
C100: ="Sediment depth "&ROUND(J13,3)&"m" -> Sediment depth 0,63m | F100: ="Slope 1:"&J15 -> Slope 1:50 | M100: =M99 -> 2.5 | N100: =N95 -> 1.385193223
M101: =M100 -> 2.5 | N101: =N95+E48 -> 1.510193223
M102: =M101 -> 2.5 | N102: =N94 -> 1.685193223
M104: 0 | N104: =N95 -> 1.385193223 | O104: =N96 -> 0.63
M105: =M102 -> 2.5 | N105: =N104 -> 1.385193223 | O105: =O104 -> 0.63
M106: ="Av. H ot ="&ROUND(E48,3)&"m" -> Av. H ot =0,125m
M107: =M104 -> 0 | N107: =N101 -> 1.510193223
M108: =M105+0.15 -> 2.65 | N108: =N107 -> 1.510193223
M109: =M108+0.15 -> 2.8 | N109: =N108-0.15 -> 1.360193223

Sheet Penstock&Power
C1: PENSTOCK AND POWER CALCULATIONS
A2: Small Hydropower Promotion Project (SHPP)/GTZ | F2: Spreadsheet by Mr Pushpa Chitrakar
A3: Referances:2,4, 5,6,12,13,15,16 | F3: Date | G3: =TODAY() -> 2012-07-20
A4: SMALL HYDROPOWER PROMOTION PROJECT/GTZ | F4: Revision | G4: 2006.05
A5: Project: | B5: Jhankre mini-hydropower | E5: Location:
A6: Developer | B6: Himal Power Limited
A7: Consultant | B7: BPC Hydroconsult
A8: Designed | B8: Pushpa Chitrakar
A9: Checked | B9: Pushpa Chitrakar
A11: INPUT
A12: General:
A13: Project: | B13: Jogmai I | K13: Turbines
A14: Location: | B14: Ilam | G14: Economic life (years) | H14: 10 | K14: Crossflow
A15: Hydraulics: | K15: Pelton
A16: Diversion flow Qd (m3/s) | D16: 0.45 | G16: WL @ forebay or U/S Invert Level (m) | H16: 1213.9
A17: Flow in each pipe Qi (m3/s) | D17: =D16/D31 -> 0.45 | G17: % head allowable headloss hlt (m) | H17: 0.16 | K17: Valves & Coeff
A18: Gross head (from forebay) Hg (m) | D18: 180 | G18: Cumulative knowm efficiency (g,t,tr,others) | H18: 0.7938 | K18: Spherical | L18: 0
A19: Power: | K19: Gate | L19: 0.1
A20: Turbine type (CROSSFLOW/PELTON) | D20: Pelton | G20: Valves (Sperical/Gate/Butterfly) | H20: 0.3 | K20: Butterfly | L20: 0.3
A21: =IF(UPPER(D20)="PELTON","No of total jets (nj) & % closure","No of CF units") -> No of total jets (nj) & % closure | D21: 1 | E21: 0.1 | G21: Taper (Yes/No) | H21: No
A22: Direct Coupling (Yes/No) | D22: Yes | G22: Exit (Yes/No) | H22: No
A23: Closure time T sec | D23: 30 | G23: Non standard ult. tensile strength (UTS) N/mm2 | H23: 0 | K23: Yes
A24: Number of units | D24: 3 | K24: No
A25: Penstock pipe:
A26: Pipe Material (STEEL/HDPE/PVC) | D26: Steel | G26: Safety factor for lower pipes (0 for default) | K26: Pipe type
A27: Welded / Flat rolled if steel | D27: Welded | G27: Entrance Type | H27: 0.5 | K27: Steel
A28: Rolled if steel | D28: Rolled | G28: Entrance with gate and air-vent (Yes/No) | H28: No | K28: HDPE
A29: Type if steel (UNGRAGED/IS) | D29: IS | G29: Bending radius (r/d) (1/2/3/5/1.5) | H29: 0.45 | K29: PVC
A30: Burried or exposed | D30: Exposed | G30: Bending angle 05 | H30: 22
A31: No of pipes | D31: 1 | G31: Bending angle 06 | H31: 14 | K31: Steel
A32: Bending angle 01(degrees) | D32: 2 | G32: Bending angle 07 | H32: 0 | K32: Welded
A33: Bending angle 02 | D33: 11 | G33: Bending angle 08 | H33: 0 | K33: Flat rolled
A34: Bending angle 03 | D34: 4 | G34: Bending angle 09 | H34: 0
A35: Bending angle 04 | D35: 11 | G35: Bending angle 10 | H35: 0 | K35: Steel
A36: Penstock diameter d=>d estd, d act (mm) | C36: =41*(D17*1000)^0.38 -> 417.8348038 | D36: 450 | E36: Pipe thickness t=>t min, t act (mm) | G36: =IF(UPPER(D26)="STEEL",MAX(3,2.5*MAX(D36:D36)/1000+1.2),"NA") -> 3 | H36: 7 | K36: Rolled
A37: Pipe Length L (m) | C37: 550 | E37: Roughness coefficient (ks) | H37: 0.06
A38: Trashrack | K38: Steel type
A39: Trashrack coefficient, kt | B39: thickness, t(mm) | C39: Clear spacing, b (mm) | D39: Approach velocity, Vo (m/s) | E39: Angle of inclination, f (deg) | F39: Flow deviation, b (deg) | G39: Design discharge, Q (m3/s) | H39: Submergence depth @ trashrack, h (m) | K39: Ungraded
A40: 2.4 | B40: 6 | C40: 20 | D40: 1 | E40: 71.56 | F40: 0 | G40: =D16 -> 0.45 | H40: 0.7 | K40: IS
A41: Expansion Joints
A42: Tmax (deg) | B42: T installation | C42: Tmin | D42: 1st Pipe length(m) | E42: 2nd Pipe L (m) | F42: 3rd Pipe L (m) | G42: 4th Pipe L (m) | H42: 5th Pipe L (m) | K42: Installation
A43: 40 | B43: 20 | C43: 4 | D43: 10 | E43: 15 | F43: 20 | G43: 25 | H43: 30 | K43: Burried
K44: Exposed
A45: OUTPUT
A46: Trashrack | K46: Entrance #
A47: Frictional headloss, hf (m) | B47: Bend loss, hb (m) | C47: Headloss coeff | D47: Total headloss, H(m) | E47: Surface area, S (m2) | F47: trashrack width, B (m) | G47: Submergence @ penstock, h min (m) | H47: Submergence @ penstock, h min (m) | K47: Hooded | L47: 1
A48: =A40*(B40/C40)^(4/3)*(D40^2/2/9.81)*SIN(PI()/180*E40) -> 0.02330499793 | B48: =(D40^2/2/9.81)*SIN(PI()/180*F40) -> 0 | C48: =A40*(B40/C40)^(4/3)*SIN(PI()/180*E40)+SIN(PI()/180*F40) -> 0.4572440594 | D48: =B48+A48 -> 0.02330499793 | E48: =1/0.3*(B40+C40)/C40*G40/D40*1/SIN(PI()/180*E40) -> 2.055540892 | F48: =E48/(H40/SIN(PI()*E40/180)) -> 2.785714286 | G48: =D36/1000*(1+2.3*D60/SQRT(9.81*D36/1000)) -> 1.843228744 | H48: =1.5*D60^2/9.81/2 -> 0.6115583912 | K48: Inward projecting | L48: 0.8
K49: Sharp cornered | L49: 0.5
A50: Turbulent loss coefficients | B50: K Total | C50: =SUM(B51:B55,E51:E55,H51:H55) -> 2.055231788 | K50: Slightly rounded | L50: 0.2
A51: K inlet | B51: =H27 -> 0.5 | D51: K bend 05 | E51: =IF(H30=0,0,FORECAST(H30,{0.5,0.75,1},{20,45,90})*H$29) -> 0.2446688742 | G51: K bend 10 | H51: =IF(H35=0,0,FORECAST(H35,{0.5,0.75,1},{20,45,90})*H$29) -> 0 | K51: Bell mouth | L51: 0.04
A52: K bend 01 | B52: =IF(D32=0,0,FORECAST(D32,{0.5,0.75,1},{20,45,90})*H$29) -> 0.1820860927 | D52: K bend 06 | E52: =IF(H31=0,0,FORECAST(H31,{0.5,0.75,1},{20,45,90})*H$29) -> 0.2196357616 | G52: K valve | H52: =H20 -> 0.3
A53: K bend 02 | B53: =IF(D33=0,0,FORECAST(D33,{0.5,0.75,1},{20,45,90})*H$29) -> 0.2102483444 | D53: K bend 07 | E53: =IF(H32=0,0,FORECAST(H32,{0.5,0.75,1},{20,45,90})*H$29) -> 0 | G53: K taper | H53: =IF(UPPER(H21)="YES",0.06,0) -> 0 | K53: Bending Radius & Coeff
A54: K bend 03 | B54: =IF(D34=0,0,FORECAST(D34,{0.5,0.75,1},{20,45,90})*H$29) -> 0.1883443709 | D54: K bend 08 | E54: =IF(H33=0,0,FORECAST(H33,{0.5,0.75,1},{20,45,90})*H$29) -> 0 | G54: K exit | H54: =IF(UPPER(H22)="YES",1,0) -> 0 | K54: 1 | L54: 0.6
A55: K bend 04 | B55: =IF(D35=0,0,FORECAST(D35,{0.5,0.75,1},{20,45,90})*H$29) -> 0.2102483444 | D55: K bend 09 | E55: =IF(H34=0,0,FORECAST(H34,{0.5,0.75,1},{20,45,90})*H$29) -> 0 | G55: K others | H55: 0 | K55: 2 | L55: 0.5
K56: 3 | L56: 0.4
A57: Hydraulics | K57: 5 | L57: 0.3
A58: Pipe Area A (m2) | D58: =((D36/1000)^2*22)/28 -> 0.1591071429 | G58: U/S Invert Level (mAOD) | H58: =H16 -> 1213.9 | K58: 1.5 | L58: 0.45
A59: Hydraulic Radius R (m) | D59: =(D36/1000)/4 -> 0.1125 | G59: D/S Invert Level (mAOD) | H59: =H58-$D$18 -> 1033.9
A60: Velocity V (m/s) | D60: =($D$17)/D58 -> 2.828282828 | G60: Is HLtot < HL available | H60: =IF(H64<$H$17*$D$18,"OKAY","Use bigger pipe") -> OKAY | K60: Trashrack Coeff
A61: Pipe Roughness ks (mm) | D61: =H37 -> 0.06 | G61: Friction Losses hf (m) | H61: =(D65*C37*D60^2)/(8*9.81*D59) -> 6.870458884 | K61: Cross section | L61: k
A62: Relative Roughness ks/d | D62: =H37/D36 -> 0.0001333333333 | G62: Fitting Losses hfit (m) | H62: =($C$50*D60^2)/(2*9.81) -> 0.8379294972 | K62: Flat | L62: 2.4
A63: Reynolds Number Re = d V /Vk | D63: =(D60*(D36/1000))/0.00000114 -> 1116427.432 | G63: Trashracks and intake loss (m) | H63: =D48 -> 0.02330499793 | K63: Round/Rounded front | L63: 1.8
A64: Type of Flow | D64: =IF(D63<2000,"Laminar",IF(D63>4000,"Turbulent","Transitional")) -> Turbulent | G64: Total Head Loss htot individual (m) | H64: =H62+H61+H63 -> 7.731693379 | K64: Tipped back | L64: 1.7
A65: Friction Factor f | D65: =IF(D64="Laminar",L113,L116) -> 0.01378760709 | G65: % of H.Loss of individual pipe | H65: =IF(H64>$H$17*$D$18,ROUND(H64/($D$18)*100,2)&"% Not Ok",ROUND(H64/($D$18)*100,2)&"% Ok") -> 4,3% Ok | K65: Both end rounded | L65: 1
A66: Factor of Safety | K66: Tipped section | L66: 0.8
A67: Young's modulus of elasticity E N/mm2 | D67: =IF(UPPER(D26)="STEEL",200000,IF(UPPER(D26)="PVC",2750,IF(UPPER(D26)="HDPE",2150))) -> 200000 | G67: Ultimate tensile strength (UTS) N/mm2 | H67: =IF(AND(H23>0,UPPER(D26)="STEEL"),H23,IF(AND(UPPER(D26)="STEEL",UPPER(D29)="IS"),410,IF(AND(UPPER(D26)="STEEL",UPPER(D29)="UNGRADED"),320,IF(UPPER(D26)="PVC",45,IF(UPPER(D26)="HDPE",27,"Pipe material?"))))) -> 410 | K67: No trashrack | L67: 0
A68: Thickness | D68: =H36 -> 7 | G68: ="H total for "&IF(UPPER(D20)="PELTON",ROUND(E21*100,2)&"% closure of one jet", "unit Crossflow")&"(m)" -> H total for 10% closure of one jet(m) | H68: =D73+$D$18 -> 211.9253264 | K68: K contraction
A69: Diameter (mm) | D69: =D36 -> 450 | G69: t effective (mm) | H69: =IF(AND(UPPER($D$26)="STEEL",UPPER($D$27)="WELDED",UPPER($D$28)="ROLLED"),H36/1.32-$H$14/10,IF(AND(UPPER($D$26)="STEEL",UPPER($D$27)="WELDED"),H36/1.1-$H$14/10,IF(UPPER($D$26)="STEEL",H36/1.2-$H$14/10,H36))) -> 4.303030303 | K69: d l/ d s | L69: Kc
A70: Net Head (m) | D70: =$D$18-H64 -> 172.2683066 | G70: Minimum t effictive for negative pressure (mm) | H70: =IF(UPPER($D$30)="BURRIED",D36*(2*0.1/2/$D$67)^0.33,D36*(4*0.1/2/$D$67)^0.33) -> 4.712078466 | K70: 0
A71: Wave Velocity a (m/s) | D71: =1440/(SQRT(1+(2150*D36/$D$67/H36))) -> 1107.341346 | G71: Comment on thickness | H71: =IF(UPPER($H$28)<>"No",IF(H70>H69,"low by "&ROUND(H70-H69,1),"Ok"),"NA, No gate") -> NA, No gate | K71: 1 | L71: 0
A72: Critical time Tc (sec) *2 = Closing time T | D72: =IF(2*2*$C$37/D71<=$D$23,ROUND(2*$C$37/D71,2)&" Ok",ROUND(2*$C$37/D71,2)&" Not Ok") -> 0,99 Ok | G72: Safety Factor (S) | H72: =200*H69*$H$67/H68/D36 -> 3.699924674 | K72: 1.5 | L72: 0.25
A73: =IF(UPPER(D20)="PELTON","Hsurge for "&ROUND(E21*100,2)&"% closure of one jet","K if crossflow turbine Kcf") -> Hsurge for 10% closure of one jet | D73: =IF(UPPER($D$20)="PELTON",D71*D60/(9.81*$D$21)*E21,($C$37*D60/9.81/$D$18/$D$23)^2) -> 31.92532635 | G73: Check on Safety Factor | H73: =IF(H26=0,IF(OR(AND(UPPER($D$26)="HDPE",H72>=1.5),AND(UPPER($D$26)="STEEL",H72>=3.5)),"Ok","Not Ok"),IF(H72>=H26,"Ok","Not Ok")) -> Ok | K73: 2 | L73: 0.35
A74: ="Hsurge for one "&IF(UPPER(D20)="PELTON","jet closure of Pelton", "unit Crossflow")&"(m)" -> Hsurge for one jet closure of Pelton(m) | D74: =IF(UPPER($D$20)="PELTON",D71*D60/(9.81*$D$21),(D73/2+SQRT(D73+D73^2/4))*$D$18/$D$21) -> 319.2532635 | G74: Air vent diameter d vent (mm) | H74: =IF(H71="NA, Gate is used","Provide moninal",SQRT($D$17*1000*SQRT(10/$D$67*(D36/H69)^3))) -> 58.33474986 | K74: 2.5 | L74: 0.4
A75: ="Hsurge for instanteneous closure of all unit closure of "&$D$20&" (m)" -> Hsurge for instanteneous closure of all unit closure of Pelton (m) | D75: =D71*D60/9.81 -> 319.2532635 | G75: H total capacity of the specified pipe (m) | H75: =ROUND(IF($H$26>0,1/$H$26,IF(UPPER($D$26)="STEEL",1/3.5,1/1.5))*200*H69*$H$67/D36,2) -> 224.03 | K75: 5 | L75: 0.5
A76: ="Lengths (max & actual) of the specified pipe (m) & "&IF(D76<C37,"Not Ok","Ok") -> Lengths (max & actual) of the specified pipe (m) & Ok | C76: =H75/H68*C37 -> 581.4146998 | D76: =IF(C76>C37,C37,C76) -> 550 | G76: H static capacity of the specified pipe (m) | H76: =IF(H75-D73>0,H75-D73,0) -> 192.1046736
K77: Extra pressures to be considered
A78: Power | K78: Static only | L78: 1
A79: Turbine efficiency as per MGSP | D79: =IF(UPPER(D20)="PELTON",0.75,0.65) -> 0.75 | G79: Electrical Power as per MGSP GL (kW) | H79: =D16*9.81*D18*0.5 -> 397.305 | K79: H surge of instant one jet closure | L79: 2
A80: Available shaft power(kW) | D80: =D16*9.81*(D18-H64)*D79*IF(UPPER(D22)="NO",0.95,1) -> 570.3588297 | G80: Electrical Power based on Hnet (kW) | H80: =D16*9.81*(D18-H64)*IF(UPPER(D20)="PELTON",0.6,0.5) -> 456.2870637 | K80: H surge of instant one fourth jet closure | L80: 3
A81: Reqd.'Turbine Capacity (+10%) (kW) | D81: =D80*1.1 -> 627.3947127 | G81: Power for known cumulative eff (kW) | H81: =D16*9.81*(D18-H64)*H18 -> 603.6677853 | K81: 50% of test pressure | L81: 4
A83: Expansion Joints (mm) | D83: =IF(UPPER(D26)="HDPE","","Coeff of linear expansion /deg C") -> Coeff of linear expansion /deg C | E83: =IF(UPPER(D26)="STEEL",12,IF(UPPER(D26)="PVC",54,0))*0.000001 -> 1.2e-05 | K83: =CHOOSE(C25,K78,K79,K80,K81) -> 
A84: EJ number | B84: 1 | C84: 2 | D84: 2 | E84: 4 | F84: 5
A85: dL theoretical | B85: =$E$83*($A$43-$C$43)*D43*1000 -> 4.32 | C85: =$E$83*($A$43-$C$43)*E43*1000 -> 6.48 | D85: =$E$83*($A$43-$C$43)*F43*1000 -> 8.64 | E85: =$E$83*($A$43-$C$43)*G43*1000 -> 10.8 | F85: =$E$83*($A$43-$C$43)*H43*1000 -> 12.96 | K85: Need of Surge Shaft if L/H=> exceeds | L85: L/H
A86: dL recommended | B86: =2*B85 -> 8.64 | C86: =2*C85 -> 12.96 | D86: =2*D85 -> 17.28 | E86: =2*E85 -> 21.6 | F86: =2*F85 -> 25.92 | K86: Small Hydropower Project | L86: 6
A87: dL for expansion | B87: =2*$E$83*($A$43-$B$43)*D43*1000 -> 4.8 | C87: =2*$E$83*($A$43-$B$43)*E43*1000 -> 7.2 | D87: =2*$E$83*($A$43-$B$43)*F43*1000 -> 9.6 | E87: =2*$E$83*($A$43-$B$43)*G43*1000 -> 12 | F87: =2*$E$83*($A$43-$B$43)*H43*1000 -> 14.4 | K87: Large Hydropower Project | L87: 4
A88: dL for contraction | B88: =B86-B87 -> 3.84 | C88: =C86-C87 -> 5.76 | D88: =D86-D87 -> 7.68 | E88: =E86-E87 -> 9.6 | F88: =F86-F87 -> 11.52
K89: Stability of Surge System if
K90: hc = hloss u/s of surge shaft =< Hn /2
K91: As = n1 * Ath = free surface area of shaft
K92: n1 = 1.5 to 2.0
K93: Ath = v^2/2/g*A*L/Hc/hc = Shaft surface area after Thoma
K94: A = area of penstock u/s of surge shaft
K95: L = lenth of penstock u/s of surge shaft
K96: Hc = hr-8*hc/3+2Y+2 = height of surge chamber from the top of u/s penstock
K97: Y = +/-v*sqrt(L*A/g/As) = Max occilation
K98: hr = max depletion of reservoir
K99: Wave velocity
K100: a=sqrt(K/(r*(1+(K/E)y)))
K101: Material | L101: M of Elasticity (Gpa) | M101: Poisson Ratio
K102: Cast iron | L102: 70-160 | M102: 0.25
K103: Concrete | L103: 15-30 | M103: .1-.15
K104: Mild Steel | L104: 200-210 | M104: 0.27
K105: PVC Rigid | L105: 2.4-2.7 | M105: 0.4
K107: r = 999 at 20 degrees
K108: y rigid/anchored against longitudinal movement = d/t*(1-u^2)
K109: y upper end anchored against longitudinal movement = d/t*(1.25-u)
K110: y free/expansion joint for longitudinal movement = d/t
K112: Calculation for Friction Factors
K113: Laminar Flow | L113: =(64/D63) -> 5.732571429e-05
L114: =-2*LOG(D62/3.7+2.51/D63*L115) -> 8.516390182
L115: =L114 -> 8.516390182
K116: Transitional Flow & Turbulent Flow | L116: =1/L115^2 -> 0.01378760709

Sheet AnchorLoads
A1: Forces on Anchor Block | F1: Block # & type | G1: 2 | H1: Convex
A2: Small Hydropower Promotion Project (SHPP)/GTZ | C2: Spreadsheet by Mr Pushpa Chitrakar
A3: Referances: 6,12,13,15,16 | H3: Date | I3: =TODAY() -> 2012-07-20
A4: SMALL HYDROPOWER PROMOTION PROJECT/GTZ | H4: Revision | I4: 2006.05
A5: Project | C5: =Project -> Golmagad SHP
A6: Developer | C6: Kankaimai Hydropower P Ltd | H6: Designed | I6: Pushpa Chitrakar
A7: Consultant | C7: EPC Consult | H7: Checked | I7: Pushpa Chitrakar
A9: Input | O9: =IF(OR(UPPER(C24)="YES",UPPER(C24)="NO"),"","yes/no only") -> 
A10: Particulars | C10: Upstream | D10: Central | E10: Downstream | G10: Design Discharge, Q (m3/s) | I10: 0.37
A11: Pipe dimensions | G11: Unit Weights (kN/m3)
B12: Diameter (Di) | C12: 0.39 | E12: =C12 -> 0.39 | G12: Mild Steel | I12: 78.5
B13: Thickness | C13: 0.006 | E13: =C13 -> 0.006 | G13: Water | I13: 9.81
B14: Shaddle Spacing & number | C14: 4 | D14: 7 | E14: =C14 -> 4 | G14: RCC | I14: 25
G15: Anchor Block | I15: 22
A16: Elevations | D16: 818 | G16: Soil
G17: Bearing capacity (kN/m2) | I17: 200 | O17: Friction Factors:
A18: Horizontal Distance (m) | C18: 2 | E18: 53.712 | G18: f | I18: 30 | J18: =I18*PI()/180 -> 0.5235987756 | O18: Steel to Concrete (m) | P18: 0.6
G19: gs | I19: 20 | O19: Steel to Bitumen Sheet (m) | P19: 0.5
A20: Vertical angles, a & b (deg) | C20: 0 | E20: 27.7832 | O20: Steel to Steel (rusty) (m) | P20: 0.5
O21: Steel to (HDPVC) to Steel (greased) (m) | P21: 0.25
A22: Location of Expansion Joint | C22: 2 | E22: 2 | G22: Heads (m) | O22: Steel to Steel (Rollar) (m) | P22: 0.1
G23: Forebay WL | I23: 835 | O23: Concrete to Colluvium (m)
A24: D/S Expansion Joint : | C24: Yes | E24: Yes | G24: Tot.Transient Length (m) | I24: 511 | O24: Sandy (m) | P24: 0.4
G25: Tpot Pipe Len (forebay to AB) | I25: 56.388 | O25: Gravel Mix (m) | P25: 0.5
A26: Output | G26: Total Surge Head | I26: 96.36 | O26: Boulder Mix (m) | P26: 0.6
A27: Weight of pipe, Wp (kN/m) | C27: =PI()*(C12+C13)*C13*$I$12 -> 0.5859572954 | E27: =PI()*(E12+E13)*E13*$I$12 -> 0.5859572954 | G27: Static Head | I27: =I23-D16 -> 17 | O27: Rubber Packing in Expansion Joint (m) | P27: =0.5*0.5 -> 0.25
A28: Weight of water, Ww (kN/m) | C28: =PI()*(C12)^2/4*$I$13 -> 1.171893385 | E28: =PI()*(E12)^2/4*$I$13 -> 1.171893385 | G28: Surge Head ± | I28: =I26/I24*I25 -> 10.63316571
A29: Total weight, W (kN/m)) | C29: =SUM(C27:C28) -> 1.75785068 | E29: =SUM(E27:E28) -> 1.75785068 | H29: Total (H) | I29: =SUM(I27:I28) -> 27.63316571
A30: Velocity, v (m/s) | C30: =I10/(PI()*(C12)^2/4) -> 3.097295408 | E30: =I10/(PI()*(E12)^2/4) -> 3.097295408 | G30: Youngs Modulus of Elasticity (E) | I30: 210000000000
A31: Vertical angles, a & b (rad) | C31: =IF(C16<>"",ATAN((C16-D16)/C18),C20*PI()/180) -> 0 | E31: =IF(E16<>"",ATAN((D16-E16)/E18),E20*PI()/180) -> 0.4849083167 | G31: Coefficient of Linear Expansion (a) | I31: 1.2e-05
A33: GENERAL FORCES
A34: 1. | B34: Perpendicular component of Wt of pipe and water act perpendicular to the pipe CL along the anchor faces
B41: F1=dead weight of half of anchor saddle pipe perp to pipe
C42: =C29*C14/2 -> 3.515701361 | E42: =E29*E14/2 -> 3.515701361 | O42: Cos | P42: Sin
B43: F1u (kN)=wu*lmu/2*COS(a): | C43: F1d (kN)=wd*lmd/2*COS(b) | N43: 1 | O43: =COS(N43) -> 0.5403023059 | P43: =SIN(N43) -> 0.8414709848
B44: F1 perpendicular to pipe | C44: =C29*C14/2*COS(C31) -> 3.515701361 | E44: =E29*E14/2*COS(E31) -> 3.110403183 | N44: -1 | O44: =COS(N44) -> 0.5403023059 | P44: =SIN(N44) -> -0.8414709848
B45: F1 axial | C45: =-C29*C14/2*SIN(C31) -> 0 | E45: =-E29*E14/2*SIN(E31) -> -1.638764199
B46: Fixed end moment = wl^2/8 for proped cantilever FEM.
B47: FEMu (kN-m)= Restoring moment: | D47: FEMd (kN-m)= Overturning moment
B48: FEM | C48: =C29*C14^2/12 -> 2.343800907 | E48: =-E29*(E14^2)/12 -> -2.343800907
A50: 2. | B50: Axial frictional force of pipe on saddle supports transferred to anchor
B51: F2 (kN)= ±m*w*L'*cos a | H51: 0.25
B52: US Pipe Length, L' (m): | C52: =IF(C16="",C18/COS(C31),SQRT(C18^2+(C16-D16)^2)) -> 2
B53: F2 (kN) = ± | C53: =IF(D14>0,D14*C29*C14*$H$51*COS(C31),C29*(C52-C22-C14/2)*$H$51*COS(C31))*IF(UPPER(C24)="YES",1,0) -> 12.30495476 | D53: +ve for expansion
A55: 3. | B55: Hydrostatic Pressure at Bend due to the vector difference of static pressure & acting towards IP
B56: Pu (kN) = F3u =PI/4*dui^2*Ht*g | C56: =PI()*(C12)^2/4*I29*I13 -> 32.38312411
B57: Pd (kN) = F3d =PI/4*ddi^2*Ht*g | E57: =PI()*(E12)^2/4*I29*I13 -> 32.38312411
B58: F3 = 2*P*sin((b-a)/2) | D58: =2*C56*SIN((E31-C31)/2) -> 15.54945169
A61: 4. | B61: Component of weight of pipe (wp) along the pipe
B62: F4u= wp*active arm L’*sin(a) | C62: F4d= wp*active arm L’*sin(b)
B63: F4 | C63: =C27*SIN(C31)*(C52-C22) -> 0 | E63: =E27*SIN(E31)*IF(UPPER(E24)="YES",E22,IF(E16="",E18/COS(E31),SQRT((D16-E16)^2+E18^2))) -> 0.5462613226
A66: 5. | B66: Thermally (expansion/contraction) induced axial force ( if no EJ provided)
B67: F5 (kN)=pi()*Dmean*t*E*a*Dt | C67: + Expansion, - Contraction
B68: Condition | C68: Tmax | D68: Tinstallation | E68: Tmin
B69: Temp at oC | C69: 40 | D69: 20 | E69: 4
B70: F5 expansion | C70: =PI()*(C12+C13)*C13*I30*I31*(C69-D69)/1000*IF(UPPER(C24)="YES",0,1) -> 0 | E70: =PI()*(C12+C13)*C13*I30*I31*(C69-D69)/1000*IF(UPPER(E24)="YES",0,1) -> 0
B71: F5 contraction | C71: =PI()*(E12-E13)*E13*I30*I31*(D69-E69)/1000*IF(UPPER(C24)="YES",0,1) -> 0 | E71: =PI()*(E12-E13)*E13*I30*I31*(D69-E69)/1000*IF(UPPER(E24)="YES",0,1) -> 0
A73: 6. | B73: Axial friction within Expansion joint seal due to the movement against the circumferential pressure
B74: F6=±PI()*D*W*H*g*m | C74: + Expansion, - Contraction
B75: m for rubber packing | C75: =0.5*0.5 -> 0.25 | D75: Seal width, W (m) | E75: =8*2/100 -> 0.16
B76: Static Pressure at Exp, Ps (m) | C76: =IF(C16="",I27-C52*SIN(C31),(I23-C16+(C16-D16)/C18*C22/COS(C31))) -> 17 | E76: =IF(C16="",I27+E22*SIN(E31),(I23-(D16-(D16-E16)/E18*E22/COS(E31)))) -> 17.9322545
B77: Dynamic Pressure at Exp, Pd (m) | C77: =I26/I24*(I25-C18/COS(C31)) -> 10.25602286 | E77: =I26/I24*(I25+E22/COS(E31)) -> 11.05945182
B78: Total (AH) | C78: =SUM(C76:C77) -> 27.25602286 | E78: =SUM(E76:E77) -> 28.99170631
B79: F6 (kN) = ± | C79: =PI()*(C12+2*C13)*E75*C78*I13*C75*IF(UPPER(C24)="YES",1,0) -> 13.50726465 | E79: =PI()*E12*E75*E78*I13*C75*IF(UPPER(E24)="YES",1,0) -> 13.93853902
A81: 7. | B81: Axial hydrostatic pressure on exposed end of pipe in Expansion Joint
B82: F7=PI*D*t*H*g
B83: F7 | C83: =PI()*(C12+C13)*C13*C78*I13*IF(UPPER(C24)="YES",1,0) -> 1.995849553 | E83: =PI()*(E12-E13)*E13*E78*I13*IF(UPPER(E24)="YES",1,0) -> 2.058614993
A85: 8. | B85: Dynamic pressure at the bend due to the vector difference of momentum
B86: F8 = 2.5*(Q^2/d^2)*sin((b-a)/2) | D86: P8= mV =Q*r*Vi
B87: P8 (kN) | C87: =I10*I13/9.81*C30 -> 1.145999301 | E87: =I10*I13/9.81*E30 -> 1.145999301
B88: F8 | D88: =2.5*(I10^2/C12^2)*SIN((E31-C31)/2) -> 0.540232344
A90: 9. | B90: Axial (small diameter) force on Reducer
B91: F9=PI()*(Dupi^2-Ddni^2)/4*g*H
B92: Reducer: | C92: No | E92: No
B93: Location & Diameter: | C93: 3 | D93: 0.4 | E93: 4 | F93: 0.4
B94: St. Head | C94: =I23-(D16+C93*SIN(C31)) -> 17 | E94: =I23-(D16-E93*SIN(E31)) -> 18.86450899
B95: Dyn. Head | C95: =I26/I24*(I25-C93*SIN(C31)) -> 10.63316571 | E95: =I26/I24*(I25+E93*SIN(E31)) -> 10.98475884
B96: F9 (kN) | C96: =PI()*((C12)^2-(D93)^2)/4*I13*(C94+C95)*IF(UPPER(C92)="YES",1,0) -> 0 | E96: =PI()*((E12)^2-(F93)^2)/4*I13*(E94+E95)*IF(UPPER(E92)="YES",1,0) -> 0
A98: 10 | B98: Axial drag of flowing Water (friction of flowing water) (not considered in MHP)
B99: F10=g*PI()*Dupi^2/4*DH(Exp to block)
B100: F10 (kN) | C100: =IF(C16="",I27-C52*SIN(C31),(C16-D16)/C18*(C18-C22))*(I13*PI()*(C12)^2/4)*IF(D100="No",0,1) -> 0 | D100: No | E100: =IF(C16="",I27+E22*SIN(E31),(D16-E16)/E18*E22)*(I13*PI()*(E12-E13*2)^2/4)*IF(F100="No",0,1) -> 0 | F100: No
A102: 11 | B102: Axial (u/s slope) force due to soil pressure upstream of the block
B103: F11 =gs*hs^2/2*cos f*ka*B
B104: ka= (cosi-sqrt(cosi^2-cosf^2))/(cosi+sqrt(cosi^2-cosf^2)) | D104: =(COS(C31)-SQRT(COS(C31)^2-COS(J18)^2))/(COS(C31)+SQRT(COS(C31)^2-COS(J18)^2)) -> 0.3333333333 | F104: Width, B(m) | G104: 2
B105: hs = soil depth = hu | C105: 1.8
B106: F11 | C106: =(I19*C105^2/2*COS(C31)*D104*G104)*IF(D106="No",0,1) -> 21.6 | D106: Yes | E106: @ 1/3 of hs | F106: =C105/3 -> 0.6
A108: 12 | B108: Vertical force due to the weight of the block
B109: F12 =gblock*Vol of block
B110: Vol of block | C110: 16.191
B111: F12 | D111: =I15*C110*IF(E111="No",0,1) -> 356.202 | E111: Yes
A113: SUMMARY OF CRITICAL FORCES | E113: Expansion | G113: Contraction
E114: @ bend | F114: Total | G114: @ bend | H114: Total
A115: 1 | B115: Summation of total horizontal forces SH (kN) | E115: =C145 -> 16.55145069 | F115: =C144 -> 38.15145069 | G115: =C149 -> -10.40964409 | H115: =C148 -> 11.19035591
A116: 2 | B116: Summation of total vertical forces SV (kN) | E116: =D145 -> -16.55363997 | F116: =D144 -> 339.64836 | G116: =D149 -> -3.559374321 | H116: =D148 -> 352.6426257
A117: 3 | B117: Summation of total moment forces SM (kN-m) | E117: =C48+E48 -> 0 | G117: =E117 -> 0
B119: Expansion
C120: H | D120: V
B121: F1 | C121: =-C44*SIN(C31) -> 0 | D121: =C44*COS(C31) -> 3.515701361
C122: =-E44*SIN(E31) -> -1.449843675 | D122: =E44*COS(E31) -> 2.751828715
B123: F2 | C123: =C53*COS(C31) -> 12.30495476 | D123: =C53*SIN(C31) -> 0
B125: F3 | C125: =D58*SIN((E31+C31)/2) -> 3.733201388 | D125: =-D58*COS((E31+C31)/2) -> -15.09465651
B127: F4 | C127: =C63*COS(C31) -> 0 | D127: =C63*SIN(C31) -> 0
C128: =E63*COS(E31) -> 0.4832870549 | D128: =E63*SIN(E31) -> 0.2546272868
B129: F5 | C129: =C70*COS(C31) -> 0 | D129: =C70*SIN(C31) -> 0
C130: =-E70*COS(E31) -> 0 | D130: =-E70*SIN(E31) -> 0
B131: F6 | C131: =C79*COS(C31) -> 13.50726465 | D131: =C79*SIN(C31) -> 0
C132: =-E79*COS(E31) -> -12.33167202 | D132: =-E79*SIN(E31) -> -6.497132827
B133: F7 | C133: =C83*COS(C31) -> 1.995849553 | D133: =C83*SIN(C31) -> 0
C134: =-E83*COS(E31) -> -1.821293099 | D134: =-E83*SIN(E31) -> -0.9595765406
B135: F8 | C135: =D88*SIN((E31+C31)/2) -> 0.1297020742 | D135: =-D88*COS((E31+C31)/2) -> -0.5244314612
B137: F9 | C137: =C96*COS($C$31) -> 0 | D137: =C96*SIN($C$31) -> 0
C138: =-E96*COS($E$31) -> 0 | D138: =-E96*SIN($E$31) -> 0
B139: F10 | C139: =C100*COS($C$31) -> 0 | D139: =C100*SIN($C$31) -> 0
C140: =-E100*COS($E$31) -> 0 | D140: =-E100*SIN($E$31) -> 0
B141: F11 | C141: =C106*COS($C$31) -> 21.6 | D141: =C106*SIN($C$31) -> 0
B143: F12 | D143: =D111 -> 356.202
B144: Total | C144: =SUM(C121:C143) -> 38.15145069 | D144: =SUM(D121:D143) -> 339.64836
B145: Bend | C145: =C144-$C$141 -> 16.55145069 | D145: =D144-$D$141-$D$143 -> -16.55363997
B147: Contraction
B148: Total | C148: =C144-2*(C123+C131+C132) -> 11.19035591 | D148: =D144-2*(D123+D131+D132) -> 352.6426257
B149: Bend | C149: =C148-$C$141 -> -10.40964409 | D149: =D148-$D$141-$D$143 -> -3.559374321

Sheet AnchorBlock
A1: Anchor Block Stability
A2: Small Hydropower Promotion Project (SHPP)/GTZ | C2: Spreadsheet by Mr Pushpa Chitrakar
A3: Referances: 6,12,13,15,16 | E3: Date | G3: =TODAY() -> 2012-07-20
A4: SMALL HYDROPOWER PROMOTION PROJECT/GTZ | E4: Revision | G4: 2006.05
A5: Project | C5: =Project -> Golmagad SHP
A6: Developer | C6: Mansarawar Hydropower P Ltd
A7: Consultant | C7: EHS
A8: Designed | C8: Pushpa Chitrakar
A9: Checked | C9: Pushpa Chitrakar
A11: Input | D11: Output
A12: Anchor | L12: X | M12: Y
B13: Upstream depth, Hu (m) | C13: 3.3 | E13: Concrete volume of Anchor Block | F13: =((C14*C16)+(0.5*C16*(C13-C14)))*C15-C21*PI()*C23^2/4*COS(C24*PI()/180)-(C16-C21)*PI()*C23^2/4*COS(C25*PI()/180) -> 16.19084896 | L13: 0 | M13: =C13 -> 3.3
B14: Downstream depth, Hd (m) | C14: 2.25 | E14: Weight of block, Wb (kN) | F14: =F13*C17 -> 356.1986772 | L14: =L13 -> 0 | M14: 0
B15: Width, W (m) | C15: 2 | E15: Centre of gravity XX | F15: =((C16*C14)*C16/2+(0.5*C16*(C13-C14)*C16/3))/((C16*C14)+(0.5*C16*(C13-C14))) -> 1.405405405 | L15: =C16 -> 3 | M15: =M14 -> 0
B16: Length, L (m) | C16: 3 | L16: =L15 -> 3 | M16: =C14 -> 2.25
B17: g anchor (kN/m3) | C17: 22 | L17: =L14 -> 0 | M17: =M13 -> 3.3
B18: m | C18: 0.5
A20: Penstock | L20: Pipe CL
B21: Bend at (X), (m) | C21: 1 | L21: =L13-0.5 -> -0.5 | M21: =M22+(ABS(L21)+L22)*TAN(PI()/180*C24) -> 2.496302287
B22: Bend at (Y), (m) | C22: 2.15 | L22: =C21 -> 1 | M22: =C22 -> 2.15
B23: Diameter, d (m) | C23: 0.458 | L23: =L15+0.5 -> 3.5 | M23: =M22-(L23-L22)*TAN(PI()/180*C25) -> 0.9842308546
B24: Upstream angle, a (deg) | C24: 13
B25: Upstream angle, b (deg) | C25: 25 | L25: 1 | M25: =M13 -> 3.3
L26: 1 | M26: =C22 -> 2.15
A27: Foundation | L27: 1 | M27: 0
B28: Upstream depth hfu (m) | C28: 1.8 | E28: Active earth pressure coeff, Ka | F28: =(COS(C24*PI()/180)-SQRT(COS(C24*PI()/180)^2-COS(C29*PI()/180)^2))/(COS(C24*PI()/180)+SQRT(COS(C24*PI()/180)^2-COS(C29*PI()/180)^2)) -> 0.3714742645
B29: Soil friction f, (deg) | C29: 30 | F29: F Pa | G29: Fx | H29: Fy | L29: Pipe
B30: g soil (kN/m3) | C30: 20 | E30: Soil force | F30: =C30*C28^2/2*COS(PI()/180*C24)*F28*C15 -> 23.45458053 | G30: =C30*C28^2/2*COS(PI()/180*C24)*F28*C15*COS(PI()/180*C24) -> 22.85344115 | H30: =C30*C28^2/2*COS(PI()/180*C24)*F28*C15*SIN(PI()/180*C24) -> 5.276132619 | L30: =L21 -> -0.5 | M30: =M21+$C$23 -> 2.954302287 | N30: =M21-$C$23 -> 2.038302287
B31: Bearing Capacity, SBC (kN/m2) | C31: 200 | E31: Acting at (m) | F31: =C28/3 -> 0.6 | L31: =L22 -> 1 | M31: =M22+$C$23 -> 2.608 | N31: =M22-$C$23 -> 1.692
L32: =L23 -> 3.5 | M32: =M23+$C$23 -> 1.442230855 | N32: =M23-$C$23 -> 0.5262308546
A33: Forces (with soil pressure and block weight)
B34: Forces with earthpressure & anchor | C34: Yes | E34: Overturning | G34: Bearing | I34: Sliding
A35: Expansion | D35: Net Forces @ bend | E35: SM @ O | F35: =D36*C22+G30*F31+F14*F15+D37*C21 -> 563.3029027 | G35: P max | H35: =C37/(C15*C16)*(1+6*F37/C16) -> 72.68096758 | I35: =C18*C37 -> 172.63 | L35: =L30 -> -0.5 | M35: =C28+ABS(L35)*TAN(C24*PI()/180) -> 1.915434096
B36: SH (kN) | C36: 53.18 | D36: =C36-$G$30*IF(C34="No",0,1) -> 30.32655885 | E36: d | F36: =F35/C37 -> 1.631532476 | G36: P min | H36: =C37/(C15*C16)*(1-6*F37/C16) -> 42.40569909 | I36: =IF(I35<1.5*C36,"Not Ok", "Ok") -> Ok | L36: =L13 -> 0 | M36: =C28 -> 1.8
B37: SV (kN) | C37: 345.26 | D37: =C37-($H$30+$F$14)*IF(C34="No",0,1) -> -16.21480984 | E37: ="eccentricity e, "&IF(F38>F37, "Ok", "Not OK") -> eccentricity e, Ok | F37: =ABS(C16/2-F36) -> 0.1315324762 | H37: =IF(OR(H35<0,H36<0,H35>C31),"Not Ok", "Ok") -> Ok
E38: e allowable | F38: =C16/6 -> 0.5
A40: Contraction | E40: SM @ O | F40: =D40*C22+G30*F31+F14*F15+D42*C21 -> 473.2808012 | G40: P max | H40: =C42/(C15*C16)*(1+6*F42/C16) -> 55.8663996 | I40: =C18*C42 -> 160.22
B41: SH (kN) | C41: 16.66 | D41: =C41-$G$30*IF(C34="No",0,1) -> -6.193441148 | E41: d | F41: =F40/C42 -> 1.476971668 | G41: P min | H41: =C42/(C15*C16)*(1-6*F42/C16) -> 50.94693374 | I41: =IF(I40<1.5*C41,"Not Ok", "Ok") -> Ok
B42: SV (kN) | C42: 320.44 | D42: =C42-($H$30+$F$14)*IF(C34="No",0,1) -> -41.03480984 | E42: ="eccentricity e, "&IF(F38>F42, "Ok", "Not OK") -> eccentricity e, Ok | F42: =ABS(C16/2-F41) -> 0.02302833226 | H42: =IF(OR(H40<0,H41<0,H40>C31),"Not Ok", "Ok") -> Ok
K43: =30.327*2.15 + 22.853 * 0.6 + 356.199 * 1.405 - 16.215 * 1 -> 563.159445

Sheet Turbine
A1: Turbine Selection
A2: Small Hydropower Promotion Project (SHPP)/GTZ | C2: Spreadsheet by Mr Pushpa Chitrakar
A3: Referances: 6,7,8,12,13 | B3: Date | C3: =TODAY() -> 2012-07-20
A4: SMALL HYDROPOWER PROMOTION PROJECT/GTZ | B4: Revision | C4: 2006.05
A5: Project | B5: =Hydrology!$B$5 -> Upper Jogmai SHP
A6: Developer | B6: Kankaimai Hydropower P Ltd
A7: Consultant | B7: EPC Consult
A8: Designed | B8: Pushpa Chitrakar
A9: Checked | B9: Pushpa Chitrakar
A11: Input
A12: Discharge (l/s) | B12: 150 | C12: Gear ratio at turbine | D12: 1
A13: Gross head (m) | B13: 69 | C13: Gear ratio at generator | D13: 2
A14: Hydraulic losses | B14: 0.1594 | C14: No of turbines/generators | D14: 1
A15: Max turbine output kW | B15: 67.89 | C15: Total number of jets if Pelton n | D15: 2
A16: Turbine rpm | B16: 750 | C16: Specified turbine | D16: Pelton
A17: =IF(D16="Pelton","Cd","bo (mm)") -> Cd | B17: 0.96 | C17: =IF(D16="Pelton","Cu","bo (mm)") -> Cu | D17: 0.46
A19: Output
A20: Net head m | B20: =B13*(1-B14) -> 58.0014 | C20: Generator with gearing rpm | D20: =B16*D13/D12 -> 1500
A22: No Gearing | C22: With Gearing
A23: Sp speed of runner rpm (no gearing) | B23: =B16*SQRT(1.4*B15/D14)/B20^(5/4) -> 45.68042019 | C23: Sp speed of turbine | D23: =D12/D13*B23 -> 22.84021009
A24: ="Pelton (12-30) => (Ns "&ROUND(12*SQRT(D15),0)&"-"&ROUND(30*SQRT(D15),0)&")" -> Pelton (12-30) => (Ns 17-42) | B24: =IF(OR(B23<12*SQRT(D15),B23>30*SQRT(D15)),"**","Pelton") -> ** | C24: ="Pelton (12-30) => (Ns "&ROUND(12*SQRT(D15),0)&"-"&ROUND(30*SQRT(D15),0)&")" -> Pelton (12-30) => (Ns 17-42) | D24: =IF(OR(D23<12*SQRT(D15),D23>30*SQRT(D15)),"**","Pelton") -> Pelton
A25: ="Turgo (Ns 20-70) => (Ns "&ROUND(20*SQRT(D15),0)&"-"&ROUND(70*SQRT(D15),0)&")" -> Turgo (Ns 20-70) => (Ns 28-99) | B25: =IF(OR(B23<20*SQRT(D15),B23>70*SQRT(D15)),"**","Turgo") -> Turgo | C25: ="Turgo (Ns 20-70) => (Ns "&ROUND(20*SQRT(D15),0)&"-"&ROUND(70*SQRT(D15),0)&")" -> Turgo (Ns 20-70) => (Ns 28-99) | D25: =IF(OR(D23<20*SQRT(D15),D23>70*SQRT(D15)),"**","Turgo") -> **
A26: Crossflow (Ns 20-80) | B26: =IF(OR(B23<20,B23>80),"**","Crossflow") -> Crossflow | C26: Crossflow (Ns 20-80) | D26: =IF(OR(D23<20,D23>80),"**","Crossflow") -> Crossflow
A27: Fracis (Ns 80-400) | B27: =IF(OR(B23<80,B23>400),"**","Francis") -> ** | C27: Fracis (Ns 80-400) | D27: =IF(OR(D23<80,D23>400),"**","Francis") -> **
A28: Propeller or Kaplan (Ns 340-1000) | B28: =IF(OR(B23<340,B23>1000),"**","Propeller/Kaplan") -> ** | C28: Propeller or Kaplan (Ns 340-1000) | D28: =IF(OR(D23<340,D23>1000),"**","Propeller/Kaplan") -> **
A30: =IF(D16="Pelton","Jet velocity Vj (m/s)","bo (mm)") -> Jet velocity Vj (m/s) | B30: =IF(D16="Pelton",B17*SQRT(2*9.81*B13*(1-B14)),B12/D14/(0.92*1*SQRT(B13))) -> 32.38470705
A31: =IF(D16="Pelton","Nozzle diameter, Dn (mm)","nt") -> Nozzle diameter, Dn (mm) | B31: =IF(D16="Pelton",SQRT(4*B12/D15/1000*1/(PI()*B30*0.98))*1000,40*SQRT(B13)/B17) -> 54.85328822
A32: Pitch circle diameter, PCD (mm) | B32: =60*(D17*SQRT(2*9.81*B13*(1-B14))*D20/B16)/(PI()*D20)*1000 -> 395.1542759

Sheet Electrical
A1: Selection of Electrical Equipment
A2: Small Hydropower Promotion Project (SHPP)/GTZ | C2: Spreadsheet by Mr Pushpa Chitrakar
A3: Referances: 6,7,8,12,13 | B3: Date | C3: =TODAY() -> 2012-07-20
A4: SMALL HYDROPOWER PROMOTION PROJECT/GTZ | B4: Revision | C4: 2006.05
A5: Project | B5: =Hydrology!$B$5 -> Upper Jogmai SHP
A6: Developer | B6: Kankaimai Hydropower P Ltd
A7: Consultant | B7: EPC Consult
A8: Designed | B8: Pushpa Chitrakar
A9: Checked | B9: Pushpa Chitrakar
A11: INPUT
A12: Discharge (m3/s) | B12: 0.08 | C12: Power factor | D12: 0.8
A13: Gross head (m) | B13: 50.968 | C13: Safety factor of generator | D13: 1.3
A14: Overall plant efficiency (%) | B14: 0.5 | C14: Phase | D14: 1
A15: Temperature (oC) | B15: 45 | C15: Type of Generator | D15: 2
A16: Altitude (m) | B16: 1500 | C16: Over rating factor of MCCB | D16: 1.25
A17: ELC correction factor | B17: 0.83 | C17: Over rating factor of cable | D17: 1.5
A18: Frequency of the system (Hz) | B18: 50 | C18: No. of poles | D18: 4
A19: ="Capacity of used generator "&IF(D15=2,"(kW)","(kVA)") -> Capacity of used generator (kW) | B19: 0 | C19: Rated rotor speed if induction generator N (rpm) | D19: 1450
A20: =IF(D15=1,"","Capacitor configuration") -> Capacitor configuration | B20: Delta | C20: =IF(D15=1,"","Efficiency of motor at full load") -> Efficiency of motor at full load | D20: 0.89
A22: OUTPUT
A23: Pe Electrical output (active power) (kW) | B23: =B12*B13*B14*9.81 -> 19.9998432 | C23: =IF(AND(B23>10,D14=1),"Use of 3-phase generator is mandatory","Ok") -> Use of 3-phase generator is mandatory
A25: Generator
A26: Temp.factor | B26: =FORECAST(B15,D86:D93,C86:C93) -> 0.9560714286 | C26: Altitude factor | D26: =FORECAST(B16,B86:B100,A86:A100) -> 0.9627857143
A27: ="Capacity "&IF(D15=2,"(kW)","(kVA)") -> Capacity (kW) | B27: =(B23/B26/D26)*D13*IF(D15=1,1/B17/D12,1) -> 28.24554544 | C27: ="Actual available capacity "&IF(D15=2,"(kW)","(kVA)") -> Actual available capacity (kW) | D27: =IF(OR(AND(D15=1,OR(B27>200,B27<5))=TRUE,AND(D15=2,OR(B27>150,B27<0.1))=TRUE),"NA", IF(D15=1,IF(ISNA(MATCH(B27,D135:D157,0))=FALSE,B27,CHOOSE(MATCH(B27,D135:D157,1)+1,5,6,7.5,10,15,20,25,30,40,45,50,63,75,82.5,90,100,110,125,140,150,160,180,200)),IF(ISNA(MATCH(B27,H135:H159,0))=FALSE,B27,CHOOSE(MATCH(B27,H135:H159,1)+1,0.1,0.4,0.55,0.75,1.1,1.5,2.2,3.7,5.5,7.5,9.3,11,15,18.5,22,30,37,45,55,75,90,110,125,132,150)))) -> 30
A28: Synchronous rotational speed Ns (rpm) | B28: =120*B18/D18 -> 1500 | C28: =IF(D15=1,"","Rotational speed of the generator (rpm)") -> Rotational speed of the generator (rpm) | D28: =IF(D15=1,"",B28*(1+(B28-D19)/B28)) -> 1550
A30: =IF(D15=1,"ELC","IGC")&" capacity (kW)" -> IGC capacity (kW) | B30: =B23 -> 19.9998432 | C30: Calculated Ballast capacity 1.2*Pe (kW) | D30: =B23*1.2 -> 23.99981184
C31: =IF(D15=1,IF(B23<50,"","Ballast capacity of ELC-Extention (kW)"),"Excitation Capacitance (micro F)") -> Excitation Capacitance (micro F) | D31: =IF(D15=1,IF(B23<50,"",60%*1.2*B23+40%*B30),1000000/D20*IF(B20="Star",3,1)*1000*B23*SIN(ACOS(D12))/(3*(IF(D14=1,SQRT(3),1)*B33)^2*D12*2*PI()*B18)) -> 123.1572843
A33: Rated Voltage (V) | B33: =IF(D15=1,IF(D14=1,230,400),IF(D14=1,220,380)) -> 220 | C33: Irated for Cable & MCCB (A) at Generator side | D33: =1000/B33*IF(B19>0,B19,D27)*IF(D14=1,1,1/1.732)*IF(D15=1,1,1/D12) -> 170.4545455
A35: Rating of MCCB (A) | B35: =IF(D14=1,1,1/1.732)*B23*1000/D12/B33 -> 113.6354727 | C35: Calculated size of MCCB (A) | D35: =B35*D16 -> 142.0443409
A37: Cable
A38: Rating (A) | B38: =D33*D17 -> 255.6818182 | C38: ="Size of "&IF(D14=3,"4","2")&"-core cupper armoured cables" -> Size of 2-core cupper armoured cables | D38: =IF(ISNA(VLOOKUP(B38,A50:C67,2,FALSE)),VLOOKUP(B38,A50:C67,3,TRUE)) -> 150
A45: REFERENCES AND TABLES
A47: Table 1: 3-Phase system
A48: Current Rating of power cable with cupper conductor
A49: Current Rating (amps) | B49: Conductor area (mm2)
A50: 17 | B50: 1.5 | C50: 2.5
A51: 24 | B51: 2.5 | C51: 4
A52: 30 | B52: 4 | C52: 6
A53: 39 | B53: 6 | C53: 10
A54: 52 | B54: 10 | C54: 16
A55: 66 | B55: 16 | C55: 25
A56: 90 | B56: 25 | C56: 35
A57: 110 | B57: 35 | C57: 50
A58: 135 | B58: 50 | C58: 70
A59: 165 | B59: 70 | C59: 95
A60: 200 | B60: 95 | C60: 120
A61: 230 | B61: 120 | C61: 150
A62: 265 | B62: 150 | C62: 185
A63: 305 | B63: 185 | C63: 240
A64: 355 | B64: 240 | C64: 300
A65: 400 | B65: 300 | C65: 400
A66: 455 | B66: 400 | C66: 500
A67: 500 | B67: 500
A69: Table 2: 1-Phase system
A70: Current Rating of power cable with cupper conductor
A71: Current Rating (amps) | B71: Conductor area (mm2)
A72: 12 | B72: 1 | C72: 1.5
A73: 15 | B73: 1.5 | C73: 2.5
A74: 22 | B74: 2.5 | C74: 4
A75: 29 | B75: 4 | C75: 6
A76: 37 | B76: 6 | C76: 10
A77: 51 | B77: 10 | C77: 16
A78: 68 | B78: 16 | C78: 25
A79: 86 | B79: 25 | C79: 35
A80: 110 | B80: 35 | C80: 40
A81: 121 | B81: 40 | C81: 50
A82: 145 | B82: 50 | C82: Refer cell note C27
A84: Table 3: Altitudes and altitude factors | C84: Table 4: Temperatures and temperature factors
A85: Altitude | B85: Factor | C85: Temperatures | D85: Factors
A86: 1000 | B86: 1 | C86: 20 | D86: 1.1
A87: 1250 | B87: 0.98 | C87: 25 | D87: 1.08
A88: 1500 | B88: 0.96 | C88: 30 | D88: 1.06
A89: 1750 | B89: 0.945 | C89: 35 | D89: 1.03
A90: 2000 | B90: 0.93 | C90: 40 | D90: 1
A91: 2250 | B91: 0.915 | C91: 45 | D91: 0.96
A92: 2500 | B92: 0.9 | C92: 50 | D92: 0.92
A93: 2750 | B93: 0.88 | C93: 55 | D93: 0.88
A94: 3000 | B94: 0.86
A95: 3250 | B95: 0.845
A96: 3500 | B96: 0.83
A97: 3750 | B97: 0.815 | C97: Table 5: Phases
A98: 4000 | B98: 0.8 | C98: Phase
A99: 4250 | B99: 0.785 | C99: 1-phase | D99: 1
A100: 4500 | B100: 0.77 | C100: 3-phase | D100: 3
A104: Type of Generator
A105: Synchronous | B105: 1
A106: Induction | B106: 2
A116: Altitude | B116: Altitude factor | D116: Temperature | E116: Temperature factor
A117: 1000 | B117: 1 | D117: 20 | E117: 1.1
A118: 1250 | B118: 0.98 | D118: 25 | E118: 1.08
A119: 1500 | B119: 0.96 | D119: 30 | E119: 1.06
A120: 1750 | B120: 0.945 | D120: 35 | E120: 1.03
A121: 2000 | B121: 0.93 | D121: 40 | E121: 1
A122: 2250 | B122: 0.915 | D122: 45 | E122: 0.96
A123: 2500 | B123: 0.9 | D123: 50 | E123: 0.92
A124: 2750 | B124: 0.88 | D124: 55 | E124: 0.88
A125: 3000 | B125: 0.86
A126: 3250 | B126: 0.845
A127: 3500 | B127: 0.83
A128: 3750 | B128: 0.815
A129: 4000 | B129: 0.8
A130: 4250 | B130: 0.785
A131: 4500 | B131: 0.77
A132: Synchronous Generator | H132: Induction Generator
A133: Single Phase | D133: Three Phase | H133: Three Phase
A134: Size (kVA) | B134: Cost (Rs) | D134: Size (kVA) | E134: Cost (Rs) | H134: Size (kW) | I134: Cost (Rs)
A135: 5 | B135: 44400 | D135: 5 | E135: 36030 | H135: 0.1 | I135: 6180
A136: 6 | B136: 48680 | D136: 6 | E136: 40310 | H136: 0.4 | I136: 6500
A137: 7.5 | B137: 53520 | D137: 7.5 | E137: 49330 | H137: 0.55 | I137: 7230
A138: 10 | B138: 63290 | D138: 10 | E138: 54920 | H138: 0.75 | I138: 8470
A139: 15 | B139: 86190 | D139: 15 | E139: 70180 | H139: 1.1 | I139: 9340
A140: 20 | B140: 75000 | D140: 20 | E140: 82235 | H140: 1.5 | I140: 11850
A141: 25 | B141: 80000 | D141: 25 | E141: 104370 | H141: 2.2 | I141: 14190
A142: 30 | B142: 85000 | D142: 30 | E142: 101660 | H142: 3.7 | I142: 20730
A143: 40 | B143: 90000 | D143: 40 | E143: 156640 | H143: 5.5 | I143: 23080
D144: 45 | E144: 136070 | H144: 7.5 | I144: 38180
D145: 50 | E145: 149520 | H145: 9.3 | I145: 45100
D146: 63 | E146: 190960 | H146: 11 | I146: 47490
D147: 75 | E147: 204200 | H147: 15 | I147: 69510
D148: 82.5 | E148: 207550 | H148: 18.5 | I148: 90520
D149: 90 | E149: 216790 | H149: 22 | I149: 98330
D150: 100 | E150: 247150 | H150: 30 | I150: 153320
D151: 110 | E151: 254690 | H151: 37 | I151: 201580
D152: 125 | E152: 278440 | H152: 45 | I152: 256870
D153: 140 | E153: 307440 | H153: 55 | I153: 298500
D154: 150 | E154: 332230 | H154: 75 | I154: 366690
D155: 160 | E155: 342180 | H155: 90 | I155: 461360
D156: 180 | E156: 357590 | H156: 110 | I156: 509020
D157: 200 | E157: 388250 | H157: 125 | I157: 568550
H158: 132 | I158: 602000
H159: 150 | I159: 616720

Sheet MachineFoundation
A1: Turbine and Generator Machine Foundation | G1: Section | I1: Plan
A2: Small Hydropower Promotion Project (SHPP)/GTZ | B2: Spreadsheet by Mr Pushpa Chitrakar | G2: X | H2: y | I2: x | J2: y
A3: Referances: 6,12,13,15,16 | B3: Date | C3: =TODAY() -> 2012-07-20 | G3: 0 | H3: 0 | I3: 0 | J3: 0
A4: SMALL HYDROPOWER PROMOTION PROJECT/GTZ | B4: Revision | C4: 2006.05 | G4: =B32 -> 3.2 | H4: =H3 -> 0 | I4: =G4 -> 3.2 | J4: =J3 -> 0
A5: Project | B5: Upper Jogmai, Ilam | G5: =G4 -> 3.2 | H5: =B34 -> 1.5 | I5: =I4 -> 3.2 | J5: =B33 -> 2.5
A6: Developer | B6: Kankaimai Hydropower P Ltd | G6: =C39+D33/2 -> 0.85 | H6: =H5 -> 1.5 | I6: =I3 -> 0 | J6: =J5 -> 2.5
A7: Consultant | B7: EPC Consult | G7: =G6 -> 0.85 | H7: =H6-D35 -> 0.5 | I7: =I3 -> 0 | J7: =J3 -> 0
A8: Designed | B8: Pushpa Chitrakar | G8: =G7-D33 -> 0.4 | H8: =H7 -> 0.5
A9: Checked | B9: Pushpa Chitrakar | G9: =G8 -> 0.4 | H9: =H5 -> 1.5 | I9: =G9 -> 0.4 | J9: =D39-D34/2 -> 1
G10: =G3 -> 0 | H10: =H9 -> 1.5 | I10: =I9+D33 -> 0.85 | J10: =J9 -> 1
G11: =G3 -> 0 | H11: =H3 -> 0 | I11: =I10 -> 0.85 | J11: =J10+D34 -> 1.5
I12: =I9 -> 0.4 | J12: =J11 -> 1.5
I13: =I9 -> 0.4 | J13: =J9 -> 1
G15: Turbine CL
G16: =I16 -> 0.625 | H16: =H17+0.1 -> 1.6 | I16: =C39 -> 0.625 | J16: =J17+0.5 -> 1.75
G17: =I17 -> 0.625 | H17: =B34 -> 1.5 | I17: =I16 -> 0.625 | J17: =D39 -> 1.25
G18: =I18 -> 0.625 | H18: =H17-0.5 -> 1 | I18: =I17 -> 0.625 | J18: =J17-0.5 -> 0.75
I20: =I21+0.5 -> 1.125 | J20: =D39 -> 1.25
I21: =C39 -> 0.625 | J21: =J20 -> 1.25
I22: =I21-0.5 -> 0.125 | J22: =J21 -> 1.25
G23: Generator CL
A24: INPUT | G24: =I24 -> 2.025 | H24: =H16 -> 1.6 | I24: =C40 -> 2.025 | J24: =J25+0.5 -> 1.75
A25: Gross head hg (m) | B25: 51 | C25: Design Discharge Qd (m3/s) | D25: 0.15 | G25: =I25 -> 2.025 | H25: =H17 -> 1.5 | I25: =I24 -> 2.025 | J25: =D40 -> 1.25
A26: Surge head hs (m) | B26: 50 | G26: =I26 -> 2.025 | H26: =H18 -> 1 | I26: =I25 -> 2.025 | J26: =J25-0.5 -> 0.75
A28: Foundation | C28: Penstock | I28: =I29+0.5 -> 2.525 | J28: =D40 -> 1.25
A29: Foundation on | B29: Soil | C29: Diameter dp (m) | D29: 0.3 | I29: =C40 -> 2.025 | J29: =J28 -> 1.25
A30: Allowable bearing capacity Pall (kN/m2) | B30: 180 | C30: Material | D30: mild steel | I30: =I29-0.5 -> 1.525 | J30: =J29 -> 1.25
A31: Friction coeff between block and soil m | B31: 0.5 | C31: Centreline above PH floor hp (m) | D31: 0.3
A32: Length L (m) | B32: 3.2 | C32: Turbine Pit | G32: W1
A33: Bredth B (m) | B33: 2.5 | C33: Length of opening Lo (m) | D33: 0.45 | G33: =$B$32-C47 -> 0.2 | H33: =H16-0.9 -> 0.7
A34: Height H (m) | B34: 1.5 | C34: Bredth of opening Bo (m) | D34: 0.5 | G34: =G33 -> 0.2 | H34: =H17-0.9 -> 0.6
A35: Material of foundation | B35: Concrete | C35: Height of opening Ho (m) | D35: 1 | G35: =G34 -> 0.2 | H35: =H18-0.9 -> 0.1
A36: Density of foundation (kM/m3) | B36: 22 | C36: Height of tailrace canal Htr (m) | D36: 0.5
G37: W2
A38: Electro-mechanical | C38: XX (m) | D38: YY (m) | G38: =$B$32-C48 -> 0.625 | H38: =H33 -> 0.7
A39: Weight of turbine Wt (kN) & cl position | B39: =300*9.81/1000 -> 2.943 | C39: 0.625 | D39: 1.25 | G39: =G38 -> 0.625 | H39: =H34 -> 0.6
A40: Weight of generator Wg (kN) & cl position | B40: =350*9.81/1000 -> 3.4335 | C40: 2.025 | D40: 1.25 | G40: =G39 -> 0.625 | H40: =H35 -> 0.1
G41: W3
A42: OUTPUT | G42: =$B$32-C49 -> 2.025 | H42: =H38 -> 0.7
A43: Forces | B43: Weight Wi (kN) | C43: Lever Arm LA (m) | G43: =G42 -> 2.025 | H43: =H39 -> 0.6
C44: LA along XX | D44: LA along YY | G44: =G43 -> 2.025 | H44: =H40 -> 0.1
A45: ="Force due to h total of "&ROUND(B25+B26,3)&" m, Fh (kN)" -> Force due to h total of 101 m, Fh (kN) | B45: =PI()*D29^2/4*(B25+B26)*9.81 -> 70.03623188 | C45: =B34+D31 -> 1.8
A46: Foundation
A47: W1 | B47: =(C39-D33/2)*B34*B33*$B$36 -> 33 | C47: =B32-(C39-D33/2)/2 -> 3 | D47: =B33/2 -> 1.25
A48: W2 | B48: =(D33*B34*B33-D33*D34*D35-D33*D36*D35)*$B$36 -> 27.225 | C48: =B32-C39 -> 2.575 | D48: =D47 -> 1.25
A49: W3 | B49: =(B32-(C39+D33/2))*B34*B33*$B$36 -> 193.875 | C49: =(C48-D33/2)/2 -> 1.175 | D49: =D47 -> 1.25
A50: Sum of moments SM (kN-m) | C50: =B47*C47+(B48+B39)*C48+(B49+B40)*C49-B45*C45 -> 282.4548701 | D50: =B47*D47+(B48+B39)*D48+(B49+B40)*D49-B45*C45 -> 199.5304076
A51: Sum of vertical forces SM (kN) | C51: =SUM(B47:B49,B39:B40) -> 260.4765 | D51: =C51 -> 260.4765
A53: Overturning
A54: Equivalent distance at which SM acts from critical point | C54: LA along XX | D54: LA along YY
A55: d (m) | C55: =C50/C51 -> 1.084377555 | D55: =D50/D51 -> 0.7660207643
A56: Eccentricity e, (m) | C56: =(B32/2-C55) -> 0.5156224454 | D56: =(B33/2-D55) -> 0.4839792357
A57: Allowable eccentricity e all (m) | C57: =B32/6 -> 0.5333333333 | D57: =B33/6 -> 0.4166666667
A58: Comment on overturning moment | C58: =IF(C57>C56, "Ok","Not Ok") -> Ok | D58: =IF(D57>D56, "Ok","Not Ok") -> Not Ok
A60: Bearing
A61: Pressure at base | C61: LA along XX | D61: LA along YY
A62: Pmax | C62: =C51/(B32*B33)*(1+6*C56/B32) -> 64.03788982 | D62: =D51/(B32*B33)*(1+6*D56/B33) -> 70.37912772
A63: Pmin | C63: =C51/(B32*B33)*(1-6*C56/B32) -> 1.081235181 | D63: =D51/(B32*B33)*(1-6*D56/B33) -> -5.260002718
A64: Comments on bearing | C64: =IF(OR(C62>B30,C62<0,C63<0), "Not Ok","Ok") -> Ok | D64: =IF(OR(D62>B30,D62<0,D63<0), "Not Ok","Ok") -> Not Ok
A66: Sliding
C67: LA along XX | D67: LA along YY
A68: Factor of safety against sliding, FS sl | C68: =B31*C51/B45 -> 1.859583911 | D68: =B31*D51/B45 -> 1.859583911
A69: Comment of sliding | C69: =IF(C68<1.5, "Not Ok","Ok") -> Ok | D69: =IF(D68<1.5, "Not Ok","Ok") -> Ok

Sheet Transmission
A1: Transmission and Distribution System: | AB1: Sizes and designations of ACSR conductors for MHP systems:
A2: Small Hydropower Promotion Project (SHPP)/GTZ | G2: Spreadsheet by Mr Pushpa Chitrakar | AB2: ACSR Code number | AC2: Type of ACSR | AD2: Resistance Ohm/km | AE2: Current rating max Amps | AF2: Equivalent Cu area mm2 | AG2: Inductive Reactance Ohm/km | AH2: Sp. Weight (kg/km) | AI2: Sp. Cost (Rs/km) | AJ2: ACSR Code number
A3: Referances:2,4, 6,12,13,15,16 | M3: Date | N3: =TODAY() -> 2012-07-20 | AB3: 1 | AC3: Squirrel | AD3: 1.374 | AE3: 76 | AF3: 13 | AG3: 0.355 | AH3: 80 | AI3: 13000 | AJ3: 1
A4: SMALL HYDROPOWER PROMOTION PROJECT/GTZ | M4: Revision | N4: 2006.05 | AB4: 2 | AC4: Gopher | AD4: 1.098 | AE4: 85 | AF4: 16 | AG4: 0.349 | AH4: 106 | AI4: 14500 | AJ4: 2
A5: Project: | C5: =Hydrology!B5 -> Upper Jogmai SHP | I5: Location: | J5: Power factor | L5: 0.8 | N5: Cable Summary | AB5: 3 | AC5: Weasel | AD5: 0.9116 | AE5: 95 | AF5: 20 | AG5: 0.345 | AH5: 128 | AI5: 15500 | AJ5: 3
A6: Developer | C6: Kankaimai Hydropower P Ltd | J6: Voltage systems | L6: 11000 | N6: Type | O6: Length(km) | AB6: 4 | AC6: Rabbit | AD6: 0.5449 | AE6: 135 | AF6: 30 | AG6: 0.335 | AH6: 214 | AI6: 25750 | AJ6: 4
A7: Consultant | C7: EPC Consult | L7: 400 | N7: Squirrel | O7: =SUM(U:U) -> 4.5 | AB7: 5 | AC7: Otter | AD7: 0.3434 | AE7: 185 | AF7: 50 | AG7: 0.328 | AI7: 35000 | AJ7: 5
A8: Designed | C8: Pushpa Chitrakar | L8: 230 | N8: Gopher | O8: =SUM(V:V) -> 0 | AB8: 6 | AC8: Dog | AD8: 0.2745 | AE8: 205 | AF8: 65 | AG8: 0.315 | AH8: 394 | AI8: 52000 | AJ8: 6
A9: Checked | C9: Pushpa Chitrakar | N9: Weasel | O9: =SUM(W:W) -> 10
N10: Rabbit | O10: =SUM(X:X) -> 3
N11: Otter | O11: =SUM(Y:Y) -> 1.15 | AD11: Dog | AE11: 6
N12: Dog | O12: =SUM(Z:Z) -> 5.3 | AD12: Dog | AE12: 6
N13: Total Cost(Rs) | O13: =SUMPRODUCT(AI3:AI8,O7:O12) -> 606600 | AD13: Gopher | AE13: 2
H14: Intermediate Calculation | M14: Length of neutral cables (km) | W14: 10 | Z14: 0.3 | AD14: Otter | AE14: 5
A15: Node name | C15: Reach name | D15: Reach Length (km) | E15: Phase 1,3,11 | F15: Power at next node (kW) | G15: ACSR type | H15: ACSR code | I15: Remarks " " or repeated | J15: Load Momentum (kW-m) | K15: V @ prev node (V) | L15: Current (A) | M15: Reach Voltage drop (V) | N15: V @ next node (V) | O15: S% voltage drop | P15: dV at brach (V) | Q15: V @ prev node (V) | R15: Resistance Ohm/km | S15: Reactance Ohm/km | T15: Impedence Ohm/km | U15: Squirrel | V15: Gopher | W15: Weasel | X15: Rabbiit | Y15: Otter | Z15: Dog | AD15: Rabbit | AE15: 4
AD16: Squirrel | AE16: 1
A17: PH-A-B-C-D | E17: 3 | K17: 400 | N17: =K17 -> 400 | Q17: =K17 -> 400 | U17: =IF(AND(H17=1,UPPER(I17="")),D17,0)*IF(E17=1,2,3) -> 0 | V17: =IF(AND(H17=2,UPPER(I17="")),D17,0)*IF(E17=1,2,3) -> 0 | W17: =IF(AND(H17=3,UPPER(I17="")),D17,0)*IF(E17=1,2,3) -> 0 | X17: =IF(AND(H17=4,UPPER(I17="")),D17,0)*IF(E17=1,2,3) -> 0 | Y17: =IF(AND(H17=5,UPPER(I17="")),D17,0)*IF(E17=1,2,3) -> 0 | Z17: =IF(AND(H17=6,UPPER(I17="")),D17,0)*IF(E17=1,2,3) -> 0 | AD17: Weasel | AE17: 3
A18: PH | B18: A | C18: =IF(AND(A17="",A18=""),LEFT(C17,1),IF(A18="",LEFT(C17,1),A18))&B18 -> PHA | D18: 0.3 | E18: 3 | F18: 16 | G18: Dog | H18: =VLOOKUP(G18,$AD$11:$AE$17,2) -> 6 | J18: =D18*1000*F18 -> 4800 | K18: =IF(M17=0,K17,IF(OR(E18=3,E18=11),Q18,IF(AND(E17=3,E18=1),Q18/SQRT(3),IF(A18="",K17,IF(AND(E17=1,E18=1),N17,K17))))) -> 400 | L18: =F18*1000/$L$5/K18*(IF(OR(AND(E18=11,E17=11),AND(E18=3,E17=3)),1/SQRT(3),1)) -> 28.86751346 | M18: =ROUND(T18*D18*L18*IF(E18=1,2, SQRT(3)),1) -> 6.3 | N18: =K18-M18 -> 393.7 | O18: =100*(1-N18/IF(E18=11,$L$6,IF(E18=3,$L$7,$L$8))) -> 1.575 | P18: =IF(OR(AND(E17=1,E18=1,A18<>""),AND(E17=3,E18=1)),O17,0) -> 0 | Q18: =IF(A19="",Q17,IF(OR(AND(E18=11,E17=11),AND(E18=1,E17=1),AND(E17=3,E18=3)),N17-M18,IF(AND(E18=1,E17=3),N17/SQRT(3)))) -> 393.7 | R18: =CHOOSE(H18,1.347,1.098,0.9116,0.5449,0.3434,0.2745) -> 0.2745 | S18: =CHOOSE(H18,0.355,0.349,0.345,0.335,0.328,0.315) -> 0.315 | T18: =SQRT(S18^2+R18^2) -> 0.4178220315 | U18: =IF(AND(H18=1,UPPER(I18)=""),D18,0)*IF(E18=1,2,3) -> 0 | V18: =IF(AND(H18=2,UPPER(I18)=""),D18,0)*IF(E18=1,2,3) -> 0 | W18: =IF(AND(H18=3,UPPER(I18)=""),D18,0)*IF(E18=1,2,3) -> 0 | X18: =IF(AND(H18=4,UPPER(I18)=""),D18,0)*IF(E18=1,2,3) -> 0 | Y18: =IF(AND(H18=5,UPPER(I18)=""),D18,0)*IF(E18=1,2,3) -> 0 | Z18: =IF(AND(H18=6,UPPER(I18)=""),D18,0)*IF(E18=1,2,3) -> 0.9
A19: A | B19: B | C19: =IF(AND(A18="",A19=""),LEFT(C18,1),IF(A19="",LEFT(C18,1),A19))&B19 -> AB | D19: 0.5 | E19: 1 | F19: 5 | G19: Rabbit | H19: =VLOOKUP(G19,$AD$11:$AE$17,2) -> 4 | J19: =D19*1000*F19 -> 2500 | K19: =IF(M18=0,K18,IF(OR(E19=3,E19=11),Q19,IF(AND(E18=3,E19=1),Q19/SQRT(3),IF(A19="",K18,IF(AND(E18=1,E19=1),N18,K18))))) -> 227.302801 | L19: =F19*1000/$L$5/K19*(IF(OR(AND(E19=11,E18=11),AND(E19=3,E18=3)),1/SQRT(3),1)) -> 27.49636156 | M19: =ROUND(T19*D19*L19*IF(E19=1,2, SQRT(3)),1) -> 17.6 | N19: =K19-M19 -> 209.702801 | O19: =100*(1-N19/IF(E19=11,$L$6,IF(E19=3,$L$7,$L$8))) -> 8.824869139 | P19: =IF(OR(AND(E18=1,E19=1,A19<>""),AND(E18=3,E19=1)),O18,0) -> 1.575 | Q19: =IF(A20="",Q18,IF(OR(AND(E19=11,E18=11),AND(E19=1,E18=1),AND(E18=3,E19=3)),N18-M19,IF(AND(E19=1,E18=3),N18/SQRT(3)))) -> 393.7 | R19: =CHOOSE(H19,1.347,1.098,0.9116,0.5449,0.3434,0.2745) -> 0.5449 | S19: =CHOOSE(H19,0.355,0.349,0.345,0.335,0.328,0.315) -> 0.335 | T19: =SQRT(S19^2+R19^2) -> 0.6396413136 | U19: =IF(AND(H19=1,UPPER(I19)=""),D19,0)*IF(E19=1,2,3) -> 0 | V19: =IF(AND(H19=2,UPPER(I19)=""),D19,0)*IF(E19=1,2,3) -> 0 | W19: =IF(AND(H19=3,UPPER(I19)=""),D19,0)*IF(E19=1,2,3) -> 0 | X19: =IF(AND(H19=4,UPPER(I19)=""),D19,0)*IF(E19=1,2,3) -> 1 | Y19: =IF(AND(H19=5,UPPER(I19)=""),D19,0)*IF(E19=1,2,3) -> 0 | Z19: =IF(AND(H19=6,UPPER(I19)=""),D19,0)*IF(E19=1,2,3) -> 0
B20: C | C20: =IF(AND(A19="",A20=""),LEFT(C19,1),IF(A20="",LEFT(C19,1),A20))&B20 -> AC | D20: 0.5 | E20: 1 | F20: 5 | G20: Rabbit | H20: =VLOOKUP(G20,$AD$11:$AE$17,2) -> 4 | J20: =D20*1000*F20 -> 2500 | K20: =IF(M19=0,K19,IF(OR(E20=3,E20=11),Q20,IF(AND(E19=3,E20=1),Q20/SQRT(3),IF(A20="",K19,IF(AND(E19=1,E20=1),N19,K19))))) -> 227.302801 | L20: =F20*1000/$L$5/K20*(IF(OR(AND(E20=11,E19=11),AND(E20=3,E19=3)),1/SQRT(3),1)) -> 27.49636156 | M20: =ROUND(T20*D20*L20*IF(E20=1,2, SQRT(3)),1) -> 17.6 | N20: =K20-M20 -> 209.702801 | O20: =100*(1-N20/IF(E20=11,$L$6,IF(E20=3,$L$7,$L$8))) -> 8.824869139 | P20: =IF(A20="",P19,0) -> 1.575 | Q20: =IF(A21="",Q19,IF(OR(AND(E20=11,E19=11),AND(E20=1,E19=1),AND(E19=3,E20=3)),N19-M20,IF(AND(E20=1,E19=3),N19/SQRT(3)))) -> 393.7 | R20: =CHOOSE(H20,1.347,1.098,0.9116,0.5449,0.3434,0.2745) -> 0.5449 | S20: =CHOOSE(H20,0.355,0.349,0.345,0.335,0.328,0.315) -> 0.335 | T20: =SQRT(S20^2+R20^2) -> 0.6396413136 | U20: =IF(AND(H20=1,UPPER(I20)=""),D20,0)*IF(E20=1,2,3) -> 0 | V20: =IF(AND(H20=2,UPPER(I20)=""),D20,0)*IF(E20=1,2,3) -> 0 | W20: =IF(AND(H20=3,UPPER(I20)=""),D20,0)*IF(E20=1,2,3) -> 0 | X20: =IF(AND(H20=4,UPPER(I20)=""),D20,0)*IF(E20=1,2,3) -> 1 | Y20: =IF(AND(H20=5,UPPER(I20)=""),D20,0)*IF(E20=1,2,3) -> 0 | Z20: =IF(AND(H20=6,UPPER(I20)=""),D20,0)*IF(E20=1,2,3) -> 0
B21: D | C21: =IF(AND(A20="",A21=""),LEFT(C20,1),IF(A21="",LEFT(C20,1),A21))&B21 -> AD | D21: 0.5 | E21: 1 | F21: 5 | G21: Rabbit | H21: =VLOOKUP(G21,$AD$11:$AE$17,2) -> 4 | J21: =D21*1000*F21 -> 2500 | K21: =IF(M20=0,K20,IF(OR(E21=3,E21=11),Q21,IF(AND(E20=3,E21=1),Q21/SQRT(3),IF(A21="",K20,IF(AND(E20=1,E21=1),N20,K20))))) -> 227.302801 | L21: =F21*1000/$L$5/K21*(IF(OR(AND(E21=11,E20=11),AND(E21=3,E20=3)),1/SQRT(3),1)) -> 27.49636156 | M21: =ROUND(T21*D21*L21*IF(E21=1,2, SQRT(3)),1) -> 17.6 | N21: =K21-M21 -> 209.702801 | O21: =100*(1-N21/IF(E21=11,$L$6,IF(E21=3,$L$7,$L$8))) -> 8.824869139 | P21: =IF(A21="",P20,0) -> 1.575 | Q21: =IF(A22="",Q20,IF(OR(AND(E21=11,E20=11),AND(E21=1,E20=1),AND(E20=3,E21=3)),N20-M21,IF(AND(E21=1,E20=3),N20/SQRT(3)))) -> 393.7 | R21: =CHOOSE(H21,1.347,1.098,0.9116,0.5449,0.3434,0.2745) -> 0.5449 | S21: =CHOOSE(H21,0.355,0.349,0.345,0.335,0.328,0.315) -> 0.335 | T21: =SQRT(S21^2+R21^2) -> 0.6396413136 | U21: =IF(AND(H21=1,UPPER(I21)=""),D21,0)*IF(E21=1,2,3) -> 0 | V21: =IF(AND(H21=2,UPPER(I21)=""),D21,0)*IF(E21=1,2,3) -> 0 | W21: =IF(AND(H21=3,UPPER(I21)=""),D21,0)*IF(E21=1,2,3) -> 0 | X21: =IF(AND(H21=4,UPPER(I21)=""),D21,0)*IF(E21=1,2,3) -> 1 | Y21: =IF(AND(H21=5,UPPER(I21)=""),D21,0)*IF(E21=1,2,3) -> 0 | Z21: =IF(AND(H21=6,UPPER(I21)=""),D21,0)*IF(E21=1,2,3) -> 0
A23: PH-T1 | E23: 3 | K23: 400 | N23: =K23 -> 400 | Q23: =K23 -> 400 | U23: =IF(AND(H23=1,UPPER(I23="")),D23,0)*IF(E23=1,2,3) -> 0 | V23: =IF(AND(H23=2,UPPER(I23="")),D23,0)*IF(E23=1,2,3) -> 0 | W23: =IF(AND(H23=3,UPPER(I23="")),D23,0)*IF(E23=1,2,3) -> 0 | X23: =IF(AND(H23=4,UPPER(I23="")),D23,0)*IF(E23=1,2,3) -> 0 | Y23: =IF(AND(H23=5,UPPER(I23="")),D23,0)*IF(E23=1,2,3) -> 0 | Z23: =IF(AND(H23=6,UPPER(I23="")),D23,0)*IF(E23=1,2,3) -> 0
A24: PH | B24: T1 | C24: =IF(AND(A23="",A24=""),LEFT(C23,1),IF(A24="",LEFT(C23,1),A24))&B24 -> PHT1 | D24: 0.05 | E24: 3 | F24: 21 | G24: Otter | H24: =VLOOKUP(G24,$AD$11:$AE$17,2) -> 5 | J24: =D24*1000*F24 -> 1050 | K24: =IF(M23=0,K23,IF(OR(E24=3,E24=11),Q24,IF(AND(E23=3,E24=1),Q24/SQRT(3),IF(A24="",K23,IF(AND(E23=1,E24=1),N23,K23))))) -> 400 | L24: =F24*1000/$L$5/K24*(IF(OR(AND(E24=11,E23=11),AND(E24=3,E23=3)),1/SQRT(3),1)) -> 37.88861142 | M24: =ROUND(T24*D24*L24*IF(E24=1,2, SQRT(3)),1) -> 1.6 | N24: =K24-M24 -> 398.4 | O24: =100*(1-N24/IF(E24=11,$L$6,IF(E24=3,$L$7,$L$8))) -> 0.4 | P24: =IF(OR(AND(E23=1,E24=1,A24<>""),AND(E23=3,E24=1)),O23,0) -> 0 | Q24: =IF(A25="",Q23,IF(OR(AND(E24=11,E23=11),AND(E24=1,E23=1),AND(E23=3,E24=3)),N23-M24,IF(AND(E24=1,E23=3),N23/SQRT(3)))) -> 400 | R24: =CHOOSE(H24,1.347,1.098,0.9116,0.5449,0.3434,0.2745) -> 0.3434 | S24: =CHOOSE(H24,0.355,0.349,0.345,0.335,0.328,0.315) -> 0.328 | T24: =SQRT(S24^2+R24^2) -> 0.4748763629 | U24: =IF(AND(H24=1,UPPER(I24)=""),D24,0)*IF(E24=1,2,3) -> 0 | V24: =IF(AND(H24=2,UPPER(I24)=""),D24,0)*IF(E24=1,2,3) -> 0 | W24: =IF(AND(H24=3,UPPER(I24)=""),D24,0)*IF(E24=1,2,3) -> 0 | X24: =IF(AND(H24=4,UPPER(I24)=""),D24,0)*IF(E24=1,2,3) -> 0 | Y24: =IF(AND(H24=5,UPPER(I24)=""),D24,0)*IF(E24=1,2,3) -> 0.15 | Z24: =IF(AND(H24=6,UPPER(I24)=""),D24,0)*IF(E24=1,2,3) -> 0
A26: T1-T2 | E26: 11 | K26: 11000 | N26: =K26 -> 11000 | Q26: =K26 -> 11000 | U26: =IF(AND(H26=1,UPPER(I26="")),D26,0)*IF(E26=1,2,3) -> 0 | V26: =IF(AND(H26=2,UPPER(I26="")),D26,0)*IF(E26=1,2,3) -> 0 | W26: =IF(AND(H26=3,UPPER(I26="")),D26,0)*IF(E26=1,2,3) -> 0 | X26: =IF(AND(H26=4,UPPER(I26="")),D26,0)*IF(E26=1,2,3) -> 0 | Y26: =IF(AND(H26=5,UPPER(I26="")),D26,0)*IF(E26=1,2,3) -> 0 | Z26: =IF(AND(H26=6,UPPER(I26="")),D26,0)*IF(E26=1,2,3) -> 0
A27: T1 | B27: T2 | C27: =IF(AND(A26="",A27=""),LEFT(C26,1),IF(A27="",LEFT(C26,1),A27))&B27 -> T1 T2 | D27: 1.5 | E27: 11 | F27: 21 | G27: Squirrel | H27: =VLOOKUP(G27,$AD$11:$AE$17,2) -> 1 | J27: =D27*1000*F27 -> 31500 | K27: =IF(M26=0,K26,IF(OR(E27=3,E27=11),Q27,IF(AND(E26=3,E27=1),Q27/SQRT(3),IF(A27="",K26,IF(AND(E26=1,E27=1),N26,K26))))) -> 11000 | L27: =F27*1000/$L$5/K27*(IF(OR(AND(E27=11,E26=11),AND(E27=3,E26=3)),1/SQRT(3),1)) -> 1.377767688 | M27: =ROUND(T27*D27*L27*IF(E27=1,2, SQRT(3)),1) -> 5 | N27: =K27-M27 -> 10995 | O27: =100*(1-N27/IF(E27=11,$L$6,IF(E27=3,$L$7,$L$8))) -> 0.04545454545 | P27: =IF(OR(AND(E26=1,E27=1,A27<>""),AND(E26=3,E27=1)),O26,0) -> 0 | Q27: =IF(A28="",Q26,IF(OR(AND(E27=11,E26=11),AND(E27=1,E26=1),AND(E26=3,E27=3)),N26-M27,IF(AND(E27=1,E26=3),N26/SQRT(3)))) -> 11000 | R27: =CHOOSE(H27,1.347,1.098,0.9116,0.5449,0.3434,0.2745) -> 1.347 | S27: =CHOOSE(H27,0.355,0.349,0.345,0.335,0.328,0.315) -> 0.355 | T27: =SQRT(S27^2+R27^2) -> 1.392994616 | U27: =IF(AND(H27=1,UPPER(I27)=""),D27,0)*IF(E27=1,2,3) -> 4.5 | V27: =IF(AND(H27=2,UPPER(I27)=""),D27,0)*IF(E27=1,2,3) -> 0 | W27: =IF(AND(H27=3,UPPER(I27)=""),D27,0)*IF(E27=1,2,3) -> 0 | X27: =IF(AND(H27=4,UPPER(I27)=""),D27,0)*IF(E27=1,2,3) -> 0 | Y27: =IF(AND(H27=5,UPPER(I27)=""),D27,0)*IF(E27=1,2,3) -> 0 | Z27: =IF(AND(H27=6,UPPER(I27)=""),D27,0)*IF(E27=1,2,3) -> 0
A29: T2-E | E29: 3 | K29: 400 | N29: =K29 -> 400 | Q29: =K29 -> 400 | U29: =IF(AND(H29=1,UPPER(I29="")),D29,0)*IF(E29=1,2,3) -> 0 | V29: =IF(AND(H29=2,UPPER(I29="")),D29,0)*IF(E29=1,2,3) -> 0 | W29: =IF(AND(H29=3,UPPER(I29="")),D29,0)*IF(E29=1,2,3) -> 0 | X29: =IF(AND(H29=4,UPPER(I29="")),D29,0)*IF(E29=1,2,3) -> 0 | Y29: =IF(AND(H29=5,UPPER(I29="")),D29,0)*IF(E29=1,2,3) -> 0 | Z29: =IF(AND(H29=6,UPPER(I29="")),D29,0)*IF(E29=1,2,3) -> 0
A30: T2 | B30: E | C30: =IF(AND(A29="",A30=""),LEFT(C29,1),IF(A30="",LEFT(C29,1),A30))&B30 -> T2 E | D30: 0.3 | E30: 3 | F30: 21 | G30: Dog | H30: =VLOOKUP(G30,$AD$11:$AE$17,2) -> 6 | J30: =D30*1000*F30 -> 6300 | K30: =IF(M29=0,K29,IF(OR(E30=3,E30=11),Q30,IF(AND(E29=3,E30=1),Q30/SQRT(3),IF(A30="",K29,IF(AND(E29=1,E30=1),N29,K29))))) -> 400 | L30: =F30*1000/$L$5/K30*(IF(OR(AND(E30=11,E29=11),AND(E30=3,E29=3)),1/SQRT(3),1)) -> 37.88861142 | M30: =ROUND(T30*D30*L30*IF(E30=1,2, SQRT(3)),1) -> 8.2 | N30: =K30-M30 -> 391.8 | O30: =100*(1-N30/IF(E30=11,$L$6,IF(E30=3,$L$7,$L$8))) -> 2.05 | P30: =IF(OR(AND(E29=1,E30=1,A30<>""),AND(E29=3,E30=1)),O29,0) -> 0 | Q30: =IF(A31="",Q29,IF(OR(AND(E30=11,E29=11),AND(E30=1,E29=1),AND(E29=3,E30=3)),N29-M30,IF(AND(E30=1,E29=3),N29/SQRT(3)))) -> 400 | R30: =CHOOSE(H30,1.347,1.098,0.9116,0.5449,0.3434,0.2745) -> 0.2745 | S30: =CHOOSE(H30,0.355,0.349,0.345,0.335,0.328,0.315) -> 0.315 | T30: =SQRT(S30^2+R30^2) -> 0.4178220315 | U30: =IF(AND(H30=1,UPPER(I30)=""),D30,0)*IF(E30=1,2,3) -> 0 | V30: =IF(AND(H30=2,UPPER(I30)=""),D30,0)*IF(E30=1,2,3) -> 0 | W30: =IF(AND(H30=3,UPPER(I30)=""),D30,0)*IF(E30=1,2,3) -> 0 | X30: =IF(AND(H30=4,UPPER(I30)=""),D30,0)*IF(E30=1,2,3) -> 0 | Y30: =IF(AND(H30=5,UPPER(I30)=""),D30,0)*IF(E30=1,2,3) -> 0 | Z30: =IF(AND(H30=6,UPPER(I30)=""),D30,0)*IF(E30=1,2,3) -> 0.9
A32: E-J ( r ) | E32: 1 | K32: =N30/SQRT(3) -> 226.2058355 | N32: =K32 -> 226.2058355 | Q32: =K32 -> 226.2058355 | U32: =IF(AND(H32=1,UPPER(I32="")),D32,0)*IF(E32=1,2,3) -> 0 | V32: =IF(AND(H32=2,UPPER(I32="")),D32,0)*IF(E32=1,2,3) -> 0 | W32: =IF(AND(H32=3,UPPER(I32="")),D32,0)*IF(E32=1,2,3) -> 0 | X32: =IF(AND(H32=4,UPPER(I32="")),D32,0)*IF(E32=1,2,3) -> 0 | Y32: =IF(AND(H32=5,UPPER(I32="")),D32,0)*IF(E32=1,2,3) -> 0 | Z32: =IF(AND(H32=6,UPPER(I32="")),D32,0)*IF(E32=1,2,3) -> 0
A33: E | B33: J | C33: =IF(AND(A32="",A33=""),LEFT(C32,1),IF(A33="",LEFT(C32,1),A33))&B33 -> EJ | D33: 0.5 | E33: 1 | F33: 7 | G33: Dog | H33: =VLOOKUP(G33,$AD$11:$AE$17,2) -> 6 | J33: =D33*1000*F33 -> 3500 | K33: =IF(M32=0,K32,IF(OR(E33=3,E33=11),Q33,IF(AND(E32=3,E33=1),Q33/SQRT(3),IF(A33="",K32,IF(AND(E32=1,E33=1),N32,K32))))) -> 226.2058355 | L33: =F33*1000/$L$5/K33*(IF(OR(AND(E33=11,E32=11),AND(E33=3,E32=3)),1/SQRT(3),1)) -> 38.68158389 | M33: =ROUND(T33*D33*L33*IF(E33=1,2, SQRT(3)),1) -> 16.2 | N33: =K33-M33 -> 210.0058355 | O33: =100*(1-N33/IF(E33=11,$L$6,IF(E33=3,$L$7,$L$8))) -> 8.693115014 | P33: =IF(OR(AND(E32=1,E33=1,A33<>""),AND(E32=3,E33=1)),O32,0) -> 0 | Q33: =IF(A34="",Q32,IF(OR(AND(E33=11,E32=11),AND(E33=1,E32=1),AND(E32=3,E33=3)),N32-M33,IF(AND(E33=1,E32=3),N32/SQRT(3)))) -> 226.2058355 | R33: =CHOOSE(H33,1.347,1.098,0.9116,0.5449,0.3434,0.2745) -> 0.2745 | S33: =CHOOSE(H33,0.355,0.349,0.345,0.335,0.328,0.315) -> 0.315 | T33: =SQRT(S33^2+R33^2) -> 0.4178220315 | U33: =IF(AND(H33=1,UPPER(I33)=""),D33,0)*IF(E33=1,2,3) -> 0 | V33: =IF(AND(H33=2,UPPER(I33)=""),D33,0)*IF(E33=1,2,3) -> 0 | W33: =IF(AND(H33=3,UPPER(I33)=""),D33,0)*IF(E33=1,2,3) -> 0 | X33: =IF(AND(H33=4,UPPER(I33)=""),D33,0)*IF(E33=1,2,3) -> 0 | Y33: =IF(AND(H33=5,UPPER(I33)=""),D33,0)*IF(E33=1,2,3) -> 0 | Z33: =IF(AND(H33=6,UPPER(I33)=""),D33,0)*IF(E33=1,2,3) -> 1
A35: E-H (y) | E35: 1 | K35: =K32 -> 226.2058355 | N35: =K35 -> 226.2058355 | Q35: =K35 -> 226.2058355 | U35: =IF(AND(H35=1,UPPER(I35="")),D35,0)*IF(E35=1,2,3) -> 0 | V35: =IF(AND(H35=2,UPPER(I35="")),D35,0)*IF(E35=1,2,3) -> 0 | W35: =IF(AND(H35=3,UPPER(I35="")),D35,0)*IF(E35=1,2,3) -> 0 | X35: =IF(AND(H35=4,UPPER(I35="")),D35,0)*IF(E35=1,2,3) -> 0 | Y35: =IF(AND(H35=5,UPPER(I35="")),D35,0)*IF(E35=1,2,3) -> 0 | Z35: =IF(AND(H35=6,UPPER(I35="")),D35,0)*IF(E35=1,2,3) -> 0
A36: E | B36: G | C36: =IF(AND(A35="",A36=""),LEFT(C35,1),IF(A36="",LEFT(C35,1),A36))&B36 -> EG | D36: 0.5 | E36: 1 | F36: 7 | G36: Otter | H36: =VLOOKUP(G36,$AD$11:$AE$17,2) -> 5 | J36: =D36*1000*F36 -> 3500 | K36: =IF(M35=0,K35,IF(OR(E36=3,E36=11),Q36,IF(AND(E35=3,E36=1),Q36/SQRT(3),IF(A36="",K35,IF(AND(E35=1,E36=1),N35,K35))))) -> 226.2058355 | L36: =F36*1000/$L$5/K36*(IF(OR(AND(E36=11,E35=11),AND(E36=3,E35=3)),1/SQRT(3),1)) -> 38.68158389 | M36: =ROUND(T36*D36*L36*IF(E36=1,2, SQRT(3)),1) -> 18.4 | N36: =K36-M36 -> 207.8058355 | O36: =100*(1-N36/IF(E36=11,$L$6,IF(E36=3,$L$7,$L$8))) -> 9.649636753 | P36: =IF(OR(AND(E35=1,E36=1,A36<>""),AND(E35=3,E36=1)),O35,0) -> 0 | Q36: =IF(A37="",Q35,IF(OR(AND(E36=11,E35=11),AND(E36=1,E35=1),AND(E35=3,E36=3)),N35-M36,IF(AND(E36=1,E35=3),N35/SQRT(3)))) -> 207.8058355 | R36: =CHOOSE(H36,1.347,1.098,0.9116,0.5449,0.3434,0.2745) -> 0.3434 | S36: =CHOOSE(H36,0.355,0.349,0.345,0.335,0.328,0.315) -> 0.328 | T36: =SQRT(S36^2+R36^2) -> 0.4748763629 | U36: =IF(AND(H36=1,UPPER(I36)=""),D36,0)*IF(E36=1,2,3) -> 0 | V36: =IF(AND(H36=2,UPPER(I36)=""),D36,0)*IF(E36=1,2,3) -> 0 | W36: =IF(AND(H36=3,UPPER(I36)=""),D36,0)*IF(E36=1,2,3) -> 0 | X36: =IF(AND(H36=4,UPPER(I36)=""),D36,0)*IF(E36=1,2,3) -> 0 | Y36: =IF(AND(H36=5,UPPER(I36)=""),D36,0)*IF(E36=1,2,3) -> 1 | Z36: =IF(AND(H36=6,UPPER(I36)=""),D36,0)*IF(E36=1,2,3) -> 0
A37: =B36 -> G | B37: H | C37: =IF(AND(A36="",A37=""),LEFT(C36,1),IF(A37="",LEFT(C36,1),A37))&B37 -> GH | D37: 0.2 | E37: 1 | F37: 3 | G37: Dog | H37: =VLOOKUP(G37,$AD$11:$AE$17,2) -> 6 | J37: =D37*1000*F37 -> 600 | K37: =IF(M36=0,K36,IF(OR(E37=3,E37=11),Q37,IF(AND(E36=3,E37=1),Q37/SQRT(3),IF(A37="",K36,IF(AND(E36=1,E37=1),N36,K36))))) -> 207.8058355 | L37: =F37*1000/$L$5/K37*(IF(OR(AND(E37=11,E36=11),AND(E37=3,E36=3)),1/SQRT(3),1)) -> 18.04569151 | M37: =ROUND(T37*D37*L37*IF(E37=1,2, SQRT(3)),1) -> 3 | N37: =K37-M37 -> 204.8058355 | O37: =100*(1-N37/IF(E37=11,$L$6,IF(E37=3,$L$7,$L$8))) -> 10.95398458 | P37: =IF(OR(AND(E36=1,E37=1,A37<>""),AND(E36=3,E37=1)),O36,0) -> 9.649636753 | Q37: =IF(A38="",Q36,IF(OR(AND(E37=11,E36=11),AND(E37=1,E36=1),AND(E36=3,E37=3)),N36-M37,IF(AND(E37=1,E36=3),N36/SQRT(3)))) -> 207.8058355 | R37: =CHOOSE(H37,1.347,1.098,0.9116,0.5449,0.3434,0.2745) -> 0.2745 | S37: =CHOOSE(H37,0.355,0.349,0.345,0.335,0.328,0.315) -> 0.315 | T37: =SQRT(S37^2+R37^2) -> 0.4178220315 | U37: =IF(AND(H37=1,UPPER(I37)=""),D37,0)*IF(E37=1,2,3) -> 0 | V37: =IF(AND(H37=2,UPPER(I37)=""),D37,0)*IF(E37=1,2,3) -> 0 | W37: =IF(AND(H37=3,UPPER(I37)=""),D37,0)*IF(E37=1,2,3) -> 0 | X37: =IF(AND(H37=4,UPPER(I37)=""),D37,0)*IF(E37=1,2,3) -> 0 | Y37: =IF(AND(H37=5,UPPER(I37)=""),D37,0)*IF(E37=1,2,3) -> 0 | Z37: =IF(AND(H37=6,UPPER(I37)=""),D37,0)*IF(E37=1,2,3) -> 0.4
A39: E-M (b) | E39: 1 | K39: =K35 -> 226.2058355 | N39: =K39 -> 226.2058355 | Q39: =K39 -> 226.2058355 | U39: =IF(AND(H39=1,UPPER(I39="")),D39,0)*IF(E39=1,2,3) -> 0 | V39: =IF(AND(H39=2,UPPER(I39="")),D39,0)*IF(E39=1,2,3) -> 0 | W39: =IF(AND(H39=3,UPPER(I39="")),D39,0)*IF(E39=1,2,3) -> 0 | X39: =IF(AND(H39=4,UPPER(I39="")),D39,0)*IF(E39=1,2,3) -> 0 | Y39: =IF(AND(H39=5,UPPER(I39="")),D39,0)*IF(E39=1,2,3) -> 0 | Z39: =IF(AND(H39=6,UPPER(I39="")),D39,0)*IF(E39=1,2,3) -> 0
A40: E | B40: K | C40: =IF(AND(A39="",A40=""),LEFT(C39,1),IF(A40="",LEFT(C39,1),A40))&B40 -> E K | D40: 0.5 | E40: 1 | F40: 7 | G40: Dog | H40: =VLOOKUP(G40,$AD$11:$AE$17,2) -> 6 | J40: =D40*1000*F40 -> 3500 | K40: =IF(M39=0,K39,IF(OR(E40=3,E40=11),Q40,IF(AND(E39=3,E40=1),Q40/SQRT(3),IF(A40="",K39,IF(AND(E39=1,E40=1),N39,K39))))) -> 226.2058355 | L40: =F40*1000/$L$5/K40*(IF(OR(AND(E40=11,E39=11),AND(E40=3,E39=3)),1/SQRT(3),1)) -> 38.68158389 | M40: =ROUND(T40*D40*L40*IF(E40=1,2, SQRT(3)),1) -> 16.2 | N40: =K40-M40 -> 210.0058355 | O40: =100*(1-N40/IF(E40=11,$L$6,IF(E40=3,$L$7,$L$8))) -> 8.693115014 | P40: =IF(OR(AND(E39=1,E40=1,A40<>""),AND(E39=3,E40=1)),O39,0) -> 0 | Q40: =IF(A41="",Q39,IF(OR(AND(E40=11,E39=11),AND(E40=1,E39=1),AND(E39=3,E40=3)),N39-M40,IF(AND(E40=1,E39=3),N39/SQRT(3)))) -> 210.0058355 | R40: =CHOOSE(H40,1.347,1.098,0.9116,0.5449,0.3434,0.2745) -> 0.2745 | S40: =CHOOSE(H40,0.355,0.349,0.345,0.335,0.328,0.315) -> 0.315 | T40: =SQRT(S40^2+R40^2) -> 0.4178220315 | U40: =IF(AND(H40=1,UPPER(I40)=""),D40,0)*IF(E40=1,2,3) -> 0 | V40: =IF(AND(H40=2,UPPER(I40)=""),D40,0)*IF(E40=1,2,3) -> 0 | W40: =IF(AND(H40=3,UPPER(I40)=""),D40,0)*IF(E40=1,2,3) -> 0 | X40: =IF(AND(H40=4,UPPER(I40)=""),D40,0)*IF(E40=1,2,3) -> 0 | Y40: =IF(AND(H40=5,UPPER(I40)=""),D40,0)*IF(E40=1,2,3) -> 0 | Z40: =IF(AND(H40=6,UPPER(I40)=""),D40,0)*IF(E40=1,2,3) -> 1
A41: =B40 -> K | B41: L | C41: =IF(AND(A40="",A41=""),LEFT(C40,1),IF(A41="",LEFT(C40,1),A41))&B41 -> KL | D41: 0.2 | E41: 1 | F41: 3 | G41: Dog | H41: =VLOOKUP(G41,$AD$11:$AE$17,2) -> 6 | J41: =D41*1000*F41 -> 600 | K41: =IF(M40=0,K40,IF(OR(E41=3,E41=11),Q41,IF(AND(E40=3,E41=1),Q41/SQRT(3),IF(A41="",K40,IF(AND(E40=1,E41=1),N40,K40))))) -> 210.0058355 | L41: =F41*1000/$L$5/K41*(IF(OR(AND(E41=11,E40=11),AND(E41=3,E40=3)),1/SQRT(3),1)) -> 17.85664666 | M41: =ROUND(T41*D41*L41*IF(E41=1,2, SQRT(3)),1) -> 3 | N41: =K41-M41 -> 207.0058355 | O41: =100*(1-N41/IF(E41=11,$L$6,IF(E41=3,$L$7,$L$8))) -> 9.99746284 | P41: =IF(OR(AND(E40=1,E41=1,A41<>""),AND(E40=3,E41=1)),O40,0) -> 8.693115014 | Q41: =IF(A42="",Q40,IF(OR(AND(E41=11,E40=11),AND(E41=1,E40=1),AND(E40=3,E41=3)),N40-M41,IF(AND(E41=1,E40=3),N40/SQRT(3)))) -> 207.0058355 | R41: =CHOOSE(H41,1.347,1.098,0.9116,0.5449,0.3434,0.2745) -> 0.2745 | S41: =CHOOSE(H41,0.355,0.349,0.345,0.335,0.328,0.315) -> 0.315 | T41: =SQRT(S41^2+R41^2) -> 0.4178220315 | U41: =IF(AND(H41=1,UPPER(I41)=""),D41,0)*IF(E41=1,2,3) -> 0 | V41: =IF(AND(H41=2,UPPER(I41)=""),D41,0)*IF(E41=1,2,3) -> 0 | W41: =IF(AND(H41=3,UPPER(I41)=""),D41,0)*IF(E41=1,2,3) -> 0 | X41: =IF(AND(H41=4,UPPER(I41)=""),D41,0)*IF(E41=1,2,3) -> 0 | Y41: =IF(AND(H41=5,UPPER(I41)=""),D41,0)*IF(E41=1,2,3) -> 0 | Z41: =IF(AND(H41=6,UPPER(I41)=""),D41,0)*IF(E41=1,2,3) -> 0.4
A42: =B41 -> L | B42: M | C42: =IF(AND(A41="",A42=""),LEFT(C41,1),IF(A42="",LEFT(C41,1),A42))&B42 -> LM | D42: 0.2 | E42: 1 | F42: 2 | G42: Dog | H42: =VLOOKUP(G42,$AD$11:$AE$17,2) -> 6 | J42: =D42*1000*F42 -> 400 | K42: =IF(M41=0,K41,IF(OR(E42=3,E42=11),Q42,IF(AND(E41=3,E42=1),Q42/SQRT(3),IF(A42="",K41,IF(AND(E41=1,E42=1),N41,K41))))) -> 207.0058355 | L42: =F42*1000/$L$5/K42*(IF(OR(AND(E42=11,E41=11),AND(E42=3,E41=3)),1/SQRT(3),1)) -> 12.07695423 | M42: =ROUND(T42*D42*L42*IF(E42=1,2, SQRT(3)),1) -> 2 | N42: =K42-M42 -> 205.0058355 | O42: =100*(1-N42/IF(E42=11,$L$6,IF(E42=3,$L$7,$L$8))) -> 10.86702806 | P42: =IF(OR(AND(E41=1,E42=1,A42<>""),AND(E41=3,E42=1)),O41,0) -> 9.99746284 | Q42: =IF(A43="",Q41,IF(OR(AND(E42=11,E41=11),AND(E42=1,E41=1),AND(E41=3,E42=3)),N41-M42,IF(AND(E42=1,E41=3),N41/SQRT(3)))) -> 207.0058355 | R42: =CHOOSE(H42,1.347,1.098,0.9116,0.5449,0.3434,0.2745) -> 0.2745 | S42: =CHOOSE(H42,0.355,0.349,0.345,0.335,0.328,0.315) -> 0.315 | T42: =SQRT(S42^2+R42^2) -> 0.4178220315 | U42: =IF(AND(H42=1,UPPER(I42)=""),D42,0)*IF(E42=1,2,3) -> 0 | V42: =IF(AND(H42=2,UPPER(I42)=""),D42,0)*IF(E42=1,2,3) -> 0 | W42: =IF(AND(H42=3,UPPER(I42)=""),D42,0)*IF(E42=1,2,3) -> 0 | X42: =IF(AND(H42=4,UPPER(I42)=""),D42,0)*IF(E42=1,2,3) -> 0 | Y42: =IF(AND(H42=5,UPPER(I42)=""),D42,0)*IF(E42=1,2,3) -> 0 | Z42: =IF(AND(H42=6,UPPER(I42)=""),D42,0)*IF(E42=1,2,3) -> 0.4

Sheet Loads&Benefits
A1: LOADS AND BENEFITS
A2: Small Hydropower Promotion Project (SHPP)/GTZ | F2: Spreadsheet by Mr Pushpa Chitrakar
A3: Referances: 1,2,3,4, 6,12,13,15,16 | F3: Date | G3: =TODAY() -> 2012-07-20
A4: SMALL HYDROPOWER PROMOTION PROJECT/GTZ | F4: Revision | G4: 2006.05
A5: Project: | B5: Gaddi Gad Khola | E5: Location: | F5: Ladagada VDC, Doti
A6: Developer | B6: Gaddi Gad Khola MHP
A7: Consultant | B7: Perinial
A8: Designed | B8: Pushpa Chitrakar
A9: Checked | B9: Pushpa Chitrakar
A11: INPUT
A12: General
A13: Power Output (kW) | B13: 96.1 | E13: Domestic lighting
A14: Name of the Source | B14: Gaddi Gad Khola | E14: Average subscription/household (W/HH) | H14: 85
E15: System loss | F15: 0.1
A16: Beneficiary HH (nos.) | B16: 471 | E16: time | F16: 0 | G16: 5 | H16: 8 | I16: 18 | J16: 20
A17: Plant's operating days | B17: 330 | E17: load | F17: 88 | G17: 0 | H17: 0 | I17: 91.1 | J17: 0
F18: =(G16-F16)*F17 -> 440 | G18: =(H16-G16)*G17 -> 0 | H18: =(I16-H16)*H17 -> 0 | I18: =(J16-I16)*I17 -> 182.2
A19: Loads (kWh or W/m) | B19: Operating days/year | C19: Tariff (Rs) | E19: Probable Business Load Expected after 3 years
A20: Domestic | B20: 330 | C20: 1 | F20: Operating d/y | G20: Tariff (Rs) | H20: Load | I20: From (hr) | J20: To (hr)
A21: Agro-processing | B21: 330 | C21: 6 | E21: Metal Workshop | F21: 330 | G21: 6 | H21: 10 | I21: 12 | J21: 16
A22: Bakery | B22: 320 | C22: 6 | E22: Photo Studio | F22: 320 | G22: 6 | H22: 1 | I22: 8 | J22: 20
A23: Saw Mill | B23: 300 | C23: 5 | E23: Dairy Processing | F23: 320 | G23: 6 | H23: 8 | I23: 8 | J23: 18
A24: Herbs Processing | B24: 180 | C24: 5.5 | E24: Cold Store | F24: 310 | G24: 6 | H24: 6 | I24: 8 | J24: 18
A25: Load 5 | B25: 330 | E25: Load 5
A26: Load 6 | B26: 330 | E26: Load 6
A28: Proposed end uses and operting hours
A29: time (hr) | B29: 0 | C29: 4 | D29: 12 | E29: 16 | F29: 22 | H29: Daily Energy Demand (Dd) kWh | I29: =SUM(F18:J18)+SUM(G31:G46) -> 1037.2
A30: =A21 -> Agro-processing | B30: 0 | C30: 0 | D30: 22.5 | E30: 0 | F30: 0 | H30: Yearly Energy Demand (Dy) kWh | I30: =365*I29 -> 378578
B31: =(C29-B29)*B30 -> 0 | C31: =(D29-C29)*C30 -> 0 | D31: =(E29-D29)*D30 -> 90 | E31: =(F29-E29)*E30 -> 0 | F31: =IF(F29=24,B29,(24-F29)+B29)*F30 -> 0 | G31: =SUM(B31:F31) -> 90
A32: time (hr) | B32: 0 | C32: 8 | D32: 14 | E32: 18 | F32: 22 | H32: Average Load Factor | I32: =I29/24/(B13*(1-F15)) -> 0.4996724091
A33: =A22 -> Bakery | B33: 0 | C33: 9 | D33: 0 | E33: 0 | F33: 0
B34: =(C32-B32)*B33 -> 0 | C34: =(D32-C32)*C33 -> 54 | D34: =(E32-D32)*D33 -> 0 | E34: =(F32-E32)*E33 -> 0 | F34: =IF(F32=24,B32,(24-F32)+B32)*F33 -> 0 | G34: =SUM(B34:F34) -> 54
A35: time (hr) | B35: 0 | C35: 3 | D35: 16 | E35: 18 | F35: 22
A36: =A23 -> Saw Mill | B36: 0 | C36: 0 | D36: 10 | E36: 0 | F36: 0
B37: =(C35-B35)*B36 -> 0 | C37: =(D35-C35)*C36 -> 0 | D37: =(E35-D35)*D36 -> 20 | E37: =(F35-E35)*E36 -> 0 | F37: =IF(F35=24,B35,(24-F35)+B35)*F36 -> 0 | G37: =SUM(B37:F37) -> 20
A38: time (hr) | B38: 0 | C38: 3 | D38: 12 | E38: 17 | F38: 22
A39: =A24 -> Herbs Processing | B39: 0 | C39: 0 | D39: 25 | E39: 0 | F39: 0
B40: =(C38-B38)*B39 -> 0 | C40: =(D38-C38)*C39 -> 0 | D40: =(E38-D38)*D39 -> 125 | E40: =(F38-E38)*E39 -> 0 | F40: =IF(F38=24,B38,(24-F38)+B38)*F39 -> 0 | G40: =SUM(B40:F40) -> 125
A41: time (hr) | B41: 0 | C41: 6 | D41: 8 | E41: 15 | F41: 22
A42: =A25 -> Load 5 | B42: 15 | C42: 0 | D42: 0 | E42: 0 | F42: 0
B43: =(C41-B41)*B42 -> 90 | C43: =(D41-C41)*C42 -> 0 | D43: =(E41-D41)*D42 -> 0 | E43: =(F41-E41)*E42 -> 0 | F43: =IF(F41=24,B41,(24-F41)+B41)*F42 -> 0 | G43: =SUM(B43:F43) -> 90
A44: time (hr) | B44: 0 | C44: 3 | D44: 5 | E44: 10 | F44: 22
A45: =A26 -> Load 6 | B45: 12 | C45: 0 | D45: 0 | E45: 0 | F45: 0
B46: =(C44-B44)*B45 -> 36 | C46: =(D44-C44)*C45 -> 0 | D46: =(E44-D44)*D45 -> 0 | E46: =(F44-E44)*E45 -> 0 | F46: =IF(F44=24,B44,(24-F44)+B44)*F45 -> 0 | G46: =SUM(B46:F46) -> 36
A47: OUTPUT
A49: Summary
A50: Annual Available kWh | B50: =B17*B13*24 -> 761112
D51: First 3 years | E51: After 3 years
A52: Yearly end use load (kWh) | D52: =E67 -> 117060 | E52: =D52+0.5*E77 -> 147680
A53: Productive end use load factor (%) | D53: =F67 -> 15.38012802 | E53: =B78 -> 19.40318902
A54: Total load plant factor | D54: =F59+F67 -> 42.3572352 | E54: =D54+F77 -> 50.40335719
A55: Annual total (domestic + end uses) Income (Rs) | D55: =G68 -> 916050 | E55: =G68+G77 -> 1099770
A57: End Use | B57: Load | C57: Operation Period | E57: Yearly Load | G57: Annual Income (Rs)
B58: (kW) | C58: Hours/day | D58: Days/year | E58: kWh | F58: LF (%)
A59: Domestic Lighting | B59: =B16*H14/(1-F15)/1000 -> 44.48333333 | C59: =IF(ISERROR(E59/D59/B59),"-",E59/D59/B59) -> 13.98726115 | D59: =B20 -> 330 | E59: =((G16-F16)*F17+(H16-G16)*G17+(I16-H16)*H17+(J16-I16)*I17+(24-J16)*J17)*B20 -> 205326 | F59: =E59*100/B$50 -> 26.97710718 | G59: =H14*B16*C20*12 -> 480420
A60: Existing/Committed Business Load
A61: =A21 -> Agro-processing | B61: =MAX(B30:F30) -> 22.5 | C61: =IF(ISERROR(E61/D61/B61),"-",E61/D61/B61) -> 4 | D61: =B21 -> 330 | E61: =((C29-B29)*B30+(D29-C29)*C30+(E29-D29)*D30+(F29-E29)*E30+(24-F29)*F30)*B21 -> 29700 | F61: =E61*100/$B$50 -> 3.902185224 | G61: =E61*C21 -> 178200
A62: Bakery | B62: =MAX(B33:F33) -> 9 | C62: 6 | D62: 320 | E62: =((C32-B32)*B33+(D32-C32)*C33+(E32-D32)*D33+(F32-E32)*E33+(24-F32)*F33)*B22 -> 17280 | F62: 2.270362312 | G62: 103680
A63: Saw Mill | B63: =MAX(B36:F36) -> 10 | C63: 2 | D63: 300 | E63: =((C35-B35)*B36+(D35-C35)*C36+(E35-D35)*D36+(F35-E35)*E36+(24-F35)*F36)*B23 -> 6000 | F63: 0.7883202472 | G63: 30000
A64: Herbs Processing | B64: =MAX(B39:F39) -> 25 | C64: 5 | D64: 180 | E64: =((C38-B38)*B39+(D38-C38)*C39+(E38-D38)*D39+(F38-E38)*E39+(24-F38)*F39)*B24 -> 22500 | F64: 2.956200927 | G64: 123750
A65: Load 5 | B65: =MAX(B42:F42) -> 15 | C65: 6 | D65: 330 | E65: =((C41-B41)*B42+(D41-C41)*C42+(E41-D41)*D42+(F41-E41)*E42+(24-F41)*F42)*B25 -> 29700 | F65: 3.902185224 | G65: 0
A66: Load 6 | B66: =MAX(B45:F45) -> 12 | C66: 3 | D66: 330 | E66: =((C44-B44)*B45+(D44-C44)*C45+(E44-D44)*D45+(F44-E44)*E45+(24-F44)*F45)*B26 -> 11880 | F66: 1.560874089 | G66: 0
A67: Total | E67: =SUM(E61:E66) -> 117060 | F67: =SUM(F61:F66) -> 15.38012802 | G67: =SUM(G61:G66) -> 435630
A68: Total Annual Income from sales of electricity | G68: =G59+G67 -> 916050
A70: Probable Business Load after 3 years
A71: =E21 -> Metal Workshop | B71: =H21 -> 10 | C71: =J21-I21 -> 4 | D71: =F21 -> 330 | E71: =B71*C71*D71 -> 13200 | F71: =E71*100/B$50 -> 1.734304544 | G71: =G21*E71 -> 79200
A72: Photo Studio | B72: 1 | C72: 12 | D72: 320 | E72: 3840 | F72: 0.5045249582 | G72: 23040
A73: Dairy Processing | B73: 8 | C73: 10 | D73: 320 | E73: 25600 | F73: 3.363499721 | G73: 153600
A74: Cold Store | B74: 6 | C74: 10 | D74: 310 | E74: 18600 | F74: 2.443792766 | G74: 111600
A75: Load 5 | B75: 0 | C75: 0 | D75: 0 | E75: 0 | F75: 0 | G75: 0
A76: Load 6 | B76: 0 | C76: 0 | D76: 0 | E76: 0 | F76: 0 | G76: 0
A77: Total additional annual income after 3 years | E77: =SUM(E71:E76) -> 61240 | F77: =SUM(F71:F76) -> 8.04612199 | G77: =0.5*SUM(G71:G76) -> 183720
A78: Productive End Use (%) | B78: =F67+(F77*0.5) -> 19.40318902
A79: ="Load Duration Chart for the first three years of operation of "&B5 -> Load Duration Chart for the first three years of operation of Gaddi Gad Khola
A101: Graph Data for the first three years
A102: Time | B102: 0 | C102: 1 | D102: 2 | E102: 3 | F102: 4 | G102: 5 | H102: 6 | I102: 7 | J102: 8 | K102: 9 | L102: 10 | M102: 11 | N102: 12 | O102: 13 | P102: 14 | Q102: 15 | R102: 16 | S102: 17 | T102: 18 | U102: 19 | V102: 20 | W102: 21 | X102: 22 | Y102: 23
A103: =A20 -> Domestic | B103: =HLOOKUP(B102,$F$16:$J$17,2) -> 88 | C103: =HLOOKUP(C102,$F$16:$J$17,2) -> 88 | D103: =HLOOKUP(D102,$F$16:$J$17,2) -> 88 | E103: 88 | F103: 88 | G103: 0 | H103: 0 | I103: 0 | J103: 0 | K103: 0 | L103: 0 | M103: 0 | N103: 0 | O103: 0 | P103: 0 | Q103: 0 | R103: 0 | S103: 0 | T103: 91.1 | U103: 91.1 | V103: 0 | W103: 0 | X103: 0 | Y103: 0
A104: =A21 -> Agro-processing | B104: =HLOOKUP(B102,$B$29:$F$30,2) -> 0 | C104: 0 | D104: 0 | E104: 0 | F104: 0 | G104: 0 | H104: 0 | I104: 0 | J104: 0 | K104: 0 | L104: 0 | M104: 0 | N104: 22.5 | O104: 22.5 | P104: 22.5 | Q104: 22.5 | R104: 0 | S104: 0 | T104: 0 | U104: 0 | V104: 0 | W104: 0 | X104: 0 | Y104: 0
A105: Bakery | B105: =HLOOKUP(B102,$B$32:$F$33,2) -> 0 | C105: 0 | D105: 0 | E105: 0 | F105: 0 | G105: 0 | H105: 0 | I105: 0 | J105: 9 | K105: 9 | L105: 9 | M105: 9 | N105: 9 | O105: 9 | P105: 0 | Q105: 0 | R105: 0 | S105: 0 | T105: 0 | U105: 0 | V105: 0 | W105: 0 | X105: 0 | Y105: 0
A106: Saw Mill | B106: =HLOOKUP(B102,$B$35:$F$36,2) -> 0 | C106: 0 | D106: 0 | E106: 0 | F106: 0 | G106: 0 | H106: 0 | I106: 0 | J106: 0 | K106: 0 | L106: 0 | M106: 0 | N106: 0 | O106: 0 | P106: 0 | Q106: 0 | R106: 10 | S106: 10 | T106: 0 | U106: 0 | V106: 0 | W106: 0 | X106: 0 | Y106: 0
A107: Herbs Processing | B107: =HLOOKUP(B102,$B$38:$F$39,2) -> 0 | C107: 0 | D107: 0 | E107: 0 | F107: 0 | G107: 0 | H107: 0 | I107: 0 | J107: 0 | K107: 0 | L107: 0 | M107: 0 | N107: 25 | O107: 25 | P107: 25 | Q107: 25 | R107: 25 | S107: 0 | T107: 0 | U107: 0 | V107: 0 | W107: 0 | X107: 0 | Y107: 0
A108: Load 5 | B108: =HLOOKUP(B102,$B$41:$F$42,2) -> 15 | C108: 15 | D108: 15 | E108: 15 | F108: 15 | G108: 15 | H108: 0 | I108: 0 | J108: 0 | K108: 0 | L108: 0 | M108: 0 | N108: 0 | O108: 0 | P108: 0 | Q108: 0 | R108: 0 | S108: 0 | T108: 0 | U108: 0 | V108: 0 | W108: 0 | X108: 0 | Y108: 0
A109: Load 6 | B109: =HLOOKUP(B102,$B$44:$F$45,2) -> 12 | C109: 12 | D109: 12 | E109: 0 | F109: 0 | G109: 0 | H109: 0 | I109: 0 | J109: 0 | K109: 0 | L109: 0 | M109: 0 | N109: 0 | O109: 0 | P109: 0 | Q109: 0 | R109: 0 | S109: 0 | T109: 0 | U109: 0 | V109: 0 | W109: 0 | X109: 0 | Y109: 0
A110: Total Load | B110: =SUM(B103:B109) -> 115 | C110: =SUM(C103:C109) -> 115 | D110: 115 | E110: 103 | F110: 103 | G110: 15 | H110: 0 | I110: 0 | J110: 9 | K110: 9 | L110: 9 | M110: 9 | N110: 56.5 | O110: 56.5 | P110: 47.5 | Q110: 47.5 | R110: 35 | S110: 10 | T110: 91.1 | U110: 91.1 | V110: 0 | W110: 0 | X110: 0 | Y110: 0
A111: Installed Capacity | B111: =$B$13 -> 96.1 | C111: 96.1 | D111: 96.1 | E111: 96.1 | F111: 96.1 | G111: 96.1 | H111: 96.1 | I111: 96.1 | J111: 96.1 | K111: 96.1 | L111: 96.1 | M111: 96.1 | N111: 96.1 | O111: 96.1 | P111: 96.1 | Q111: 96.1 | R111: 96.1 | S111: 96.1 | T111: 96.1 | U111: 96.1 | V111: 96.1 | W111: 96.1 | X111: 96.1 | Y111: 96.1

Sheet Costing&Financial Analyses
A1: Project Costing and Financial Analyses
A2: Small Hydropower Promotion Project (SHPP)/GTZ | F2: Spreadsheet by Mr Pushpa Chitrakar
A3: Referances: 1,2,3,4, 6,7,8,12,13 | F3: Date | G3: =TODAY() -> 2012-07-20
A4: SMALL HYDROPOWER PROMOTION PROJECT/GTZ | F4: Revision | G4: 2006.05
A5: Project | C5: =Project -> Golmagad SHP | K5: Walking distance | L5: Subsidy | M5: Ceiling
A6: Developer | C6: Kankaimai Hydropower P Ltd | K6: less than 2 days walking distance | L6: 70000 | M6: =L6+100000 -> 170000
A7: Consultant | C7: EPC Consult | K7: 2-5 days walking distance | L7: 78750 | M7: =L7+100000 -> 178750
A8: Designed | C8: Pushpa Chitrakar | K8: more than 5 days walking distance | L8: 91500 | M8: =L8+100000 -> 191500
A9: Checked | C9: Pushpa Chitrakar
A11: INPUT
A12: Project size (kW): | C12: ='Loads&Benefits'!B13 -> 96.1
A13: Total Project Cost (Rs.) | C13: =SUM(C15:H15) -> 12734865
A14: Subsidy/kW | C14: Total subsidy | D14: Bank loan | E14: Other loan | F14: Cash equity | G14: Kind equity | H14: Others
A15: 91500 | B15: ="Rs/kW x "&C12&" =" -> Rs/kW x 96,1 = | C15: =A15*C12 -> 8793150 | D15: 1890044 | F15: 1200000 | G15: 851671 | H15: 0
A16: Interest rate i (%) | D16: 0.03
A17: Payback period n (yr) | D17: 7
A18: Plant life N (yr) | C18: 15
A19: Discount Rate I (%) | C19: 0.04
G20: O & M (Rs) | H20: =SUM(H21:H26) -> 305004
A21: Investment Cost (Rs) | C21: =SUM(C22:C26,E22:E26) -> 8516715 | G21: Salary | H21: 114000
A22: Mechanical components | C22: 999040 | D22: Installation | E22: 232500 | G22: Spares | H22: 0
A23: Electrical component | C23: 2061717 | D23: Commissioning | E23: 0 | G23: Maintenance | H23: 171000
A24: Civil component | C24: 1363497 | D24: VAT | E24: 623611 | G24: Office expenses
A25: Spare parts & tools | C25: 57550 | D25: Contingencies | E25: 0 | G25: Miscellaneous | H25: 20004
A26: Transport. | C26: 3178800 | D26: Others | G26: Others
A28: Cost Summary | F28: NPV Based on Different Project Costs
A29: Project cost (Rs) | D29: =C13 -> 12734865 | F29: NPV | G29: Probable Business Load
A30: Annual Operation, Maintenance and other Costs (Rs) | D30: =H20 -> 305004 | G30: Without | H30: With
A31: Annual Income without probable business loads (Rs) | D31: ='Loads&Benefits'!D55 -> 916050 | F31: Total investment cost | G31: =NPV($C$19,-$C$21,F44:F58)*(1+$C$19) -> -3543676.571 | H31: =NPV($C$19,-$C$21,H44:H58)*(1+$C$19) -> -2010846.157
A32: Annual Income with probable business loads (Rs) | D32: ='Loads&Benefits'!E55 -> 1099770 | F32: Total Inv Cost-Subsidy | G32: =NPV($C$19,-$C$21+$C$15,F44:F58)*(1+$C$19) -> 5249473.429 | H32: =NPV($C$19,-$C$21+$C$15,H44:H58)*(1+$C$19) -> 6782303.843
A33: Annual installment for Bank loan | D33: =IF(D17=0,"NA",D15*(D16*(1+D16)^D17)/((1+D16)^D17-1)) -> 303364.0709 | F33: Equity | G33: =D35 -> 3773038.429 | H33: =D36 -> 5305868.843
A34: Annual installment for other loan | D34: =IF(E17=0,"NA",E15*(E16*(1+E16)^E17)/((1+E16)^E17-1)) -> NA
A35: ="NPV on equity without probable business load (Rs)"&IF(NPV($C$19,F43:F58)>0,"+ve","-ve") -> NPV on equity without probable business load (Rs)+ve | D35: =NPV($C$19,F43:F58)*(1+$C$19) -> 3773038.429
A36: ="NPV equity with probable business load (Rs)"&IF(NPV($C$19,H43:H58)>0,"+ve","-ve") -> NPV equity with probable business load (Rs)+ve | D36: =NPV($C$19,H43:H58)*(1+$C$19) -> 5305868.843
A37: ="Cost/Kw =>>"&IF(D37>A15+100000,"not viable","Ok") -> Cost/Kw =>>Ok | D37: =C13/C12 -> 132516.8054
A38: Subsidy/HH | D38: =C15/'Loads&Benefits'!B16 -> 18669.10828
A40: Annual Cash Flows
A41: Year | B41: Equity | C41: O & M costs | D41: Loan repayment | E41: Without Probable Business Loads | G41: With Probable Business Loads
E42: Income | F42: Cash flow | G42: Income | H42: Cash flow
A43: 0 | B43: =F15 -> 1200000 | F43: =E43-C43-D43-B43 -> -1200000 | H43: =G43-C43-D43-B43 -> -1200000
A44: 1 | C44: =$D$30 -> 305004 | D44: =IF(A44>$D$17,0,$D$33) -> 303364.0709 | E44: =$D$31 -> 916050 | F44: 307681.9291 | G44: =$D$31 -> 916050 | H44: 307681.9291
A45: 2 | C45: 305004 | D45: 303364.0709 | E45: 916050 | F45: 307681.9291 | G45: =$D$31 -> 916050 | H45: 307681.9291
A46: 3 | C46: 305004 | D46: 303364.0709 | E46: 916050 | F46: 307681.9291 | G46: =$D$31 -> 916050 | H46: 307681.9291
A47: 4 | C47: 305004 | D47: 303364.0709 | E47: 916050 | F47: 307681.9291 | G47: =$D$32 -> 1099770 | H47: 491401.9291
A48: 5 | C48: 305004 | D48: 303364.0709 | E48: 916050 | F48: 307681.9291 | G48: 1099770 | H48: 491401.9291
A49: 6 | C49: 305004 | D49: 303364.0709 | E49: 916050 | F49: 307681.9291 | G49: 1099770 | H49: 491401.9291
A50: 7 | C50: 305004 | D50: 303364.0709 | E50: 916050 | F50: 307681.9291 | G50: 1099770 | H50: 491401.9291
A51: 8 | C51: 305004 | D51: 0 | E51: 916050 | F51: 611046 | G51: 1099770 | H51: 794766
A52: 9 | C52: 305004 | D52: 0 | E52: 916050 | F52: 611046 | G52: 1099770 | H52: 794766
A53: 10 | C53: 305004 | D53: 0 | E53: 916050 | F53: 611046 | G53: 1099770 | H53: 794766
A54: 11 | C54: 305004 | D54: 0 | E54: 916050 | F54: 611046 | G54: 1099770 | H54: 794766
A55: 12 | C55: 305004 | D55: 0 | E55: 916050 | F55: 611046 | G55: 1099770 | H55: 794766
A56: 13 | C56: 305004 | D56: 0 | E56: 916050 | F56: 611046 | G56: 1099770 | H56: 794766
A57: 14 | C57: 305004 | D57: 0 | E57: 916050 | F57: 611046 | G57: 1099770 | H57: 794766
A58: 15 | C58: 305004 | D58: 0 | E58: 916050 | F58: 611046 | G58: 1099770 | H58: 794766

Sheet Utilities
A1: Ulitilities and Short Calculations
A2: Small Hydropower Promotion Project (SHPP)/GTZ

Sheet CanalDepth
A1: ="Uniform Depth of a "&IF(B12=0,"Rectangular","Trapezoidal")&" Canal (Y-m)" -> Uniform Depth of a Trapezoidal Canal (Y-m) | J1: Side Slope (z)
A2: Small Hydropower Promotion Project (SHPP)/GTZ | B2: Spreadsheet by Mr Pushpa Chitrakar | J2: Lined/vertical | K2: 0
A3: =Project -> Golmagad SHP | B3: Date | C3: =TODAY() -> 2012-07-20 | J3: Unlined fissured/disintegrated rock/tough hardpen cut | K3: 0.5
A4: Stone masonry canal | B4: Revision | C4: 2006.05 | J4: Unlined cemented gravel/stiff clay/ordinary hardpan cut | K4: 0.75
J5: Unlined firm/gravelyl/clay/side hill c/s in average loam cut | K5: 1
A6: Design Discharge (l/s): | B6: 1000 | J6: Unlined cuts/fills in average loam or gravelly loam | K6: 1.5
A7: 1/Mannings Coeff (M): | B7: 50 | J7: Unlined cuts/fills in loose sandy loam | K7: 2
A8: 1/Canal Slope (S): | B8: 300 | J8: Unlined cuts/fills in very sandy soil | K8: 3
A9: Freeboard, FB (m) | B9: 0.2
A10: Wall Thickness, t (m) | B10: 0.3
A11: Width of Canal, b (m): | B11: 1
B12: 0.5
A13: Top width, T (m) | B13: =2*B12*B14+B11 -> 
A14: Uniform Depth (Y-m) | B14: =YDEPTH(B6/1000,B7,B8,B11,B12) -> 
H16: Present Canal
H17: Wall
H18: x | I18: y
H19: =0+I21*B12 ->  | I19: 0
H20: =IF(B12<>0,H19+2*B10*1000*TAN((PI()/2-ATAN(B12))/2)+B11*1000,(2*B10+B11)*1000) ->  | I20: =I19 -> 0
H21: =H20+H19 ->  | I21: =IF(B12<>0,(B9+B10+B14),(2*B10+B14+B9))*1000 -> 
H22: =H21-B10*1000/COS(ATAN(B12)) ->  | I22: =I21 -> 
H23: =H22-B12*(B9+B14)*1000 ->  | I23: =B10*1000 -> 300
H24: =H23-B11*1000 ->  | I24: =I23 -> 300
H25: =H24-B12*(B9+B14)*1000 ->  | I25: =I22 -> 
H26: =IF(B12<>0,H25-B10*1000/COS(ATAN(B12)),H19) ->  | I26: =I25 -> 
H27: =IF(B12<>0,H19,H26) ->  | I27: =I19 -> 0
H28: ="NWL = "&ROUND(1000*B14,0)&" mm & "&"T = "&ROUND(H30-H29,0)&" mm" -> 
H29: =H24-B12*B14*1000 ->  | I29: =I21-B9*1000 -> 
H30: =H23+B12*B14*1000 ->  | I30: =I29 -> 

Sheet LoanPayment
A1: Payment of a loan | Q1: ="Payment Schedule of "&A3&" with Loan("&ROUND(B7,0)&")"&" & Interest("&ROUND(B8,2)&"%)" -> Payment Schedule of Golmagad SHP with Loan(1800000) & Interest(13%)
A2: Small Hydropower Promotion Project (SHPP)/GTZ | B2: Spreadsheet by Mr Pushpa Chitrakar | Q2: Month | R2: Pmt No. | S2: Pmt | T2: Principal | U2: Interest | V2: Balance
A3: =Project -> Golmagad SHP | B3: Date | C3: =TODAY() -> 2012-07-20 | Q3: =DATE($D$8,$D$7,1) -> 2006-02-01 | R3: 1 | S3: =-PMT($B$8%/$D$6,$B$9,$B$7,0) -> 331721.2005 | T3: =S3-U3 -> 97721.20049 | U3: =($B$8%/$D$6)*B7 -> 234000 | V3: =B7-T3 -> 1702278.8
A4: Stone masonry canal | B4: Revision | C4: 2006.05 | Q4: =DATE(YEAR(Q3)+IF($D$6=1,1,0),MONTH(Q3)+IF($D$6=12,1,IF($D$6=4,4,0)),1) -> 2007-02-01 | R4: =R3+1 -> 2 | S4: =-PMT($B$8%/$D$6,$B$9,$B$7,0) -> 331721.2005 | T4: =S4-U4 -> 110424.9566 | U4: =($B$8%/$D$6)*V3 -> 221296.2439 | V4: =V3-T4 -> 1591853.843
Q5: =DATE(YEAR(Q4)+IF($D$6=1,1,0),MONTH(Q4)+IF($D$6=12,1,IF($D$6=4,4,0)),1) -> 2008-02-01 | R5: =R4+1 -> 3 | S5: =-PMT($B$8%/$D$6,$B$9,$B$7,0) -> 331721.2005 | T5: =S5-U5 -> 124780.2009 | U5: =($B$8%/$D$6)*V4 -> 206940.9996 | V5: =V4-T5 -> 1467073.642
C6: Payback | D6: =IF(LEFT(A9,1)="M",12,IF(LEFT(A9,1)="Q",4,1)) -> 1 | Q6: 2009-02-01 | R6: 4 | S6: 331721.2005 | T6: 141001.627 | U6: 190719.5735 | V6: 1326072.015
A7: Loan amount (NRs) : | B7: 1800000 | C7: Starting Month | D7: 2 | Q7: 2010-02-01 | R7: 5 | S7: 331721.2005 | T7: 159331.8385 | U7: 172389.362 | V7: 1166740.176
A8: Interest rate (APR): | B8: 13 | C8: Starting Year | D8: 2006 | Q8: 2011-02-01 | R8: 6 | S8: 331721.2005 | T8: 180044.9775 | U8: 151676.2229 | V8: 986695.1989
A9: Yearly payment and No | B9: 10 | Q9: 2012-02-01 | R9: 7 | S9: 331721.2005 | T9: 203450.8246 | U9: 128270.3759 | V9: 783244.3743
Q10: 2013-02-01 | R10: 8 | S10: 331721.2005 | T10: 229899.4318 | U10: 101821.7687 | V10: 553344.9425
A11: =IF(LEFT(A9,1)="M","Monthly ",IF(LEFT(A9,1)="Q","Quarterly ","Yearly "))&"Payment" -> Yearly Payment | B11: =PMT(B8/IF(LEFT(A9,1)="M",12,IF(LEFT(A9,1)="Q",4,1))/100,B9,-B7) -> 331721.2005 | Q11: 2014-02-01 | R11: 9 | S11: 331721.2005 | T11: 259786.358 | U11: 71934.84252 | V11: 293558.5845
Q12: 2015-02-01 | R12: 10 | S12: 331721.2005 | T12: 293558.5845 | U12: 38162.61599 | V12: 9.895302355e-10

Sheet Power
A1: Actual vs AEPC Power (Pe-kW)
A2: Small Hydropower Promotion Project (SHPP)/GTZ | B2: Spreadsheet by Mr Pushpa Chitrakar
A3: =Project -> Golmagad SHP | B3: Date | C3: =TODAY() -> 2012-07-20
A4: Stone masonry canal | B4: Revision | C4: 2006.05
A7: Discharge (l/s): | B7: 120
A8: Cumulative efficiency including head loss (n%) | B8: 80
A9: Gross Head (H-m) | B9: 300
A10: Actual Power (Pact-kW) | B10: =9.81*B7/1000*B8/100*B9 -> 282.528
A11: Power MGSP-ESAP (Pe-kW) | B11: =9.81*B7/1000*0.5*B9 -> 176.58

Sheet Spillway
A1: Spillway Lengths (m) | I1: Spillway Profiles and Discharge coeff
A2: Small Hydropower Promotion Project (SHPP)/GTZ | B2: Spreadsheet by Mr Pushpa Chitrakar | I2: Profiles | J2: Coeff
A3: =Project -> Golmagad SHP | B3: Date | C3: =TODAY() -> 2012-07-20 | I3: Broad; sharp edges | J3: 1.5
A4: Stone masonry canal | B4: Revision | C4: 2006.05 | I4: Broad; round edges | J4: 1.6
I5: round overfall | J5: 1.9
I6: sharp edged | J6: 2.1
I7: rounded | J7: 2.2
A8: Flood discharge (l/s): | B8: 2000 | I8: roof-shaped | J8: 2.3
A9: Design discharge (l/s): | B9: 500
A10: Overtopping height (ho) mm: | B10: 300
A11: Spillway discharge coeff | B11: 1.5
A12: L spillway min for Qf m & full height | B12: =B8/1000/B11/(B10/1000)^1.5 -> 0.0002966515328
A13: Length of spillway Ls1 for Qf m & half height | B13: =(B8-B9)/1000/B11/(B10/1000/2)^1.5 -> 0.0006292929314

Sheet ffactor
A1: Friction Factor (f) & Net head
A2: Small Hydropower Promotion Project (SHPP)/GTZ | B2: Spreadsheet by Mr Pushpa Chitrakar
A3: =Project -> Golmagad SHP | B3: Date | C3: =TODAY() -> 2012-07-20
A4: Stone masonry canal | B4: Revision | C4: 2006.05
A9: Discharge (m3/s) | B9: 0.5 | C9: Flow
A10: Gross head (m) | B10: 63 | C10: Velocity, v(m/s) | D10: =(B9*4/PI()/(B12/1000)^2) -> 2.546479089
A11: Pipe roughness ks (mm) | B11: 0.01 | C11: Reynold's nr, (R ) | D11: =((B9*4/PI()/(B12/1000)^2)*(B12/1000)/0.00000114) -> 1116876.794
A12: Pipe diameter (mm) | B12: 500 | C12: Laminar Flow | D12: =64/((B9*4/PI()/(B12/1000)^2)*(B12/1000)/0.00000114) -> 5.730265e-05
A13: Pipe Length (m) | B13: 100 | D13: =-2*LOG((B11/B12)/3.7+2.51/((B9*4/PI()/(B12/1000)^2)*(B12/1000)/0.00000114)*D14) -> 9.169630247
A14: Turbulent headloss factor (K) | B14: 1.5 | D14: =D13 -> 9.169630247
A15: Friction factor f | B15: =IF(((B9*4/PI()/(B12/1000)^2)*(B12/1000)/0.00000114)<2000,D12,D15) -> 0.01189313511 | C15: Transitional Flow & Turbulent Flow | D15: =1/D14^2 -> 0.01189313511
A16: Headloss hl (m) | B16: =B10-B18 -> 1.281915044
A17: Headloss hl (%) | B17: =(B10-B18)/B10*100 -> 2.034785785
A18: Net Head (m) | B18: =B10-(B15*B13/(B12/1000)+B14)*D10^2/2/9.81 -> 61.71808496

Sheet VDrop
A1: Voltage Drop | M1: Sizes and designations of ACSR conductors for MHP systems: | U1: Side Slope
A2: Small Hydropower Promotion Project (SHPP)/GTZ | B2: Spreadsheet by Mr Pushpa Chitrakar | L2: Type of ACSR | M2: ACSR Code number | N2: Resistance Ohm/km | O2: Current rating max Amps | P2: Equivalent Cu area mm2 | Q2: Inductive Reactance Ohm/km | R2: Sp. Weight (kg/km) | S2: Sp. Cost (Rs/km) | U2: Lined/vertical (z m) | V2: 0
A3: =Project -> Golmagad SHP | B3: Date | C3: =TODAY() -> 2012-07-20 | L3: Squirrel | M3: 1 | N3: 1.374 | O3: 76 | P3: 13 | Q3: 0.355 | R3: 80 | S3: 13000 | U3: Unlined fissured/disintegrated rock/tough hardpen cut (z m) | V3: 0.5
A4: Stone masonry canal | B4: Revision | C4: 2006.05 | L4: Gopher | M4: 2 | N4: 1.098 | O4: 85 | P4: 16 | Q4: 0.349 | R4: 106 | S4: 14500 | U4: Unlined cemented gravel/stiff clay/ordinary hardpan cut (z m) | V4: 0.75
L5: Weasel | M5: 3 | N5: 0.9116 | O5: 95 | P5: 20 | Q5: 0.345 | R5: 128 | S5: 15500 | U5: Unlined firm/gravelyl/clay/side hill c/s in average loam cut (z m) | V5: 1
L6: Rabbit | M6: 4 | N6: 0.5449 | O6: 135 | P6: 30 | Q6: 0.335 | R6: 214 | S6: 25750 | U6: Unlined cuts/fills in average loam or gravelly loam (z m) | V6: 1.5
A7: Reach length, L (km) | B7: 1 | L7: Otter | M7: 5 | N7: 0.3434 | O7: 185 | P7: 50 | Q7: 0.328 | U7: Unlined cuts/fills in loose sandy loam (z m) | V7: 2
A8: Voltage at 1st node, V1 (V) | B8: 230 | L8: Dog | M8: 6 | N8: 0.2745 | O8: 205 | P8: 65 | Q8: 0.315 | R8: 394 | S8: 52000 | U8: Unlined cuts/fills in very sandy soil (z m) | V8: 3
A9: Power, P (kW) | B9: 20
A10: ASCR type | B10: 6
A11: Phase at 1st node, f1 (1/3) | B11: 1
A12: Phase at 2nd node, f2 (1/3) | B12: 1
A13: Current, I (A) | B13: =B9*1000/0.8/B8*(IF(AND(B12=1,B11=1),1,IF(AND(B12=3,B11=3),1/SQRT(3),SQRT(3)))) -> 108.6956522
A14: Impedence, Z (Ω/km) | B14: =SQRT((CHOOSE(B10,1.347,1.098,0.9116,0.5449,0.3434,0.2745))^2+(CHOOSE(B10,0.355,0.349,0.345,0.335,0.328,0.315))^2) -> 0.4178220315
A15: Voltage at 2nd node, V2 (V) | B15: =B8/IF(B12=B11,1,SQRT(3))-B17 -> 139.1691236
A16: Power loss P loss (kW) | B16: =IF(AND(B11=3,B12=3),SQRT(3),1)*(B8-B15)/2/1000*B13*0.8 -> 3.94916854
A17: Voltage drop, dV (V) | B17: =B14*B7*B13*IF(B12=1,2, 1.732) -> 90.83087641
A18: % Voltage drop | B18: =B14*B7*B13*IF(B11=1,2, 1.732)/B8*100 -> 39.4916854

Sheet References
A1: List of References
A2: Small Hydropower Promotion Project (SHPP)/GTZ
A3: 1 | B3: Mini-Grid Support Programme, Alternative Energy Promotion Centre, Kathmandu, Nepal (2002), Peltric Standards
A5: 2 | B5: Mini-Grid Support Programme, Alternative Energy Promotion Centre, Kathmandu, Nepal (2003), Preliminary Feasibility Studies of Prospective Micro-hydro Projects
A7: 3 | B7: Mini-Grid Support Programme, Alternative Energy Promotion Centre , Kathmandu, Nepal(2001), Technical Details and Cost Estimate
A9: 4 | B9: Mini-Grid Support Programme, Alternative Energy Promotion Centre , Kathmandu, Nepal(2003), Guidelines for Detailed Feasibility Study of Micro-Hydro Projects
A11: 5 | B11: European Small Hydropower Association (1998), Layman's Guidebook on How to Develop a Small Hydro Site
A13: 6 | B13: BPC Hydroconsult, Intermediate Technology Development Group (ITDG), Kathmandu, Nepal (2002), Civil Works Guidelines for Micro-Hydropower in Nepal.
A15: 7 | B15: United Nations Industrial Development Organization (UNIDO), Report on Standardiztion of Civil Works for Small Hydropower Plants
A17: 8 | B17: GTZ/Department of Energy Development, Energy Division, Papua New Guinea, Micro Hydropower Training Modules (1994), Modules 1-7, 10, 13, 14 & 18B.
A19: 9 | B19: Americal Society of Civil Engineer (ASCE), Sediment Transportation.
A21: 10 | B21: KB Raina & SK Bhattacharya, New Age International (P) Ltd (1999), Electrical Design Estimating and Costing.
A23: 11 | B23: Badri Ram & DN Vishwakarma, Tata McGraw-Hill Publishing Company Limited, New Delhi (1995), Power System Protection and Switchgear.
A25: 12 | B25: Adam Harvey et.al. (1993), Micro-Hydro Design Manual, A guide to small-scale water power schemes, Intermediate Technology Publications, ISBN 1 85339 103 4.
A27: 13 | B27: Allen R. Inversin (1986), Micro-Hydropower Sourcebook, A Practical Guide to Design and Implementation in Developing Countries, NRECA International Foundation, 1800 Massachusetts Avenue N. W., Washington, DC 20036.
A29: 14 | B29: Helmut Lauterjung/Gangolf Schmidt (1989), Planning of Intake Structures, GATE/GTZ, Vieweg.
A31: 15 | B31: Methodologies for estimating hydrologic characteristics of ungauged locations in Nepal (1990), HMG of Nepal, Ministry of Water Resources, Water and Energy Commission Secretariat, Department of Hydrology and Meteorology.
A33: 16 | B33: Design Manuals for Irrigation Projects in Nepal (1990), Planning and Design Strengthening Project (PDSP), His Majesty's Government of Nepal, Ministry of Water Resources, Department of Irrigation. United Nations Development Programme (NEP/85/013)/World Bank.
A35: 17 | B35: Salleri Chialsa Small Hydel Project (1983), Technical Report, DEH/SATA, ITECO.
A37: 18 | B37: P.N. Khanna (1996), Indian Practical Civil Engineer's Handbook, 15th Edition, Engineer's Publishers, Post Box 725, New Delhi - 110001.
